Workbook

Sheet Market Size
B6: Accumulated number of CDR devices of all manufacturers in the field 5 years after launch worldwide in three different frequency bands: | H6: 10000
B7: Fraction of devices sold for the European market in all bands [%]: | H7: 40
B8: Fraction of devices sold in the band 116-148,5GHz [%]: | H8: 50
B9: Fraction of devices sold in the band 167-182GHz [%]: | H9: 30
B10: Fraction of devices sold in the band 231,5-250GHz [%]: | H10: 20
B12: Accumulated number of devices in the field after 5 years in Europe in the band 116-148,5GHz: | H12: =H6*H7/100*H8/100 -> 2000
B13: Accumulated number of devices in the field after 5 years in Europe in the band 167-182GHz: | H13: =H6*H7/100*H9/100 -> 1200
B14: Accumulated number of devices in the field after 5 years in Europe in the band 231,5-250GHz: | H14: =H6*H7/100*H10/100 -> 800
B17: Land area of Europe [km²] | H17: 10523000
B19: CDR density in Europe in the band 116-148,5GHz [devices/km²] | H19: =H12/H17 -> 0.0001900598689
B20: CDR density in Europe in the band 167-182GHz [devices/km²] | H20: =H13/H17 -> 0.0001140359213
B21: CDR density in Europe in the band 231,5-250GHz [devices/km²] | H21: =H14/H17 -> 7.602394754e-05

Sheet Indoor outdoor attenuation
B2: Elevation | C2: Avg. BEL Traditional | D2: Avg. BEL Efficient | E2: 70/30 BEL omni | F2: BEL High-Gain Comp | G2: Clutter | H2: Transm./Refl. Loss | I2: Inherent Dev. Shielding | J2: Total
B3: deg | C3: dB | D3: dB | F3: dB | G3: dB | J3: dB
B4: 0 | C4: 13.6 | D4: 26.1 | E4: =(-10*LOG10(0.7*10^(-$C4/10)+0.3*10^(-$D4/10))) -> 15.04559449 | F4: 0 | G4: 18.1 | H4: 0 | I4: 0 | J4: =SUM(E4:I4) -> 33.14559449
B5: 1 | C5: 13.7 | D5: 26.2 | E5: =(-10*LOG10(0.7*10^(-$C5/10)+0.3*10^(-$D5/10))) -> 15.14559449 | F5: 0 | G5: 16.8 | H5: 0 | I5: 0 | J5: 31.94559449
B6: 2 | C6: 13.8 | D6: 26.2 | E6: 15.24321452 | F6: 0 | G6: 15.7 | H6: 0 | I6: 0 | J6: 30.94321452
B7: 3 | C7: 13.9 | D7: 26.3 | E7: 15.34321452 | F7: 0 | G7: 14.8 | H7: 0 | I7: 0 | J7: 30.14321452
B8: 4 | C8: 14 | D8: 26.4 | E8: 15.44321452 | F8: 0 | G8: 14 | H8: 0 | I8: 0 | J8: 29.44321452
B9: 5 | C9: 14.1 | D9: 26.5 | E9: 15.54321452 | F9: 0 | G9: 13.2 | H9: 0 | I9: 0 | J9: 28.74321452
B10: 6 | C10: 14.2 | D10: 26.5 | E10: 15.64078046 | F10: 0 | G10: 12.6 | H10: 0 | I10: 0 | J10: 28.24078046
B11: 7 | C11: 14.3 | D11: 26.6 | E11: 15.74078046 | F11: 0 | G11: 12 | H11: 0 | I11: 0 | J11: 27.74078046
B12: 8 | C12: 14.4 | D12: 26.7 | E12: 15.84078046 | F12: 0 | G12: 11.4 | H12: 0 | I12: 0 | J12: 27.24078046
B13: 9 | C13: 14.5 | D13: 26.8 | E13: 15.94078046 | F13: 0 | G13: 10.9 | H13: 0 | I13: 0 | J13: 26.84078046
B14: 10 | C14: 14.6 | D14: 26.8 | E14: 16.03829112 | F14: 0 | G14: 10.4 | H14: 0 | I14: 0 | J14: 26.43829112
B15: 11 | C15: 14.7 | D15: 26.9 | E15: 16.13829112 | F15: 0 | G15: 10 | H15: 0 | I15: 0 | J15: 26.13829112
B16: 12 | C16: 14.8 | D16: 27 | E16: 16.23829112 | F16: 0 | G16: 9.5 | H16: 0 | I16: 0 | J16: 25.73829112
B17: 13 | C17: 14.9 | D17: 27.1 | E17: 16.33829112 | F17: 0 | G17: 9.1 | H17: 0 | I17: 0 | J17: 25.43829112
B18: 14 | C18: 15.1 | D18: 27.2 | E18: 16.53574527 | F18: 0 | G18: 8.7 | H18: 0 | I18: 0 | J18: 25.23574527
B19: 15 | C19: 15.2 | D19: 27.2 | E19: 16.63314167 | F19: 0 | G19: 8.3 | H19: 0 | I19: 0 | J19: 24.93314167
B20: 16 | C20: 15.3 | D20: 27.3 | E20: 16.73314167 | F20: 0 | G20: 8 | H20: 0 | I20: 0 | J20: 24.73314167
B21: 17 | C21: 15.4 | D21: 27.4 | E21: 16.83314167 | F21: 0 | G21: 7.6 | H21: 0 | I21: 0 | J21: 24.43314167
B22: 18 | C22: 15.5 | D22: 27.5 | E22: 16.93314167 | F22: 0 | G22: 7.3 | H22: 0 | I22: 0 | J22: 24.23314167
B23: 19 | C23: 15.6 | D23: 27.6 | E23: 17.03314167 | F23: 0 | G23: 7 | H23: 0 | I23: 0 | J23: 24.03314167
B24: 20 | C24: 15.7 | D24: 27.6 | E24: 17.13047903 | F24: 0 | G24: 6.7 | H24: 0 | I24: 0 | J24: 23.83047903
B25: 21 | C25: 15.8 | D25: 27.7 | E25: 17.23047903 | F25: 0 | G25: 6.4 | H25: 0 | I25: 0 | J25: 23.63047903
B26: 22 | C26: 16 | D26: 27.8 | E26: 17.42775606 | F26: 0 | G26: 6.1 | H26: 0 | I26: 0 | J26: 23.52775606
B27: 23 | C27: 16.1 | D27: 27.9 | E27: 17.52775606 | F27: 0 | G27: 5.9 | H27: 0 | I27: 0 | J27: 23.42775606
B28: 24 | C28: 16.2 | D28: 28 | E28: 17.62775606 | F28: 0 | G28: 5.6 | H28: 0 | I28: 0 | J28: 23.22775606
B29: 25 | C29: 16.3 | D29: 28.1 | E29: 17.72775606 | F29: 0 | G29: 5.4 | H29: 0 | I29: 0 | J29: 23.12775606
B30: 26 | C30: 16.4 | D30: 28.1 | E30: 17.82497143 | F30: 0 | G30: 5.1 | H30: 0 | I30: 0 | J30: 22.92497143
B31: 27 | C31: 16.6 | D31: 28.2 | E31: 18.02212379 | F31: 0 | G31: 4.9 | H31: 0 | I31: 0 | J31: 22.92212379
B32: 28 | C32: 16.7 | D32: 28.3 | E32: 18.12212379 | F32: 0 | G32: 4.7 | H32: 0 | I32: 0 | J32: 22.82212379
B33: 29 | C33: 16.8 | D33: 28.4 | E33: 18.22212379 | F33: 0 | G33: 4.5 | H33: 0 | I33: 0 | J33: 22.72212379
B34: 30 | C34: 16.9 | D34: 28.5 | E34: 18.32212379 | F34: 0 | G34: 4.3 | H34: 0 | I34: 0 | J34: 22.62212379
B35: 31 | C35: 17 | D35: 28.6 | E35: 18.42212379 | F35: 0 | G35: 4.1 | H35: 0 | I35: 0 | J35: 22.52212379
B36: 32 | C36: 17.2 | D36: 28.6 | E36: 18.61623389 | F36: 0 | G36: 3.9 | H36: 0 | I36: 0 | J36: =SUM(E36:I36) -> 22.51623389
B37: 33 | C37: 17.3 | D37: 28.7 | E37: 18.71623389 | F37: 0 | G37: 3.7 | H37: 0 | I37: 0 | J37: 22.41623389
B38: 34 | C38: 17.4 | D38: 28.8 | E38: 18.81623389 | F38: 0 | G38: 3.6 | H38: 0 | I38: 0 | J38: 22.41623389
B39: 35 | C39: 17.5 | D39: 28.9 | E39: 18.91623389 | F39: 0 | G39: 3.4 | H39: 0 | I39: 0 | J39: 22.31623389
B40: 36 | C40: 17.6 | D40: 29 | E40: 19.01623389 | F40: 0 | G40: 3.3 | H40: 0 | I40: 0 | J40: 22.31623389
B41: 37 | C41: 17.8 | D41: 29.1 | E41: 19.21318879 | F41: 0 | G41: 3.1 | H41: 0 | I41: 0 | J41: 22.31318879
B42: 38 | C42: 17.9 | D42: 29.2 | E42: 19.31318879 | F42: 0 | G42: 3 | H42: 0 | I42: 0 | J42: 22.31318879
B43: 39 | C43: 18 | D43: 29.3 | E43: 19.41318879 | F43: 0 | G43: 2.8 | H43: 0 | I43: 0 | J43: 22.21318879
B44: 40 | C44: 18.2 | D44: 29.4 | E44: 19.61007497 | F44: 0 | G44: 2.7 | H44: 0 | I44: 0 | J44: 22.31007497
B45: 41 | C45: 18.3 | D45: 29.4 | E45: 19.70689092 | F45: 0 | G45: 2.6 | H45: 0 | I45: 0 | J45: 22.30689092
B46: 42 | C46: 18.4 | D46: 29.5 | E46: 19.80689092 | F46: 0 | G46: 2.5 | H46: 0 | I46: 0 | J46: 22.30689092
B47: 43 | C47: 18.5 | D47: 29.6 | E47: 19.90689092 | F47: 0 | G47: 2.3 | H47: 0 | I47: 0 | J47: 22.20689092
B48: 44 | C48: 18.7 | D48: 29.7 | E48: 20.10363513 | F48: 0 | G48: 2.2 | H48: 0 | I48: 0 | J48: 22.30363513
B49: 45 | C49: 18.8 | D49: 29.8 | E49: 20.20363513 | F49: 0 | G49: 2.1 | H49: 0 | I49: 0 | J49: 22.30363513
B50: 46 | C50: 18.9 | D50: 29.9 | E50: 20.30363513 | F50: 0 | G50: 2 | H50: 0 | I50: 0 | J50: 22.30363513
B51: 47 | C51: 19.1 | D51: 30 | E51: 20.50030602 | F51: 0 | G51: 1.9 | H51: 0 | I51: 0 | J51: 22.40030602
B52: 48 | C52: 19.2 | D52: 30.1 | E52: 20.60030602 | F52: 0 | G52: 1.8 | H52: 0 | I52: 0 | J52: 22.40030602
B53: 49 | C53: 19.3 | D53: 30.2 | E53: 20.70030602 | F53: 0 | G53: 1.7 | H53: 0 | I53: 0 | J53: 22.40030602
B54: 50 | C54: 19.5 | D54: 30.3 | E54: 20.89690201 | F54: 0 | G54: 1.6 | H54: 0 | I54: 0 | J54: 22.49690201
B55: 51 | C55: 19.6 | D55: 30.4 | E55: 20.99690201 | F55: 0 | G55: 1.6 | H55: 0 | I55: 0 | J55: 22.59690201
B56: 52 | C56: 19.7 | D56: 30.5 | E56: 21.09690201 | F56: 0 | G56: 1.5 | H56: 0 | I56: 0 | J56: 22.59690201
B57: 53 | C57: 19.9 | D57: 30.5 | E57: 21.28986273 | F57: 0 | G57: 1.4 | H57: 0 | I57: 0 | J57: 22.68986273
B58: 54 | C58: 20 | D58: 30.6 | E58: 21.38986273 | F58: 0 | G58: 1.3 | H58: 0 | I58: 0 | J58: 22.68986273
B59: 55 | C59: 20.1 | D59: 30.7 | E59: 21.48986273 | F59: 0 | G59: 1.3 | H59: 0 | I59: 0 | J59: 22.78986273
B60: 56 | C60: 20.3 | D60: 30.8 | E60: 21.68622413 | F60: 0 | G60: 1.2 | H60: 0 | I60: 0 | J60: 22.88622413
B61: 57 | C61: 20.4 | D61: 30.9 | E61: 21.78622413 | F61: 0 | G61: 1.1 | H61: 0 | I61: 0 | J61: 22.88622413
B62: 58 | C62: 20.5 | D62: 31 | E62: 21.88622413 | F62: 0 | G62: 1.1 | H62: 0 | I62: 0 | J62: 22.98622413
B63: 59 | C63: 20.7 | D63: 31.1 | E63: 22.08250392 | F63: 0 | G63: 1 | H63: 0 | I63: 0 | J63: 23.08250392
B64: 60 | C64: 20.8 | D64: 31.2 | E64: 22.18250392 | F64: 0 | G64: 0.9 | H64: 0 | I64: 0 | J64: 23.08250392
B65: 61 | C65: 21 | D65: 31.3 | E65: 22.37870035 | F65: 0 | G65: 0.9 | H65: 0 | I65: 0 | J65: 23.27870035
B66: 62 | C66: 21.1 | D66: 31.4 | E66: 22.47870035 | F66: 0 | G66: 0.8 | H66: 0 | I66: 0 | J66: 23.27870035
B67: 63 | C67: 21.2 | D67: 31.5 | E67: 22.57870035 | F67: 0 | G67: 0.8 | H67: 0 | I67: 0 | J67: 23.37870035
B68: 64 | C68: 21.4 | D68: 31.6 | E68: 22.77481163 | F68: 0 | G68: 0.7 | H68: 0 | I68: 0 | J68: =SUM(E68:I68) -> 23.47481163
B69: 65 | C69: 21.5 | D69: 31.7 | E69: =(-10*LOG10(0.7*10^(-$C69/10)+0.3*10^(-$D69/10))) -> 22.87481163 | F69: 0 | G69: 0.7 | H69: 0 | I69: 0 | J69: =SUM(E69:I69) -> 23.57481163
B70: 66 | C70: 21.7 | D70: 31.8 | E70: 23.07083594 | F70: 0 | G70: 0.6 | H70: 0 | I70: 0 | J70: 23.67083594
B71: 67 | C71: 21.8 | D71: 31.9 | E71: 23.17083594 | F71: 0 | G71: 0.6 | H71: 0 | I71: 0 | J71: 23.77083594
B72: 68 | C72: 22 | D72: 32 | E72: 23.3667714 | F72: 0 | G72: 0.5 | H72: 0 | I72: 0 | J72: 23.8667714
B73: 69 | C73: 22.1 | D73: 32.1 | E73: 23.4667714 | F73: 0 | G73: 0.5 | H73: 0 | I73: 0 | J73: 23.9667714
B74: 70 | C74: 22.2 | D74: 32.2 | E74: 23.5667714 | F74: 0 | G74: 0.5 | H74: 0 | I74: 0 | J74: 24.0667714
B75: 71 | C75: 22.4 | D75: 32.3 | E75: 23.76261612 | F75: 0 | G75: 0.4 | H75: 0 | I75: 0 | J75: 24.16261612
B76: 72 | C76: 22.5 | D76: 32.4 | E76: 23.86261612 | F76: 0 | G76: 0.4 | H76: 0 | I76: 0 | J76: 24.26261612
B77: 73 | C77: 22.7 | D77: 32.5 | E77: 24.05836816 | F77: 0 | G77: 0.3 | H77: 0 | I77: 0 | J77: 24.35836816
B78: 74 | C78: 22.8 | D78: 32.6 | E78: 24.15836816 | F78: 0 | G78: 0.3 | H78: 0 | I78: 0 | J78: 24.45836816
B79: 75 | C79: 23 | D79: 32.7 | E79: 24.35402556 | F79: 0 | G79: 0.3 | H79: 0 | I79: 0 | J79: 24.65402556
B80: 76 | C80: 23.1 | D80: 32.8 | E80: 24.45402556 | F80: 0 | G80: 0.2 | H80: 0 | I80: 0 | J80: 24.65402556
B81: 77 | C81: 23.3 | D81: 32.9 | E81: 24.64958629 | F81: 0 | G81: 0.2 | H81: 0 | I81: 0 | J81: 24.84958629
B82: 78 | C82: 23.4 | D82: 33 | E82: 24.74958629 | F82: 0 | G82: 0.2 | H82: 0 | I82: 0 | J82: 24.94958629
B83: 79 | C83: 23.6 | D83: 33.1 | E83: 24.94504831 | F83: 0 | G83: 0.2 | H83: 0 | I83: 0 | J83: 25.14504831
B84: 80 | C84: 23.7 | D84: 33.2 | E84: 25.04504831 | F84: 0 | G84: 0.1 | H84: 0 | I84: 0 | J84: 25.14504831
B85: 81 | C85: 23.9 | D85: 33.3 | E85: 25.24040953 | F85: 0 | G85: 0.1 | H85: 0 | I85: 0 | J85: 25.34040953
B86: 82 | C86: 24 | D86: 33.4 | E86: 25.34040953 | F86: 0 | G86: 0.1 | H86: 0 | I86: 0 | J86: 25.44040953
B87: 83 | C87: 24.2 | D87: 33.5 | E87: 25.53566782 | F87: 0 | G87: 0.1 | H87: 0 | I87: 0 | J87: 25.63566782
B88: 84 | C88: 24.3 | D88: 33.6 | E88: 25.63566782 | F88: 0 | G88: 0 | H88: 0 | I88: 0 | J88: 25.63566782
B89: 85 | C89: 24.5 | D89: 33.7 | E89: 25.83082102 | F89: 0 | G89: 0 | H89: 0 | I89: 0 | J89: 25.83082102
B90: 86 | C90: 24.6 | D90: 33.8 | E90: 25.93082102 | F90: 0 | G90: 0 | H90: 0 | I90: 0 | J90: 25.93082102
B91: 87 | C91: 24.8 | D91: 33.9 | E91: 26.12586691 | F91: 0 | G91: 0 | H91: 0 | I91: 0 | J91: 26.12586691
B92: 88 | C92: 24.9 | D92: 34 | E92: 26.22586691 | F92: 0 | G92: 0 | H92: 0 | I92: 0 | J92: 26.22586691
B93: 89 | C93: 25.1 | D93: 34.1 | E93: 26.42080326 | F93: 0 | G93: 0 | H93: 0 | I93: 0 | J93: 26.42080326
B94: 90 | C94: 25.3 | D94: 34.2 | E94: 26.61562776 | F94: 0 | G94: 0 | H94: 0 | I94: 0 | J94: 26.61562776

Sheet EESS 116-148,5GHz (single)
B1: Compatibility analysis between M-CDR and PA-CDR in the frequency band 116-148,5 GHz and EESS
D3: Band of EESS: 114,25-122,25 GHz | F3: Band of EESS: 148,5-151,5 GHz
B4: Single-entry study | D4: MWI | E4: Planned EUMETSAT radiometer (ECC Report 190) | F4: Sensor N1 (nadir) | G4: Sensor N1 (outer)
B5: Sensor type | D5: Conical Scan | E5: Conical scan | F5: Nadir scan | G5: Nadir scan
B6: EESS: | C6: Units
B7: Assumed centre frequency of EESS | C7: GHz | D7: 119.125 | E7: 119.125 | F7: 150 | G7: 150
B8: Wavelength of EESS | C8: m | D8: =2.99792458/D7/10 -> 0.002516620844 | E8: =2.99792458/E7/10 -> 0.002516620844 | F8: =2.99792458/F7/10 -> 0.001998616387 | G8: =2.99792458/G7/10 -> 0.001998616387
B9: Reference bandwidth | C9: MHz | D9: 200 | E9: 200 | F9: 500 | G9: 500
B10: Orbit altitude | C10: km² | D10: 830 | E10: 800 | F10: 705 | G10: 705
B11: Angle of incidence at Earth's surface (from zenith) | C11: deg | D11: 53.3 | E11: 53 | F11: 0 | G11: 56.9
B12: Elevation angle at ground | C12: deg | D12: =90-D11 -> 36.7 | E12: =90-E11 -> 37 | F12: =90-F11 -> 90 | G12: =90-G11 -> 33.1
B13: Off-nadir angle | C13: deg | D13: =(ASIN(SIN(D11*PI()/180)/(1+D10/6371)))*180/PI()+0.00000001 -> 45.18299423 | E13: 45.19744971 | F13: =(ASIN(SIN(F11*PI()/180)/(1+F10/6371)))*180/PI()+0.00000001 -> 1e-08 | G13: 48.96028579
B14: Slant path distance | C14: km | D14: =6371*SIN((ASIN(((6371+D10)/6371)*SIN(D13*PI()/180))*180/PI()-D13)*PI()/180)/SIN(D13*PI()/180) -> 1268.117481 | E14: 1218.99489 | F14: =6371*SIN((ASIN(((6371+F10)/6371)*SIN(F13*PI()/180))*180/PI()-F13)*PI()/180)/SIN(F13*PI()/180) -> 705 | G14: 1166.758594
B15: EESS antenna gain | C15: dBi | D15: 55.5 | E15: 55 | F15: 45 | G15: 45
B16: Size of EESS FOV on Earth's surface | C16: km² | D16: 82 | E16: 82 | F16: 154 | G16: 759
B17: EESS interference criterion in the reference bandwidth (ITU-R RS.2017-0) | C17: dBW | D17: -166 | E17: -166 | F17: -159 | G17: -159
B18: Apportionment factor | C18: dB | D18: 12 | E18: 12 | F18: 12 | G18: 12
B20: CDR system:
B21: Conducted Tx power of CDR | C21: dBm | D21: -5 | E21: -5 | F21: -5 | G21: -5
B22: Out-of-band unwanted emissions attenuation (if EESS victim is located in an adjacent band) | C22: dB | D22: 0 | E22: 0 | F22: 20 | G22: 20
B23: Tx e.i.r.p. of CDR | C23: dBm | D23: =D21-D22+D28 -> 27 | E23: 27 | F23: 7 | G23: 7
B24: Bandwidth of CDR Tx signal | C24: GHz | D24: 8 | E24: 8 | F24: 8 | G24: 8
B25: Tx e.i.r.p. spectral density of CDR | C25: dBm/MHz | D25: =D23-10*LOG(D24*1000) -> -12.03089987 | E25: =E23-10*LOG(E24*1000) -> -12.03089987 | F25: =F23-10*LOG(F24*1000) -> -32.03089987 | G25: -32.03089987
B26: Tx e.i.r.p. spectral density of CDR | C26: dBW/MHz | D26: =D25-30 -> -42.03089987 | E26: =E25-30 -> -42.03089987 | F26: =F25-30 -> -62.03089987 | G26: -62.03089987
B27: Mitigation technique (e.g. activity factor, adaptive power control) | C27: dB | D27: 0 | E27: 0 | F27: 0 | G27: 0
B28: Gain of the CDR antenna in direction of main radiation | C28: dBi | D28: 32 | E28: 32 | F28: 32 | G28: 32
B29: Tx power spectral density of CDR without mitigation | C29: dBW/MHz | D29: =D26-D28 -> -74.03089987 | E29: =E26-E28 -> -74.03089987 | F29: =F26-F28 -> -94.03089987 | G29: -94.03089987
B30: Tx power spectral density of CDR with mitigation | C30: dBW/MHz | D30: =D26+D27-D28 -> -74.03089987 | E30: =E26+E27-E28 -> -74.03089987 | F30: =F26+F27-F28 -> -94.03089987 | G30: -94.03089987
B32: Reflected interference component:
B33: Reduction of e.i.r.p. due to spatial mitigation (See Report clause 2.2.6.6) | C33: dB | D33: -28.6 | E33: -28.6 | F33: -28.6 | G33: -28.6
B34: Reflection loss on wet sand surface (with εr=8 for f>100GHz) | C34: dB | D34: 6.42 | E34: 6.42 | F34: 6.42 | G34: 6.42
B35: Reflected e.i.r.p. spectral density component sent to the EESS | C35: dBW/MHz | D35: =D26+D33-D34+D27 -> -77.05089987 | E35: =E26+E33-E34+E27 -> -77.05089987 | F35: =F26+F33-F34+F27 -> -97.05089987 | G35: =G26+G33-G34+G27 -> -97.05089987
B37: Back lobe/side lobe interference component:
B38: Antenna side-lobe gain >45° offset angle | C38: dBi | D38: 4 | E38: 4 | F38: 4 | G38: 4
B39: Back lobe/side lobe e.i.r.p. spectral density component sent to the EESS | C39: dBW/MHz | D39: =D30+D38 -> -70.03089987 | E39: -70.03089987 | F39: -90.03089987 | G39: -90.03089987
B41: Free space loss between CDR and EESS | C41: dB | D41: =20*LOG10(4*PI()*D14*1000/D8) -> 196.0310313 | E41: =20*LOG10(4*PI()*E14*1000/E8) -> 195.6878792 | F41: =20*LOG10(4*PI()*F14*1000/F8) -> 192.9333907 | G41: =20*LOG10(4*PI()*G14*1000/G8) -> 197.3092286
B42: Reflected e.i.r.p. spectral density component at the EESS antenna | C42: dBW/MHz | D42: =D35-D41 -> -273.0819312 | E42: -272.7387791 | F42: -289.9842906 | G42: -294.3601284
B43: Back lobe/side lobe e.i.r.p. spectral density component at the EESS antenna | C43: dBW/MHz | D43: =D39-D41 -> -266.0619312 | E43: -265.7187791 | F43: -282.9642906 | G43: -287.3401284
B44: Total e.i.r.p. spectral density at the EESS antenna (without consideration of atmospheric loss) | C44: dBW/MHz | D44: =10*LOG10(10^(D42/10)+10^(D43/10)) -> -265.275154 | E44: =10*LOG10(10^(E42/10)+10^(E43/10)) -> -264.9320019 | F44: =10*LOG10(10^(F42/10)+10^(F43/10)) -> -282.1775135 | G44: -286.5533513
B45: Atmospheric loss (according to contribution SE24(20)063_rev1) | C45: dB | D45: 3.2 | E45: 3.2 | F45: 2 | G45: 3.8
B46: Polarisation mismatch loss | C46: dB | D46: 3 | E46: 3 | F46: 3 | G46: 3
B47: Indoor-outdoor attenuation (according to clause 2.3 in the Report) | C47: dB | D47: 0 | E47: 0 | F47: 0 | G47: 0
B48: Power spectral density at the EESS receiver in a 1 MHz bandwidth | C48: dBW/MHz | D48: =D44+D15-D45-D46-D47 -> -215.975154 | E48: =E44+E15-E45-E46-E47 -> -216.1320019 | F48: =F44+F15-F45-F46-F47 -> -242.1775135 | G48: =G44+G15-G45-G46-G47 -> -248.3533513
B49: Corresponding power at the EESS receiver in the reference bandwidth for a single CDR | C49: dBW | D49: =D48+10*LOG10(D9) -> -192.9648541 | E49: =E48+10*LOG10(E9) -> -193.121702 | F49: =F48+10*LOG10(F9) -> -215.1878134 | G49: =G48+10*LOG10(G9) -> -221.3636513
B50: Number of interferers in EESS FOV on Earth's surface | D50: 1 | E50: 1 | F50: 1 | G50: 1
B51: Corresponding received power at the EESS in the reference bandwidth within the EESS's FOV | C51: dBW | D51: =D49+10*LOG10(D50) -> -192.9648541 | E51: =E49+10*LOG10(E50) -> -193.121702 | F51: =F49+10*LOG10(F50) -> -215.1878134 | G51: =G49+10*LOG10(G50) -> -221.3636513
B52: Margin with reference to ITU-R RS.2017-0 | C52: dB | D52: =D17-D18-D51 -> 14.96485407 | E52: =E17-E18-E51 -> 15.12170199 | F52: =F17-F18-F51 -> 44.18781344 | G52: =G17-G18-G51 -> 50.36365127
B56: Compatibility analysis between DBF-CDR in the frequency band 116-148,5 GHz and EESS
D58: Band of EESS: 114,25-122,25 GHz | F58: Band of EESS: 148,5-151,5 GHz
B59: Single-entry study | D59: MWI | E59: Planned EUMETSAT radiometer (ECC Report 190) | F59: Sensor N1 (nadir) | G59: Sensor N1 (outer)
B60: Sensor type | D60: Conical Scan | E60: Conical scan | F60: Nadir scan | G60: Nadir scan
B61: EESS: | C61: Units
B62: Assumed centre frequency of EESS | C62: GHz | D62: 119.125 | E62: 119.125 | F62: 150 | G62: 150
B63: Wavelength of EESS | C63: m | D63: =2.99792458/D62/10 -> 0.002516620844 | E63: =2.99792458/E62/10 -> 0.002516620844 | F63: =2.99792458/F62/10 -> 0.001998616387 | G63: =2.99792458/G62/10 -> 0.001998616387
B64: Reference bandwidth | C64: MHz | D64: 200 | E64: 200 | F64: 500 | G64: 500
B65: Orbit altitude | C65: km² | D65: 830 | E65: 800 | F65: 705 | G65: 705
B66: Angle of incidence at Earth's surface (from zenith) | C66: deg | D66: 53.3 | E66: 53 | F66: 0 | G66: 56.9
B67: Elevation angle at ground | C67: deg | D67: =90-D66 -> 36.7 | E67: =90-E66 -> 37 | F67: =90-F66 -> 90 | G67: =90-G66 -> 33.1
B68: Off-nadir angle | C68: deg | D68: =(ASIN(SIN(D66*PI()/180)/(1+D65/6371)))*180/PI()+0.00000001 -> 45.18299423 | E68: 45.19744971 | F68: 1e-08 | G68: 48.96028579
B69: Slant path distance | C69: km | D69: =6371*SIN((ASIN(((6371+D65)/6371)*SIN(D68*PI()/180))*180/PI()-D68)*PI()/180)/SIN(D68*PI()/180) -> 1268.117481 | E69: 1218.99489 | F69: 705 | G69: 1166.758594
B70: EESS antenna gain | C70: dBi | D70: 55.5 | E70: 55 | F70: 45 | G70: 45
B71: Size of EESS FOV on Earth's surface | C71: km² | D71: 82 | E71: 82 | F71: 154 | G71: 759
B72: EESS interference criterion in the reference bandwidth (ITU-R RS.2017-0) | C72: dBW | D72: -166 | E72: -166 | F72: -159 | G72: -159
B73: Apportionment factor | C73: dB | D73: 12 | E73: 12 | F73: 12 | G73: 12
B75: CDR system:
B76: Conducted Tx power of CDR | C76: dBm | D76: -5 | E76: -5 | F76: -5 | G76: -5
B77: Out-of-band unwanted emissions attenuation (if EESS victim is located in an adjacent band) | C77: dB | D77: 0 | E77: 0 | F77: 20 | G77: 20
B78: Tx e.i.r.p. of CDR | C78: dBm | D78: =D76-D77+D83 -> 5 | E78: 5 | F78: -15 | G78: -15
B79: Bandwidth of CDR Tx signal | C79: GHz | D79: 5.7 | E79: 5.7 | F79: 5.7 | G79: 5.7
B80: Tx e.i.r.p. spectral density of CDR | C80: dBm/MHz | D80: =D78-10*LOG(D79*1000) -> -32.55874856 | E80: =E78-10*LOG(E79*1000) -> -32.55874856 | F80: =F78-10*LOG(F79*1000) -> -52.55874856 | G80: -52.55874856
B81: Tx e.i.r.p. spectral density of CDR | C81: dBW/MHz | D81: =D80-30 -> -62.55874856 | E81: =E80-30 -> -62.55874856 | F81: =F80-30 -> -82.55874856 | G81: -82.55874856
B82: Mitigation technique (e.g. activity factor, adaptive power control) | C82: dB | D82: 0 | E82: 0 | F82: 0 | G82: 0
B83: Gain of the CDR antenna in direction of main radiation | C83: dBi | D83: 10 | E83: 10 | F83: 10 | G83: 10
B84: Tx power spectral density of CDR without mitigation | C84: dBW/MHz | D84: =D81-D83 -> -72.55874856 | E84: =E81-E83 -> -72.55874856 | F84: =F81-F83 -> -92.55874856 | G84: -92.55874856
B85: Tx power spectral density of CDR with mitigation | C85: dBW/MHz | D85: =D81+D82-D83 -> -72.55874856 | E85: =E81+E82-E83 -> -72.55874856 | F85: =F81+F82-F83 -> -92.55874856 | G85: -92.55874856
B87: Back lobe interference component:
B88: Max. gain of the CDR antenna backlobe | C88: dBi | D88: -4.6 | E88: -4.6 | F88: -6.6 | G88: -6.6
B89: Back lobe e.i.r.p. spectral density component sent to the EESS | C89: dBW/MHz | D89: =D85+D88 -> -77.15874856 | E89: -77.15874856 | F89: -99.15874856 | G89: -99.15874856
B91: Reflected interference component:
B92: Reflection loss on wet sand surface (with εr=8 for f>100GHz) | C92: dB | D92: 6.42 | E92: 6.42 | F92: 6.42 | G92: 6.42
B93: Reflected e.i.r.p. spectral density component sent to the EESS | C93: dBW/MHz | D93: =D81+D82-D92 -> -68.97874856 | E93: =E81+E82-E92 -> -68.97874856 | F93: =F81+F82-F92 -> -88.97874856 | G93: =G81+G82-G92 -> -88.97874856
B95: Free space loss between CDR and EESS | C95: dB | D95: =20*LOG10(4*PI()*D69*1000/D63) -> 196.0310313 | E95: =20*LOG10(4*PI()*E69*1000/E63) -> 195.6878792 | F95: =20*LOG10(4*PI()*F69*1000/F63) -> 192.9333907 | G95: =20*LOG10(4*PI()*G69*1000/G63) -> 197.3092286
B96: Back lobe e.i.r.p. spectral density component at the EESS antenna | C96: dBW/MHz | D96: =D89-D95 -> -273.1897798 | E96: -272.8466278 | F96: -292.0921393 | G96: -296.4679771
B97: Reflected e.i.r.p. spectral density component at the EESS antenna | C97: dBW/MHz | D97: =D93-D95 -> -265.0097798 | E97: -264.6666278 | F97: -281.9121393 | G97: -286.2879771
B98: Total e.i.r.p. spectral density at the EESS antenna (without consideration of atmospheric loss) | C98: dBW/MHz | D98: =10*LOG10(10^(D96/10)+10^(D97/10)) -> -264.3950486 | E98: =10*LOG10(10^(E96/10)+10^(E97/10)) -> -264.0518966 | F98: =10*LOG10(10^(F96/10)+10^(F97/10)) -> -281.5142713 | G98: -285.8901091
B99: Atmospheric loss (according to contribution SE24(20)063_rev1) | C99: dB | D99: 3.2 | E99: 3.2 | F99: 2 | G99: 3.8
B100: Polarisation mismatch loss | C100: dB | D100: 3 | E100: 3 | F100: 3 | G100: 3
B101: Indoor-outdoor attenuation (according to clause 2.3 in the Report) | C101: dB | D101: 0 | E101: 0 | F101: 0 | G101: 0
B102: Power spectral density at the EESS receiver in a 1 MHz bandwidth | C102: dBW/MHz | D102: =D98+D70-D99-D100-D101 -> -215.0950486 | E102: =E98+E70-E99-E100-E101 -> -215.2518966 | F102: =F98+F70-F99-F100-F101 -> -241.5142713 | G102: =G98+G70-G99-G100-G101 -> -247.6901091
B103: Corresponding power at the EESS receiver in the reference bandwidth for a single CDR | C103: dBW | D103: =D102+10*LOG10(D64) -> -192.0847487 | E103: =E102+10*LOG10(E64) -> -192.2415966 | F103: =F102+10*LOG10(F64) -> -214.5245712 | G103: =G102+10*LOG10(G64) -> -220.7004091
B104: Number of interferers in EESS FOV on Earth's surface | D104: 1 | E104: 1 | F104: 1 | G104: 1
B105: Corresponding received power at the EESS in a bandwidth of 200MHz (Nadir, Conical) and 10MHz (Limb) within the EESS's FOV | C105: dBW | D105: =D103+10*LOG10(D104) -> -192.0847487 | E105: =E103+10*LOG10(E104) -> -192.2415966 | F105: =F103+10*LOG10(F104) -> -214.5245712 | G105: =G103+10*LOG10(G104) -> -220.7004091
B106: Margin with reference to ITU-R RS.2017-0 | C106: dB | D106: =D72-D73-D105 -> 14.08474868 | E106: =E72-E73-E105 -> 14.2415966 | F106: =F72-F73-F105 -> 43.52457122 | G106: =G72-G73-G105 -> 49.70040905

Sheet EESS 116-148,5GHz (aggregate)
B1: Compatibility analysis between M-CDR and PA-CDR in the frequency band 116-148,5 GHz and EESS
B4: Aggregate interference study | D4: Band of EESS: 114,25-122,25 GHz | F4: Band of EESS: 148,5-151,5 GHz
B5: Victim EESS system | D5: MWI | E5: Planned EUMETSAT radiometer (ECC Report 190) | F5: Sensor N1 (nadir) | G5: Sensor N1 (outer)
B6: Sensor type | D6: Conical Scan | E6: Conical scan | F6: Nadir scan | G6: Nadir scan
B7: EESS: | C7: Units
B8: Assumed centre frequency of EESS | C8: GHz | D8: 119.125 | E8: 119.125 | F8: 150 | G8: 150
B9: Wavelength of EESS | C9: m | D9: =2.99792458/D8/10 -> 0.002516620844 | E9: =2.99792458/E8/10 -> 0.002516620844 | F9: =2.99792458/F8/10 -> 0.001998616387 | G9: =2.99792458/G8/10 -> 0.001998616387
B10: Reference bandwidth | C10: MHz | D10: 200 | E10: 200 | F10: 500 | G10: 500
B11: Orbit altitude | C11: km² | D11: 830 | E11: 800 | F11: 705 | G11: 705
B12: Angle of incidence at Earth's surface (from zenith) | C12: deg | D12: 53.3 | E12: 53 | F12: 0 | G12: 56.9
B13: Elevation angle at ground | C13: deg | D13: =90-D12 -> 36.7 | E13: =90-E12 -> 37 | F13: =90-F12 -> 90 | G13: =90-G12 -> 33.1
B14: Off-nadir angle | C14: deg | D14: =(ASIN(SIN(D12*PI()/180)/(1+D11/6371)))*180/PI()+0.00000001 -> 45.18299423 | E14: 45.19744971 | F14: 1e-08 | G14: 48.96028579
B15: Slant path distance | C15: km | D15: =6371*SIN((ASIN(((6371+D11)/6371)*SIN(D14*PI()/180))*180/PI()-D14)*PI()/180)/SIN(D14*PI()/180) -> 1268.117481 | E15: 1218.99489 | F15: 705 | G15: 1166.758594
B16: EESS antenna gain | C16: dBi | D16: 55.5 | E16: 55 | F16: 45 | G16: 45
B17: Size of EESS FOV on Earth's surface | C17: km² | D17: 82 | E17: 82 | F17: 154 | G17: 759
B18: EESS interference criterion in the reference bandwidth (ITU-R RS.2017-0) | C18: dBW | D18: -166 | E18: -166 | F18: -159 | G18: -159
B19: Apportionment factor | C19: dB | D19: 12 | E19: 12 | F19: 12 | G19: 12
B21: CDR system:
B22: Conducted Tx power of CDR | C22: dBm | D22: -5 | E22: -5 | F22: -5 | G22: -5
B23: Out-of-band unwanted emissions attenuation (if EESS victim is located in an adjacent band) | C23: dB | D23: 0 | E23: 0 | F23: 20 | G23: 20
B24: Tx e.i.r.p. of CDR | C24: dBm | D24: =D22-D23+D29 -> 27 | E24: 27 | F24: 7 | G24: 7
B25: Bandwidth of CDR Tx signal | C25: GHz | D25: 8 | E25: 8 | F25: 8 | G25: 8
B26: Tx e.i.r.p. spectral density of CDR | C26: dBm/MHz | D26: =D24-10*LOG(D25*1000) -> -12.03089987 | E26: =E24-10*LOG(E25*1000) -> -12.03089987 | F26: =F24-10*LOG(F25*1000) -> -32.03089987 | G26: -32.03089987
B27: Tx e.i.r.p. spectral density of CDR | C27: dBW/MHz | D27: =D26-30 -> -42.03089987 | E27: =E26-30 -> -42.03089987 | F27: =F26-30 -> -62.03089987 | G27: -62.03089987
B28: Mitigation technique (e.g. activity factor, adaptive power control) | C28: dB | D28: 0 | E28: 0 | F28: 0 | G28: 0
B29: Gain of the CDR antenna in direction of main radiation | C29: dBi | D29: 32 | E29: 32 | F29: 32 | G29: 32
B30: Tx power spectral density of CDR without mitigation | C30: dBW/MHz | D30: =D27-D29 -> -74.03089987 | E30: =E27-E29 -> -74.03089987 | F30: =F27-F29 -> -94.03089987 | G30: -94.03089987
B31: Tx power spectral density of CDR with mitigation | C31: dBW/MHz | D31: =D27+D28-D29 -> -74.03089987 | E31: =E27+E28-E29 -> -74.03089987 | F31: =F27+F28-F29 -> -94.03089987 | G31: -94.03089987
B33: Reflected interference component:
B34: Reduction of e.i.r.p. due to spatial mitigation (See Report clause 2.2.6.6) | C34: dBi | D34: -28.6 | E34: -28.6 | F34: -28.6 | G34: -28.6
B35: Additional losses for the scattered component | C35: dB | D35: -10 | E35: -10 | F35: -10 | G35: -10
B36: Average dielectric reflection attenuation at sand slope | C36: dB | D36: -20 | E36: -20 | F36: -20 | G36: -20
B37: Reflected e.i.r.p. spectral density component sent to the EESS | C37: dBW/MHz | D37: =D27+D28+D34+D35+D36 -> -100.6308999 | E37: =E27+E28+E34+E35+E36 -> -100.6308999 | F37: =F27+F28+F34+F35+F36 -> -120.6308999 | G37: =G27+G28+G34+G35+G36 -> -120.6308999
B39: Back lobe/side lobe interference component:
B40: Antenna side-lobe gain >45° offset angle | C40: dBi | D40: 4 | E40: 4 | F40: 4 | G40: 4
B41: Back lobe/side lobe e.i.r.p. spectral density component sent to the EESS | C41: dBW/MHz | D41: =D31+D40 -> -70.03089987 | E41: =E31+E40 -> -70.03089987 | F41: =F31+F40 -> -90.03089987 | G41: =G31+G40 -> -90.03089987
B43: Free space loss between CDR and EESS | C43: dB | D43: =20*LOG10(4*PI()*D15*1000/D9) -> 196.0310313 | E43: =20*LOG10(4*PI()*E15*1000/E9) -> 195.6878792 | F43: =20*LOG10(4*PI()*F15*1000/F9) -> 192.9333907 | G43: =20*LOG10(4*PI()*G15*1000/G9) -> 197.3092286
B44: Reflected e.i.r.p. spectral density component at the EESS antenna | C44: dBW/MHz | D44: =D37-D43 -> -296.6619312 | E44: =E37-E43 -> -296.3187791 | F44: =F37-F43 -> -313.5642906 | G44: =G37-G43 -> -317.9401284
B45: Back lobe e.i.r.p. spectral density component at the EESS antenna | C45: dBW/MHz | D45: =D41-D43 -> -266.0619312 | E45: =E41-E43 -> -265.7187791 | F45: =F41-F43 -> -282.9642906 | G45: =G41-G43 -> -287.3401284
B46: Total e.i.r.p. spectral density at the EESS antenna (without consideration of atmospheric loss) | C46: dBW/MHz | D46: =10*LOG10(10^(D44/10)+10^(D45/10)) -> -266.0581503 | E46: =10*LOG10(10^(E44/10)+10^(E45/10)) -> -265.7149982 | F46: =10*LOG10(10^(F44/10)+10^(F45/10)) -> -282.9605097 | G46: -287.3363475
B47: Atmospheric loss (according to contribution SE24(20)063_rev1) | C47: dB | D47: 3.2 | E47: 3.2 | F47: 2 | G47: 3.8
B48: Polarisation mismatch loss | C48: dB | D48: 3 | E48: 3 | F48: 3 | G48: 3
B49: Indoor-outdoor attenuation (according to clause 2.3 in the Report) | C49: dB | D49: =VLOOKUP(D13,'Indoor outdoor attenuation'!data_1,9) -> 22.31623389 | E49: =VLOOKUP(E13,'Indoor outdoor attenuation'!data_1,9) -> 22.31318879 | F49: =VLOOKUP(F13,'Indoor outdoor attenuation'!data_1,9) -> 26.61562776 | G49: =VLOOKUP(G13,'Indoor outdoor attenuation'!data_1,9) -> 22.41623389
B50: Power spectral density at the EESS receiver in a 1 MHz bandwidth | C50: dBW/MHz | D50: =D46+D16-D47-D48 -> -216.7581503 | E50: =E46+E16-E47-E48 -> -216.9149982 | F50: =F46+F16-F47-F48 -> -242.9605097 | G50: =G46+G16-G47-G48 -> -249.1363475
B51: Corresponding power at the EESS receiver in the reference bandwidth for a single CDR | C51: dBW | D51: =D50+10*LOG10(D10) -> -193.7478503 | E51: =E50+10*LOG10(E10) -> -193.9046982 | F51: =F50+10*LOG10(F10) -> -215.9708097 | G51: =G50+10*LOG10(G10) -> -222.1466475
B52: Uniform CDR device density (with uniform distribution over Europe) | C52: 1/km² | D52: ='Market Size'!H19 -> 0.0001900598689 | E52: ='Market Size'!H19 -> 0.0001900598689 | F52: ='Market Size'!H19 -> 0.0001900598689 | G52: ='Market Size'!H19 -> 0.0001900598689
B53: Aggregate CDR device density (uniform distribution weighted with factor 75; acc. to annex 9 in the Report) | C53: 1/km² | D53: =D52*75 -> 0.01425449016 | E53: =E52*75 -> 0.01425449016 | F53: =F52*75 -> 0.01425449016 | G53: =G52*75 -> 0.01425449016
B54: Number of aggregate CDR devices in the IFOV and active in the reference BW of the satellite | D54: =ROUNDUP(D53*D17,0) -> 2 | E54: =ROUNDUP(E53*E17,0) -> 2 | F54: =ROUNDUP(F53*F17,0) -> 3 | G54: =ROUNDUP(G53*G17,0) -> 11
B55: Percentage of CDRs operated indoors | C55: % | D55: 90 | E55: 90 | F55: 90 | G55: 90
B56: Resulting total number of outdoor interferers in EESS FOV on Earth's surface | D56: =ROUNDUP((D55/100)*D54*10^-(D49/10)+((1-D55/100)*D54),0) -> 1 | E56: =ROUNDUP((E55/100)*E54*10^-(E49/10)+((1-E55/100)*E54),0) -> 1 | F56: =ROUNDUP((F55/100)*F54*10^-(F49/10)+((1-F55/100)*F54),0) -> 1 | G56: =ROUNDUP((G55/100)*G54*10^-(G49/10)+((1-G55/100)*G54),0) -> 2
B57: Corresponding received power at the EESS in the reference bandwidth within the EESS's FOV | C57: dBW | D57: =D51+10*LOG10(D56) -> -193.7478503 | E57: =E51+10*LOG10(E56) -> -193.9046982 | F57: =F51+10*LOG10(F56) -> -215.9708097 | G57: =G51+10*LOG10(G56) -> -219.1363475
B58: Margin with reference to ITU-R RS.2017-0 | C58: dB | D58: =D18-D19-D57 -> 15.7478503 | E58: =E18-E19-E57 -> 15.90469821 | F58: =F18-F19-F57 -> 44.97080967 | G58: =G18-G19-G57 -> 48.13634754
B63: Compatibility analysis between DBF-CDR in the frequency band 116-148,5 GHz and EESS
B66: Aggregate interference study | D66: Band of EESS: 114,25-122,25 GHz | F66: Band of EESS: 148,5-151,5 GHz
B67: Victim EESS system | D67: MWI | E67: Planned EUMETSAT radiometer (ECC Report 190) | F67: Sensor N1 (nadir) | G67: Sensor N1 (outer)
B68: Sensor type | D68: Conical Scan | E68: Conical scan | F68: Nadir scan | G68: Nadir scan
B69: EESS: | C69: Units
B70: Assumed centre frequency of EESS | C70: GHz | D70: 119.125 | E70: 119.125 | F70: 150 | G70: 150
B71: Wavelength of EESS | C71: m | D71: =2.99792458/D70/10 -> 0.002516620844 | E71: =2.99792458/E70/10 -> 0.002516620844 | F71: =2.99792458/F70/10 -> 0.001998616387 | G71: =2.99792458/G70/10 -> 0.001998616387
B72: Reference bandwidth | C72: MHz | D72: 200 | E72: 200 | F72: 500 | G72: 500
B73: Orbit altitude | C73: km² | D73: 830 | E73: 800 | F73: 705 | G73: 705
B74: Angle of incidence at Earth's surface (from zenith) | C74: deg | D74: 53.3 | E74: 53 | F74: 0 | G74: 56.9
B75: Elevation angle at ground | C75: deg | D75: =90-D74 -> 36.7 | E75: =90-E74 -> 37 | F75: =90-F74 -> 90 | G75: =90-G74 -> 33.1
B76: Off-nadir angle | C76: deg | D76: =(ASIN(SIN(D74*PI()/180)/(1+D73/6371)))*180/PI()+0.00000001 -> 45.18299423 | E76: 45.19744971 | F76: 1e-08 | G76: 48.96028579
B77: Slant path distance | C77: km | D77: =6371*SIN((ASIN(((6371+D73)/6371)*SIN(D76*PI()/180))*180/PI()-D76)*PI()/180)/SIN(D76*PI()/180) -> 1268.117481 | E77: 1218.99489 | F77: 705 | G77: 1166.758594
B78: EESS antenna gain | C78: dBi | D78: 55.5 | E78: 55 | F78: 45 | G78: 45
B79: Size of EESS FOV on Earth's surface | C79: km² | D79: 82 | E79: 82 | F79: 154 | G79: 759
B80: EESS interference criterion in the reference bandwidth (ITU-R RS.2017-0) | C80: dBW | D80: -166 | E80: -166 | F80: -159 | G80: -159
B81: Apportionment factor | C81: dB | D81: 12 | E81: 12 | F81: 12 | G81: 12
B83: CDR system:
B84: Conducted Tx power of CDR | C84: dBm | D84: -5 | E84: -5 | F84: -5 | G84: -5
B85: Out-of-band unwanted emissions attenuation (if EESS victim is located in an adjacent band) | C85: dB | D85: 0 | E85: 0 | F85: 20 | G85: 20
B86: Tx e.i.r.p. of CDR | C86: dBm | D86: =D84-D85+D91 -> 5 | E86: 5 | F86: -15 | G86: -15
B87: Bandwidth of CDR Tx signal | C87: GHz | D87: 5.7 | E87: 5.7 | F87: 5.7 | G87: 5.7
B88: Tx e.i.r.p. spectral density of CDR | C88: dBm/MHz | D88: =D86-10*LOG(D87*1000) -> -32.55874856 | E88: =E86-10*LOG(E87*1000) -> -32.55874856 | F88: =F86-10*LOG(F87*1000) -> -52.55874856 | G88: -52.55874856
B89: Tx e.i.r.p. spectral density of CDR | C89: dBW/MHz | D89: =D88-30 -> -62.55874856 | E89: =E88-30 -> -62.55874856 | F89: =F88-30 -> -82.55874856 | G89: -82.55874856
B90: Mitigation technique (e.g. activity factor, adaptive power control) | C90: dB | D90: 0 | E90: 0 | F90: 0 | G90: 0
B91: Gain of the CDR antenna in direction of main radiation | C91: dBi | D91: 10 | E91: 10 | F91: 10 | G91: 10
B92: Tx power spectral density of CDR without mitigation | C92: dBW/MHz | D92: =D89-D91 -> -72.55874856 | E92: =E89-E91 -> -72.55874856 | F92: =F89-F91 -> -92.55874856 | G92: -92.55874856
B93: Tx power spectral density of CDR with mitigation | C93: dBW/MHz | D93: =D89+D90-D91 -> -72.55874856 | E93: =E89+E90-E91 -> -72.55874856 | F93: =F89+F90-F91 -> -92.55874856 | G93: -92.55874856
B95: Back lobe interference component:
B96: Max. gain of the CDR antenna backlobe | C96: dBi | D96: -4.6 | E96: -4.6 | F96: -6.6 | G96: -6.6
B97: Back lobe e.i.r.p. spectral density component sent to the EESS | C97: dBW/MHz | D97: =D93+D96 -> -77.15874856 | E97: -77.15874856 | F97: -99.15874856 | G97: -99.15874856
B99: Scattered/reflected interference component:
B100: Additional losses for the scattered component | C100: dB | D100: -10 | E100: -10 | F100: -10 | G100: -10
B101: Average dielectric reflection attenuation at sand slope | C101: dB | D101: -20 | E101: -20 | F101: -20 | G101: -20
B102: Scattered/reflected e.i.r.p. spectral density component sent to the EESS | C102: dBW/MHz | D102: =D89+D90+D100+D101 -> -92.55874856 | E102: =E89+E90+E100+E101 -> -92.55874856 | F102: =F89+F90+F100+F101 -> -112.5587486 | G102: =G89+G90+G100+G101 -> -112.5587486
B104: Free space loss between CDR and EESS | C104: dB | D104: =20*LOG10(4*PI()*D77*1000/D71) -> 196.0310313 | E104: =20*LOG10(4*PI()*E77*1000/E71) -> 195.6878792 | F104: =20*LOG10(4*PI()*F77*1000/F71) -> 192.9333907 | G104: =20*LOG10(4*PI()*G77*1000/G71) -> 197.3092286
B105: Back lobe e.i.r.p. spectral density component at the EESS antenna | C105: dBW/MHz | D105: =D97-D104 -> -273.1897798 | E105: =E97-E104 -> -272.8466278 | F105: -292.0921393 | G105: -296.4679771
B106: Reflected e.i.r.p. spectral density component at the EESS antenna | C106: dBW/MHz | D106: =D102-D104 -> -288.5897798 | E106: -288.2466278 | F106: -305.4921393 | G106: -309.8679771
B107: Total e.i.r.p. spectral density at the EESS antenna (without consideration of atmospheric loss) | C107: dBW/MHz | D107: =10*LOG10(10^(D105/10)+10^(D106/10)) -> -273.0663001 | E107: =10*LOG10(10^(E105/10)+10^(E106/10)) -> -272.723148 | F107: =10*LOG10(10^(F105/10)+10^(F106/10)) -> -291.8980316 | G107: -296.2738694
B108: Atmospheric loss (according to contribution SE24(20)063_rev1) | C108: dB | D108: 3.2 | E108: 3.2 | F108: 2 | G108: 3.8
B109: Polarisation mismatch loss | C109: dB | D109: 3 | E109: 3 | F109: 3 | G109: 3
B110: Indoor-outdoor attenuation (according to clause 2.3 in the Report) | C110: dB | D110: =VLOOKUP(D75,'Indoor outdoor attenuation'!data_1,9) -> 22.31623389 | E110: =VLOOKUP(E75,'Indoor outdoor attenuation'!data_1,9) -> 22.31318879 | F110: =VLOOKUP(F75,'Indoor outdoor attenuation'!data_1,9) -> 26.61562776 | G110: =VLOOKUP(G75,'Indoor outdoor attenuation'!data_1,9) -> 22.41623389
B111: Power spectral density at the EESS receiver in a 1 MHz bandwidth | C111: dBW/MHz | D111: =D107+D78-D108-D109 -> -223.7663001 | E111: =E107+E78-E108-E109 -> -223.923148 | F111: =F107+F78-F108-F109 -> -251.8980316 | G111: =G107+G78-G108-G109 -> -258.0738694
B112: Corresponding power at the EESS receiver in the reference bandwidth for a single CDR | C112: dBW | D112: =D111+10*LOG10(D72) -> -200.7560001 | E112: =E111+10*LOG10(E72) -> -200.9128481 | F112: =F111+10*LOG10(F72) -> -224.9083315 | G112: =G111+10*LOG10(G72) -> -231.0841694
B113: Uniform CDR device density (with uniform distribution over Europe) | C113: 1/km² | D113: ='Market Size'!H19 -> 0.0001900598689 | E113: ='Market Size'!H19 -> 0.0001900598689 | F113: ='Market Size'!H19 -> 0.0001900598689 | G113: ='Market Size'!H19 -> 0.0001900598689
B114: Aggregate CDR device density (uniform distribution weighted with factor 75; acc. to annex 9 in the Report) | C114: 1/km² | D114: =D113*75 -> 0.01425449016 | E114: =E113*75 -> 0.01425449016 | F114: =F113*75 -> 0.01425449016 | G114: =G113*75 -> 0.01425449016
B115: Number of aggregate CDR devices in the IFOV and active in the reference BW of the satellite | D115: =ROUNDUP(D114*D79,0) -> 2 | E115: =ROUNDUP(E114*E79,0) -> 2 | F115: =ROUNDUP(F114*F79,0) -> 3 | G115: =ROUNDUP(G114*G79,0) -> 11
B116: Percentage of CDRs operated indoors | C116: % | D116: 90 | E116: 90 | F116: 90 | G116: 90
B117: Resulting total number of outdoor interferers in EESS FOV on Earth's surface | D117: =ROUNDUP((D116/100)*D115*10^-(D110/10)+((1-D116/100)*D115),0) -> 1 | E117: =ROUNDUP((E116/100)*E115*10^-(E110/10)+((1-E116/100)*E115),0) -> 1 | F117: =ROUNDUP((F116/100)*F115*10^-(F110/10)+((1-F116/100)*F115),0) -> 1 | G117: =ROUNDUP((G116/100)*G115*10^-(G110/10)+((1-G116/100)*G115),0) -> 2
B118: Corresponding received power at the EESS in the reference bandwidth within the EESS's FOV | C118: dBW | D118: =D112+10*LOG10(D117) -> -200.7560001 | E118: =E112+10*LOG10(E117) -> -200.9128481 | F118: =F112+10*LOG10(F117) -> -224.9083315 | G118: =G112+10*LOG10(G117) -> -228.0738694
B119: Margin with reference to ITU-R RS.2017-0 | C119: dB | D119: =D80-D81-D118 -> 22.75600015 | E119: =E80-E81-E118 -> 22.91284806 | F119: =F80-F81-F118 -> 53.90833155 | G119: =G80-G81-G118 -> 57.07386942

Sheet EESS 167-182GHz (single)
B1: Compatibility analysis between M-CDR and PA-CDR in the frequency band 167-182 GHz and EESS
D3: Band of EESS: 164-167 GHz | G3: Band of EESS: 174,8-191,8 GHz
B4: Single-entry study | D4: Sensor P1 | E4: Sensor P2 (nadir) | F4: Sensor P2 (outer) | G4: MHS (nadir) | H4: MHS (outer) | I4: MWI | J4: MWS (nadir) | K4: MWS (outer) | L4: ICI | M4: AWS (nadir) | N4: AWS (outer)
B5: Sensor type | D5: Conical scan | E5: Nadir scan | F5: Nadir scan | G5: Nadir scan | H5: Nadir scan | I5: Conical scan | J5: Nadir scan | K5: Nadir scan | L5: Conical scan | M5: Nadir scan | N5: Nadir scan
B6: EESS: | C6: Units
B7: Assumed centre frequency of EESS | C7: GHz | D7: 165.5 | E7: 165.5 | F7: 165.5 | G7: 178.4 | H7: 178.4 | I7: 178.4 | J7: 178.4 | K7: 178.4 | L7: 178.4 | M7: 178.4 | N7: 178.4
B8: Wavelength of EESS | C8: m | D8: =2.99792458/D7/10 -> 0.001811434792 | E8: 0.001811434792 | F8: 0.001811434792 | G8: 0.001680450998 | H8: 0.001680450998 | I8: 0.001680450998 | J8: 0.001680450998 | K8: 0.001680450998 | L8: 0.001680450998 | M8: 0.001680450998 | N8: 0.001680450998
B9: Reference bandwidth | C9: MHz | D9: 200 | E9: 200 | F9: 200 | G9: 200 | H9: 200 | I9: 200 | J9: 200 | K9: 200 | L9: 200 | M9: 200 | N9: 200
B10: Orbit altitude | C10: km² | D10: 828 | E10: 824 | F10: 824 | G10: 822 | H10: 822 | I10: 830 | J10: 830 | K10: 830 | L10: 830 | M10: 600 | N10: 600
B11: Angle of incidence at Earth's surface (from zenith) | C11: deg | D11: 55.5 | E11: 0 | F11: 64 | G11: 0 | H11: 59 | I11: 53.3 | J11: 0 | K11: 58.5 | L11: 53.3 | M11: 0 | N11: 55.7
B12: Elevation angle at ground | C12: deg | D12: =90-D11 -> 34.5 | E12: 90 | F12: 26 | G12: 90 | H12: 31 | I12: 36.7 | J12: 90 | K12: 31.5 | L12: 36.7 | M12: 90 | N12: 34.3
B13: Off-nadir angle | C13: deg | D13: =(ASIN(SIN(D11*PI()/180)/(1+D10/6371)))*180/PI()+0.00000001 -> 46.83096782 | E13: 1e-08 | F13: 52.73661527 | G13: 1e-08 | H13: 49.39479043 | I13: 45.18299423 | J13: 1e-08 | K13: 48.96977181 | L13: 45.18299423 | M13: 1e-08 | N13: 49.02495908
B14: Slant path distance | C14: km | D14: =6371*SIN((ASIN(((6371+D10)/6371)*SIN(D13*PI()/180))*180/PI()-D13)*PI()/180)/SIN(D13*PI()/180) -> 1316.643352 | E14: 824 | F14: 1563.565476 | G14: 822 | H14: 1400.207928 | I14: 1268.117481 | J14: 830 | K14: 1398.309283 | L14: 1268.117481 | M14: 600 | N14: 980.8707785
B15: EESS antenna gain | C15: dBi | D15: 54 | E15: 43.9 | F15: 43.9 | G15: 44.8 | H15: 44.8 | I15: 56.9 | J15: 43 | K15: 43 | L15: 52 | M15: 50 | N15: 50
B16: Size of EESS FOV on Earth's surface | C16: km² | D16: 113 | E16: 254 | F16: 2083 | G16: 201 | H16: 1103 | I16: 61 | J16: 315 | K16: 1762 | L16: 164 | M16: 28 | N16: 141
B17: EESS interference criterion in the reference bandwidth (ITU-R RS.2017-0) | C17: dBW | D17: -163 | E17: -163 | F17: -163 | G17: -163 | H17: -163 | I17: -163 | J17: -163 | K17: -163 | L17: -163 | M17: -163 | N17: -163
B18: Apportionment factor | C18: dB | D18: 12 | E18: 12 | F18: 12 | G18: 12 | H18: 12 | I18: 12 | J18: 12 | K18: 12 | L18: 12 | M18: 12 | N18: 12
B20: CDR system:
B21: Conducted Tx power of CDR | C21: dBm | D21: -2 | E21: -2 | F21: -2 | G21: -2 | H21: -2 | I21: -2 | J21: -2 | K21: -2 | L21: -2 | M21: -2 | N21: -2
B22: Out-of-band unwanted emissions attenuation (if EESS victim is located in an adjacent band) | C22: dB | D22: 20 | E22: 20 | F22: 20 | G22: 0 | H22: 0 | I22: 0 | J22: 0 | K22: 0 | L22: 0 | M22: 0 | N22: 0
B23: Tx e.i.r.p. of CDR | C23: dBm | D23: =D21-D22+D28 -> 10 | E23: 10 | F23: 10 | G23: 30 | H23: 30 | I23: 30 | J23: 30 | K23: 30 | L23: 30 | M23: 30 | N23: 30
B24: Bandwidth of CDR Tx signal | C24: GHz | D24: 8 | E24: 8 | F24: 8 | G24: 8 | H24: 8 | I24: 8 | J24: 8 | K24: 8 | L24: 8 | M24: 8 | N24: 8
B25: Tx e.i.r.p. spectral density of CDR | C25: dBm/MHz | D25: =D23-10*LOG(D24*1000) -> -29.03089987 | E25: =E23-10*LOG(E24*1000) -> -29.03089987 | F25: -29.03089987 | G25: -9.03089987 | H25: -9.03089987 | I25: -9.03089987 | J25: -9.03089987 | K25: -9.03089987 | L25: -9.03089987 | M25: -9.03089987 | N25: -9.03089987
B26: Tx e.i.r.p. spectral density of CDR | C26: dBW/MHz | D26: =D25-30 -> -59.03089987 | E26: =E25-30 -> -59.03089987 | F26: -59.03089987 | G26: -39.03089987 | H26: -39.03089987 | I26: -39.03089987 | J26: -39.03089987 | K26: -39.03089987 | L26: -39.03089987 | M26: -39.03089987 | N26: -39.03089987
B27: Mitigation technique (e.g. activity factor, adaptive power control) | C27: dB | D27: 0 | E27: 0 | F27: 0 | G27: 0 | H27: 0 | I27: 0 | J27: 0 | K27: 0 | L27: 0 | M27: 0 | N27: 0
B28: Gain of the CDR antenna in direction of main radiation | C28: dBi | D28: 32 | E28: 32 | F28: 32 | G28: 32 | H28: 32 | I28: 32 | J28: 32 | K28: 32 | L28: 32 | M28: 32 | N28: 32
B29: Tx power spectral density of CDR without mitigation | C29: dBW/MHz | D29: =D26-D28 -> -91.03089987 | E29: =E26-E28 -> -91.03089987 | F29: -91.03089987 | G29: -71.03089987 | H29: -71.03089987 | I29: -71.03089987 | J29: -71.03089987 | K29: -71.03089987 | L29: -71.03089987 | M29: -71.03089987 | N29: -71.03089987
B30: Tx power spectral density of CDR with mitigation | C30: dBW/MHz | D30: =D26+D27-D28 -> -91.03089987 | E30: =E26+E27-E28 -> -91.03089987 | F30: -91.03089987 | G30: -71.03089987 | H30: -71.03089987 | I30: -71.03089987 | J30: -71.03089987 | K30: -71.03089987 | L30: -71.03089987 | M30: -71.03089987 | N30: -71.03089987
B32: Reflected interference component:
B33: Reduction of e.i.r.p. due to spatial mitigation (See Report clause 2.2.6.6) | C33: dB | D33: -28.6 | E33: -28.6 | F33: -28.6 | G33: -28.6 | H33: -28.6 | I33: -28.6 | J33: -28.6 | K33: -28.6 | L33: -28.6 | M33: -28.6 | N33: -28.6
B34: Reflection loss on wet sand surface (with εr=8 for f>100GHz) | C34: dB | D34: 6.42 | E34: 6.42 | F34: 6.42 | G34: 6.42 | H34: 6.42 | I34: 6.42 | J34: 6.42 | K34: 6.42 | L34: 6.42 | M34: 6.42 | N34: 6.42
B35: Reflected e.i.r.p. spectral density component sent to the EESS | C35: dBW/MHz | D35: =D26+D33-D34+D27 -> -94.05089987 | E35: =E26+E33-E34+E27 -> -94.05089987 | F35: -94.05089987 | G35: -74.05089987 | H35: -74.05089987 | I35: -74.05089987 | J35: -74.05089987 | K35: -74.05089987 | L35: -74.05089987 | M35: -74.05089987 | N35: -74.05089987
B37: Back lobe/side lobe interference component:
B38: Antenna side-lobe gain >45° offset angle | C38: dBi | D38: 4 | E38: 4 | F38: 4 | G38: 4 | H38: 4 | I38: 4 | J38: 4 | K38: 4 | L38: 4 | M38: 4 | N38: 4
B39: Back lobe/side lobe e.i.r.p. spectral density component sent to the EESS | C39: dBW/MHz | D39: =D30+D38 -> -87.03089987 | E39: -87.03089987 | F39: -87.03089987 | G39: -67.03089987 | H39: -67.03089987 | I39: -67.03089987 | J39: -67.03089987 | K39: -67.03089987 | L39: -67.03089987 | M39: -67.03089987 | N39: -67.03089987
B41: Free space loss between CDR and EESS | C41: dB | D41: =20*LOG10(4*PI()*D14*1000/D8) -> 199.2131062 | E41: =20*LOG10(4*PI()*E14*1000/E8) -> 195.1422874 | F41: 200.7060646 | G41: 195.7731166 | H41: 200.3995309 | I41: 199.53887 | J41: 195.8572421 | K41: 200.387745 | L41: 199.53887 | M41: 193.0387052 | N41: 197.3079162
B42: Reflected e.i.r.p. spectral density component at the EESS antenna | C42: dBW/MHz | D42: =D35-D41 -> -293.2640061 | E42: -289.1931873 | F42: -294.7569645 | G42: -269.8240164 | H42: -274.4504307 | I42: -273.5897699 | J42: -269.9081419 | K42: -274.4386449 | L42: -273.5897699 | M42: -267.0896051 | N42: -271.358816
B43: Back lobe/side lobe e.i.r.p. spectral density component at the EESS antenna | C43: dBW/MHz | D43: =D39-D41 -> -286.2440061 | E43: -282.1731873 | F43: -287.7369645 | G43: -262.8040164 | H43: -267.4304307 | I43: -266.5697699 | J43: -262.8881419 | K43: -267.4186449 | L43: -266.5697699 | M43: -260.0696051 | N43: -264.338816
B44: Total e.i.r.p. spectral density at the EESS antenna (without consideration of atmospheric loss) | C44: dBW/MHz | D44: =10*LOG10(10^(D42/10)+10^(D43/10)) -> -285.4572289 | E44: =10*LOG10(10^(E42/10)+10^(E43/10)) -> -281.3864102 | F44: -286.9501874 | G44: -262.0172393 | H44: -266.6436536 | I44: -265.7829928 | J44: -262.1013648 | K44: -266.6318678 | L44: -265.7829928 | M44: -259.282828 | N44: -263.5520389
B45: Atmospheric loss (according to contribution SE24(20)063_rev1) | C45: dB | D45: 5.7 | E45: 3.2 | F45: 7.4 | G45: 8.3 | H45: 16 | I45: 13.8 | J45: 8.3 | K45: 15.8 | L45: 13.8 | M45: 8.3 | N45: 14.7
B46: Polarisation mismatch loss | C46: dB | D46: 3 | E46: 3 | F46: 3 | G46: 3 | H46: 3 | I46: 3 | J46: 3 | K46: 3 | L46: 3 | M46: 3 | N46: 3
B47: Indoor-outdoor attenuation (according to clause 2.3 in the Report) | C47: dB | D47: 0 | E47: 0 | F47: 0 | G47: 0 | H47: 0 | I47: 0 | J47: 0 | K47: 0 | L47: 0 | M47: 0 | N47: 0
B48: Power spectral density at the EESS receiver in a 1 MHz bandwidth | C48: dBW/MHz | D48: =D44+D15-D45-D46-D47 -> -240.1572289 | E48: -243.6864102 | F48: -253.4501874 | G48: -228.5172393 | H48: -240.8436536 | I48: -225.6829928 | J48: -230.4013648 | K48: -242.4318678 | L48: -230.5829928 | M48: -220.582828 | N48: -231.2520389
B49: Corresponding power at the EESS receiver in the reference bandwidth for a single CDR | C49: dBW | D49: =D48+10*LOG10(D9) -> -217.146929 | E49: =E48+10*LOG10(E9) -> -220.6761102 | F49: -230.4398874 | G49: -205.5069394 | H49: -217.8333537 | I49: -202.6726928 | J49: -207.3910649 | K49: -219.4215678 | L49: -207.5726928 | M49: -197.572528 | N49: -208.2417389
B50: Number of interferers in EESS FOV on Earth's surface | D50: 1 | E50: 1 | F50: 1 | G50: 1 | H50: 1 | I50: 1 | J50: 1 | K50: 1 | L50: 1 | M50: 1 | N50: 1
B51: Corresponding received power at the EESS in the reference bandwidth within the EESS's FOV | C51: dBW | D51: =D49+10*LOG10(D50) -> -217.146929 | E51: -220.6761102 | F51: -230.4398874 | G51: -205.5069394 | H51: -217.8333537 | I51: -202.6726928 | J51: -207.3910649 | K51: -219.4215678 | L51: -207.5726928 | M51: -197.572528 | N51: -208.2417389
B52: Margin with reference to ITU-R RS.2017-0 | C52: dB | D52: =D17-D18-D51 -> 42.14692898 | E52: 45.67611021 | F52: 55.43988742 | G52: 30.50693936 | H52: 42.83335366 | I52: 27.6726928 | J52: 32.39106486 | K52: 44.42156783 | L52: 32.5726928 | M52: 22.57252802 | N52: 33.24173894
B56: Compatibility analysis between DBF-CDR in the frequency band 167-182 GHz and EESS
D58: Band of EESS: 164-167 GHz | G58: Band of EESS: 174,8-191,8 GHz
B59: Single-entry study | D59: Sensor P1 | E59: Sensor P2 (nadir) | F59: Sensor P2 (outer) | G59: MHS (nadir) | H59: MHS (outer) | I59: MWI | J59: MWS (nadir) | K59: MWS (outer) | L59: ICI | M59: AWS (nadir) | N59: AWS (outer)
B60: Sensor type | D60: Conical scan | E60: Nadir scan | F60: Nadir scan | G60: Nadir scan | H60: Nadir scan | I60: Conical scan | J60: Nadir scan | K60: Nadir scan | L60: Conical scan | M60: Nadir scan | N60: Nadir scan
B61: EESS: | C61: Units
B62: Assumed centre frequency of EESS | C62: GHz | D62: 165.5 | E62: 165.5 | F62: 165.5 | G62: 178.4 | H62: 178.4 | I62: 178.4 | J62: 178.4 | K62: 178.4 | L62: 178.4 | M62: 178.4 | N62: 178.4
B63: Wavelength of EESS | C63: m | D63: =2.99792458/D62/10 -> 0.001811434792 | E63: 0.001811434792 | F63: 0.001811434792 | G63: 0.001680450998 | H63: 0.001680450998 | I63: 0.001680450998 | J63: 0.001680450998 | K63: 0.001680450998 | L63: 0.001680450998 | M63: 0.001680450998 | N63: 0.001680450998
B64: Reference bandwidth | C64: MHz | D64: 200 | E64: 200 | F64: 200 | G64: 200 | H64: 200 | I64: 200 | J64: 200 | K64: 200 | L64: 200 | M64: 200 | N64: 200
B65: Orbit altitude | C65: km² | D65: 828 | E65: 824 | F65: 824 | G65: 822 | H65: 822 | I65: 830 | J65: 830 | K65: 830 | L65: 830 | M65: 600 | N65: 600
B66: Angle of incidence at Earth's surface (from zenith) | C66: deg | D66: 55.5 | E66: 0 | F66: 64 | G66: 0 | H66: 59 | I66: 53.3 | J66: 0 | K66: 58.5 | L66: 53.3 | M66: 0 | N66: 55.7
B67: Elevation angle at ground | C67: deg | D67: =90-D66 -> 34.5 | E67: 90 | F67: 26 | G67: 90 | H67: 31 | I67: 36.7 | J67: 90 | K67: 31.5 | L67: 36.7 | M67: 90 | N67: 34.3
B68: Off-nadir angle | C68: deg | D68: =(ASIN(SIN(D66*PI()/180)/(1+D65/6371)))*180/PI()+0.00000001 -> 46.83096782 | E68: 1e-08 | F68: 52.73661527 | G68: 1e-08 | H68: 49.39479043 | I68: 45.18299423 | J68: 1e-08 | K68: 48.96977181 | L68: 45.18299423 | M68: 1e-08 | N68: 49.02495908
B69: Slant path distance | C69: km | D69: =6371*SIN((ASIN(((6371+D65)/6371)*SIN(D68*PI()/180))*180/PI()-D68)*PI()/180)/SIN(D68*PI()/180) -> 1316.643352 | E69: 824 | F69: 1563.565476 | G69: 822 | H69: 1400.207928 | I69: 1268.117481 | J69: 830 | K69: 1398.309283 | L69: 1268.117481 | M69: 600 | N69: 980.8707785
B70: EESS antenna gain | C70: dBi | D70: 54 | E70: 43.9 | F70: 43.9 | G70: 44.8 | H70: 44.8 | I70: 56.9 | J70: 43 | K70: 43 | L70: 52 | M70: 50 | N70: 50
B71: Size of EESS FOV on Earth's surface | C71: km² | D71: 113 | E71: 254 | F71: 2083 | G71: 201 | H71: 1103 | I71: 61 | J71: 315 | K71: 1762 | L71: 164 | M71: 28 | N71: 141
B72: EESS interference criterion in the reference bandwidth (ITU-R RS.2017-0) | C72: dBW | D72: -163 | E72: -163 | F72: -163 | G72: -163 | H72: -163 | I72: -163 | J72: -163 | K72: -163 | L72: -163 | M72: -163 | N72: -163
B73: Apportionment factor | C73: dB | D73: 12 | E73: 12 | F73: 12 | G73: 12 | H73: 12 | I73: 12 | J73: 12 | K73: 12 | L73: 12 | M73: 12 | N73: 12
B75: CDR system:
B76: Conducted Tx power of CDR | C76: dBm | D76: -5 | E76: -5 | F76: -5 | G76: -5 | H76: -5 | I76: -5 | J76: -5 | K76: -5 | L76: -5 | M76: -5 | N76: -5
B77: Out-of-band unwanted emissions attenuation (if EESS victim is located in an adjacent band) | C77: dB | D77: 20 | E77: 20 | F77: 20 | G77: 0 | H77: 0 | I77: 0 | J77: 0 | K77: 0 | L77: 0 | M77: 0 | N77: 0
B78: Tx e.i.r.p. of CDR | C78: dBm | D78: =D76-D77+D83 -> -15 | E78: -15 | F78: -15 | G78: 5 | H78: 5 | I78: 5 | J78: 5 | K78: 5 | L78: 5 | M78: 5 | N78: 5
B79: Bandwidth of CDR Tx signal | C79: GHz | D79: 2.5 | E79: 2.5 | F79: 2.5 | G79: 2.5 | H79: 2.5 | I79: 2.5 | J79: 2.5 | K79: 2.5 | L79: 2.5 | M79: 2.5 | N79: 2.5
B80: Tx e.i.r.p. spectral density of CDR | C80: dBm/MHz | D80: =D78-10*LOG(D79*1000) -> -48.97940009 | E80: =E78-10*LOG(E79*1000) -> -48.97940009 | F80: -48.97940009 | G80: -28.97940009 | H80: -28.97940009 | I80: -28.97940009 | J80: -28.97940009 | K80: -28.97940009 | L80: -28.97940009 | M80: -28.97940009 | N80: -28.97940009
B81: Tx e.i.r.p. spectral density of CDR | C81: dBW/MHz | D81: =D80-30 -> -78.97940009 | E81: =E80-30 -> -78.97940009 | F81: -78.97940009 | G81: -58.97940009 | H81: -58.97940009 | I81: -58.97940009 | J81: -58.97940009 | K81: -58.97940009 | L81: -58.97940009 | M81: -58.97940009 | N81: -58.97940009
B82: Mitigation technique (e.g. activity factor, adaptive power control) | C82: dB | D82: 0 | E82: 0 | F82: 0 | G82: 0 | H82: 0 | I82: 0 | J82: 0 | K82: 0 | L82: 0 | M82: 0 | N82: 0
B83: Gain of the CDR antenna in direction of main radiation | C83: dBi | D83: 10 | E83: 10 | F83: 10 | G83: 10 | H83: 10 | I83: 10 | J83: 10 | K83: 10 | L83: 10 | M83: 10 | N83: 10
B84: Tx power spectral density of CDR without mitigation | C84: dBW/MHz | D84: =D81-D83 -> -88.97940009 | E84: =E81-E83 -> -88.97940009 | F84: -88.97940009 | G84: -68.97940009 | H84: -68.97940009 | I84: -68.97940009 | J84: -68.97940009 | K84: -68.97940009 | L84: -68.97940009 | M84: -68.97940009 | N84: -68.97940009
B85: Tx power spectral density of CDR with mitigation | C85: dBW/MHz | D85: =D81+D82-D83 -> -88.97940009 | E85: =E81+E82-E83 -> -88.97940009 | F85: -88.97940009 | G85: -68.97940009 | H85: -68.97940009 | I85: -68.97940009 | J85: -68.97940009 | K85: -68.97940009 | L85: -68.97940009 | M85: -68.97940009 | N85: -68.97940009
B87: Back lobe interference component:
B88: Max. gain of the CDR antenna backlobe | C88: dBi | D88: -5.1 | E88: -5.1 | F88: -5.1 | G88: -5.8 | H88: -5.8 | I88: -5.8 | J88: -5.8 | K88: -5.8 | L88: -5.8 | M88: -5.8 | N88: -5.8
B89: Back lobe e.i.r.p. spectral density component sent to the EESS | C89: dBW/MHz | D89: =D85+D88 -> -94.07940009 | E89: -94.07940009 | F89: -94.07940009 | G89: -74.77940009 | H89: -74.77940009 | I89: -74.77940009 | J89: -74.77940009 | K89: -74.77940009 | L89: -74.77940009 | M89: -74.77940009 | N89: -74.77940009
B91: Reflected interference component:
B92: Reflection loss on wet sand surface (with εr=8 for f>100GHz) | C92: dB | D92: 6.42 | E92: 6.42 | F92: 6.42 | G92: 6.42 | H92: 6.42 | I92: 6.42 | J92: 6.42 | K92: 6.42 | L92: 6.42 | M92: 6.42 | N92: 6.42
B93: Reflected e.i.r.p. spectral density component sent to the EESS | C93: dBW/MHz | D93: =D81+D82-D92 -> -85.39940009 | E93: =E81+E82-E92 -> -85.39940009 | F93: -85.39940009 | G93: -65.39940009 | H93: -65.39940009 | I93: -65.39940009 | J93: -65.39940009 | K93: -65.39940009 | L93: -65.39940009 | M93: -65.39940009 | N93: -65.39940009
B95: Free space loss between CDR and EESS | C95: dB | D95: =20*LOG10(4*PI()*D69*1000/D63) -> 199.2131062 | E95: 195.1422874 | F95: 200.7060646 | G95: 195.7731166 | H95: 200.3995309 | I95: 199.53887 | J95: 195.8572421 | K95: 200.387745 | L95: 199.53887 | M95: 193.0387052 | N95: 197.3079162
B96: Back lobe e.i.r.p. spectral density component at the EESS antenna | C96: dBW/MHz | D96: =D89-D95 -> -293.2925063 | E96: -289.2216875 | F96: -294.7854647 | G96: -270.5525167 | H96: -275.178931 | I96: -274.3182701 | J96: -270.6366422 | K96: -275.1671451 | L96: -274.3182701 | M96: -267.8181053 | N96: -272.0873162
B97: Reflected e.i.r.p. spectral density component at the EESS antenna | C97: dBW/MHz | D97: =D93-D95 -> -284.6125063 | E97: -280.5416875 | F97: -286.1054647 | G97: -261.1725167 | H97: -265.798931 | I97: -264.9382701 | J97: -261.2566422 | K97: -265.7871451 | L97: -264.9382701 | M97: -258.4381053 | N97: -262.7073162
B98: Total e.i.r.p. spectral density at the EESS antenna (without consideration of atmospheric loss) | C98: dBW/MHz | D98: =10*LOG10(10^(D96/10)+10^(D97/10)) -> -284.0605625 | E98: -279.9897437 | F98: -285.5535209 | G98: -260.6984231 | H98: -265.3248374 | I98: -264.4641766 | J98: -260.7825486 | K98: -265.3130516 | L98: -264.4641766 | M98: -257.9640118 | N98: -262.2332227
B99: Atmospheric loss (according to contribution WI71#5-4) | C99: dB | D99: 5.7 | E99: 3.2 | F99: 7.4 | G99: 8.3 | H99: 16 | I99: 13.8 | J99: 8.3 | K99: 15.8 | L99: 13.8 | M99: 8.3 | N99: 14.7
B100: Polarisation mismatch loss | C100: dB | D100: 3 | E100: 3 | F100: 3 | G100: 3 | H100: 3 | I100: 3 | J100: 3 | K100: 3 | L100: 3 | M100: 3 | N100: 3
B101: Indoor-outdoor attenuation (according to clause 2.3 in the Report) | C101: dB | D101: 0 | E101: 0 | F101: 0 | G101: 0 | H101: 0 | I101: 0 | J101: 0 | K101: 0 | L101: 0 | M101: 0 | N101: 0
B102: Power spectral density at the EESS receiver in a 1 MHz bandwidth | C102: dBW/MHz | D102: =D98+D70-D99-D100-D101 -> -238.7605625 | E102: -242.2897437 | F102: -252.0535209 | G102: -227.1984231 | H102: -239.5248374 | I102: -224.3641766 | J102: -229.0825486 | K102: -241.1130516 | L102: -229.2641766 | M102: -219.2640118 | N102: -229.9332227
B103: Corresponding power at the EESS receiver in the reference bandwidth for a single CDR | C103: dBW | D103: =D102+10*LOG10(D64) -> -215.7502625 | E103: -219.2794437 | F103: -229.0432209 | G103: -204.1881232 | H103: -216.5145375 | I103: -201.3538766 | J103: -206.0722487 | K103: -218.1027517 | L103: -206.2538766 | M103: -196.2537118 | N103: -206.9229228
B104: Number of interferers in EESS FOV on Earth's surface | D104: 1 | E104: 1 | F104: 1 | G104: 1 | H104: 1 | I104: 1 | J104: 1 | K104: 1 | L104: 1 | M104: 1 | N104: 1
B105: Corresponding received power at the EESS in a bandwidth of 200MHz (Nadir, Conical) and 10MHz (Limb) within the EESS's FOV | C105: dBW | D105: =D103+10*LOG10(D104) -> -215.7502625 | E105: -219.2794437 | F105: -229.0432209 | G105: -204.1881232 | H105: -216.5145375 | I105: -201.3538766 | J105: -206.0722487 | K105: -218.1027517 | L105: -206.2538766 | M105: -196.2537118 | N105: -206.9229228
B106: Margin with reference to ITU-R RS.2017-0 | C106: dB | D106: =D72-D73-D105 -> 40.75026249 | E106: 44.27944372 | F106: 54.04322094 | G106: 29.18812319 | H106: 41.51453748 | I106: 26.35387663 | J106: 31.07224868 | K106: 43.10275166 | L106: 31.25387663 | M106: 21.25371184 | N106: 31.92292277

Sheet EESS 167-182GHz (aggregate)
B1: Compatibility analysis between M-CDR and PA-CDR in the frequency band 167-182 GHz and EESS
B4: Aggregate interference study | D4: Band of EESS: 164-167 GHz | G4: Band of EESS: 174,8-191,8 GHz
B5: Victim EESS system | D5: Sensor P1 | E5: Sensor P2 (nadir) | F5: Sensor P2 (outer) | G5: MHS (nadir) | H5: MHS (outer) | I5: MWI | J5: MWS (nadir) | K5: MWS (outer) | L5: ICI | M5: AWS (nadir) | N5: AWS (outer)
B6: Sensor type | D6: Conical scan | E6: Nadir scan | F6: Nadir scan | G6: Nadir scan | H6: Nadir scan | I6: Conical scan | J6: Nadir scan | K6: Nadir scan | L6: Conical scan | M6: Nadir scan | N6: Nadir scan
B7: EESS: | C7: Units
B8: Assumed centre frequency of EESS | C8: GHz | D8: 165.5 | E8: 165.5 | F8: 165.5 | G8: 178.4 | H8: 178.4 | I8: 178.4 | J8: 178.4 | K8: 178.4 | L8: 178.4 | M8: 178.4 | N8: 178.4
B9: Wavelength of EESS | C9: m | D9: =2.99792458/D8/10 -> 0.001811434792 | E9: 0.001811434792 | F9: 0.001811434792 | G9: 0.001680450998 | H9: 0.001680450998 | I9: 0.001680450998 | J9: 0.001680450998 | K9: 0.001680450998 | L9: 0.001680450998 | M9: 0.001680450998 | N9: 0.001680450998
B10: Reference bandwidth | C10: MHz | D10: 200 | E10: 200 | F10: 200 | G10: 200 | H10: 200 | I10: 200 | J10: 200 | K10: 200 | L10: 200 | M10: 200 | N10: 200
B11: Orbit altitude | C11: km² | D11: 828 | E11: 824 | F11: 824 | G11: 822 | H11: 822 | I11: 830 | J11: 830 | K11: 830 | L11: 830 | M11: 600 | N11: 600
B12: Angle of incidence at Earth's surface (from zenith) | C12: deg | D12: 55.5 | E12: 0 | F12: 64 | G12: 0 | H12: 59 | I12: 53.3 | J12: 0 | K12: 58.5 | L12: 53.3 | M12: 0 | N12: 55.7
B13: Elevation angle at ground | C13: deg | D13: =90-D12 -> 34.5 | E13: 90 | F13: 26 | G13: 90 | H13: 31 | I13: 36.7 | J13: 90 | K13: 31.5 | L13: 36.7 | M13: 90 | N13: 34.3
B14: Off-nadir angle | C14: deg | D14: =(ASIN(SIN(D12*PI()/180)/(1+D11/6371)))*180/PI()+0.00000001 -> 46.83096782 | E14: 1e-08 | F14: 52.73661527 | G14: 1e-08 | H14: 49.39479043 | I14: 45.18299423 | J14: 1e-08 | K14: 48.96977181 | L14: 45.18299423 | M14: 1e-08 | N14: 49.02495908
B15: Slant path distance | C15: km | D15: =6371*SIN((ASIN(((6371+D11)/6371)*SIN(D14*PI()/180))*180/PI()-D14)*PI()/180)/SIN(D14*PI()/180) -> 1316.643352 | E15: 824 | F15: 1563.565476 | G15: 822 | H15: 1400.207928 | I15: 1268.117481 | J15: 830 | K15: 1398.309283 | L15: 1268.117481 | M15: 600 | N15: 980.8707785
B16: EESS antenna gain | C16: dBi | D16: 54 | E16: 43.9 | F16: 43.9 | G16: 44.8 | H16: 44.8 | I16: 56.9 | J16: 43 | K16: 43 | L16: 52 | M16: 50 | N16: 50
B17: Size of EESS FOV on Earth's surface | C17: km² | D17: 113 | E17: 254 | F17: 2083 | G17: 201 | H17: 1103 | I17: 61 | J17: 315 | K17: 1762 | L17: 164 | M17: 28 | N17: 141
B18: EESS interference criterion in the reference bandwidth (ITU-R RS.2017-0) | C18: dBW | D18: -163 | E18: -163 | F18: -163 | G18: -163 | H18: -163 | I18: -163 | J18: -163 | K18: -163 | L18: -163 | M18: -163 | N18: -163
B19: Apportionment factor | C19: dB | D19: 12 | E19: 12 | F19: 12 | G19: 12 | H19: 12 | I19: 12 | J19: 12 | K19: 12 | L19: 12 | M19: 12 | N19: 12
B21: CDR system:
B22: Conducted Tx power of CDR | C22: dBm | D22: -2 | E22: -2 | F22: -2 | G22: -2 | H22: -2 | I22: -2 | J22: -2 | K22: -2 | L22: -2 | M22: -2 | N22: -2
B23: Out-of-band unwanted emissions attenuation (if EESS victim is located in an adjacent band) | C23: dB | D23: 20 | E23: 20 | F23: 20 | G23: 0 | H23: 0 | I23: 0 | J23: 0 | K23: 0 | L23: 0 | M23: 0 | N23: 0
B24: Tx e.i.r.p. of CDR | C24: dBm | D24: =D22-D23+D29 -> 10 | E24: 10 | F24: 10 | G24: 30 | H24: 30 | I24: 30 | J24: 30 | K24: 30 | L24: 30 | M24: 30 | N24: 30
B25: Bandwidth of CDR Tx signal | C25: GHz | D25: 8 | E25: 8 | F25: 8 | G25: 8 | H25: 8 | I25: 8 | J25: 8 | K25: 8 | L25: 8 | M25: 8 | N25: 8
B26: Tx e.i.r.p. spectral density of CDR | C26: dBm/MHz | D26: =D24-10*LOG(D25*1000) -> -29.03089987 | E26: =E24-10*LOG(E25*1000) -> -29.03089987 | F26: -29.03089987 | G26: -9.03089987 | H26: -9.03089987 | I26: -9.03089987 | J26: -9.03089987 | K26: -9.03089987 | L26: -9.03089987 | M26: -9.03089987 | N26: -9.03089987
B27: Tx e.i.r.p. spectral density of CDR | C27: dBW/MHz | D27: =D26-30 -> -59.03089987 | E27: =E26-30 -> -59.03089987 | F27: -59.03089987 | G27: -39.03089987 | H27: -39.03089987 | I27: -39.03089987 | J27: -39.03089987 | K27: -39.03089987 | L27: -39.03089987 | M27: -39.03089987 | N27: -39.03089987
B28: Mitigation technique (e.g. activity factor, adaptive power control) | C28: dB | D28: 0 | E28: 0 | F28: 0 | G28: 0 | H28: 0 | I28: 0 | J28: 0 | K28: 0 | L28: 0 | M28: 0 | N28: 0
B29: Gain of the CDR antenna in direction of main radiation | C29: dBi | D29: 32 | E29: 32 | F29: 32 | G29: 32 | H29: 32 | I29: 32 | J29: 32 | K29: 32 | L29: 32 | M29: 32 | N29: 32
B30: Tx power spectral density of CDR without mitigation | C30: dBW/MHz | D30: =D27-D29 -> -91.03089987 | E30: =E27-E29 -> -91.03089987 | F30: -91.03089987 | G30: -71.03089987 | H30: -71.03089987 | I30: -71.03089987 | J30: -71.03089987 | K30: -71.03089987 | L30: -71.03089987 | M30: -71.03089987 | N30: -71.03089987
B31: Tx power spectral density of CDR with mitigation | C31: dBW/MHz | D31: =D27+D28-D29 -> -91.03089987 | E31: =E27+E28-E29 -> -91.03089987 | F31: -91.03089987 | G31: -71.03089987 | H31: -71.03089987 | I31: -71.03089987 | J31: -71.03089987 | K31: -71.03089987 | L31: -71.03089987 | M31: -71.03089987 | N31: -71.03089987
B33: Reflected interference component:
B34: Reduction of e.i.r.p. due to spatial mitigation (See Report clause 2.2.6.6) | C34: dBi | D34: -28.6 | E34: -28.6 | F34: -28.6 | G34: -28.6 | H34: -28.6 | I34: -28.6 | J34: -28.6 | K34: -28.6 | L34: -28.6 | M34: -28.6 | N34: -28.6
B35: Additional losses for the scattered component | C35: dB | D35: -10 | E35: -10 | F35: -10 | G35: -10 | H35: -10 | I35: -10 | J35: -10 | K35: -10 | L35: -10 | M35: -10 | N35: -10
B36: Average dielectric reflection attenuation at sand slope | C36: dB | D36: -20 | E36: -20 | F36: -20 | G36: -20 | H36: -20 | I36: -20 | J36: -20 | K36: -20 | L36: -20 | M36: -20 | N36: -20
B37: Reflected e.i.r.p. spectral density component sent to the EESS | C37: dBW/MHz | D37: =D27+D28+D34+D35+D36 -> -117.6308999 | E37: -117.6308999 | F37: -117.6308999 | G37: -97.63089987 | H37: -97.63089987 | I37: -97.63089987 | J37: -97.63089987 | K37: -97.63089987 | L37: -97.63089987 | M37: -97.63089987 | N37: -97.63089987
B39: Back lobe/side lobe interference component:
B40: Antenna side-lobe gain >45° offset angle | C40: dBi | D40: 4 | E40: 4 | F40: 4 | G40: 4 | H40: 4 | I40: 4 | J40: 4 | K40: 4 | L40: 4 | M40: 4 | N40: 4
B41: Back lobe/side lobe e.i.r.p. spectral density component sent to the EESS | C41: dBW/MHz | D41: =D31+D40 -> -87.03089987 | E41: -87.03089987 | F41: -87.03089987 | G41: -67.03089987 | H41: -67.03089987 | I41: -67.03089987 | J41: -67.03089987 | K41: -67.03089987 | L41: -67.03089987 | M41: -67.03089987 | N41: -67.03089987
B43: Free space loss between CDR and EESS | C43: dB | D43: =20*LOG10(4*PI()*D15*1000/D9) -> 199.2131062 | E43: 195.1422874 | F43: 200.7060646 | G43: 195.7731166 | H43: 200.3995309 | I43: 199.53887 | J43: 195.8572421 | K43: 200.387745 | L43: 199.53887 | M43: 193.0387052 | N43: 197.3079162
B44: Reflected e.i.r.p. spectral density component at the EESS antenna | C44: dBW/MHz | D44: =D37-D43 -> -316.8440061 | E44: -312.7731873 | F44: -318.3369645 | G44: -293.4040164 | H44: -298.0304307 | I44: -297.1697699 | J44: -293.4881419 | K44: -298.0186449 | L44: -297.1697699 | M44: -290.6696051 | N44: -294.938816
B45: Back lobe e.i.r.p. spectral density component at the EESS antenna | C45: dBW/MHz | D45: =D41-D43 -> -286.2440061 | E45: -282.1731873 | F45: -287.7369645 | G45: -262.8040164 | H45: -267.4304307 | I45: -266.5697699 | J45: -262.8881419 | K45: -267.4186449 | L45: -266.5697699 | M45: -260.0696051 | N45: -264.338816
B46: Total e.i.r.p. spectral density at the EESS antenna (without consideration of atmospheric loss) | C46: dBW/MHz | D46: =10*LOG10(10^(D44/10)+10^(D45/10)) -> -286.2402252 | E46: =10*LOG10(10^(E44/10)+10^(E45/10)) -> -282.1694064 | F46: =10*LOG10(10^(F44/10)+10^(F45/10)) -> -287.7331836 | G46: -262.8002355 | H46: =10*LOG10(10^(H44/10)+10^(H45/10)) -> -267.4266498 | I46: -266.565989 | J46: -262.884361 | K46: -267.414864 | L46: -266.565989 | M46: -260.0658242 | N46: -264.3350351
B47: Atmospheric loss (according to contribution SE24(20)063_rev1) | C47: dB | D47: 5.7 | E47: 3.2 | F47: 7.4 | G47: 8.3 | H47: 16 | I47: 13.8 | J47: 8.3 | K47: 15.8 | L47: 13.8 | M47: 8.3 | N47: 14.7
B48: Polarisation mismatch loss | C48: dB | D48: 3 | E48: 3 | F48: 3 | G48: 3 | H48: 3 | I48: 3 | J48: 3 | K48: 3 | L48: 3 | M48: 3 | N48: 3
B49: Indoor-outdoor attenuation (according to clause 2.3 in the Report) | C49: dB | D49: =VLOOKUP(D13,'Indoor outdoor attenuation'!data_1,9) -> 22.41623389 | E49: =VLOOKUP(E13,'Indoor outdoor attenuation'!data_1,9) -> 26.61562776 | F49: =VLOOKUP(F13,'Indoor outdoor attenuation'!data_1,9) -> 22.92497143 | G49: =VLOOKUP(G13,'Indoor outdoor attenuation'!data_1,9) -> 26.61562776 | H49: =VLOOKUP(H13,'Indoor outdoor attenuation'!data_1,9) -> 22.52212379 | I49: =VLOOKUP(I13,'Indoor outdoor attenuation'!data_1,9) -> 22.31623389 | J49: =VLOOKUP(J13,'Indoor outdoor attenuation'!data_1,9) -> 26.61562776 | K49: =VLOOKUP(K13,'Indoor outdoor attenuation'!data_1,9) -> 22.52212379 | L49: =VLOOKUP(L13,'Indoor outdoor attenuation'!data_1,9) -> 22.31623389 | M49: =VLOOKUP(M13,'Indoor outdoor attenuation'!data_1,9) -> 26.61562776 | N49: =VLOOKUP(N13,'Indoor outdoor attenuation'!data_1,9) -> 22.41623389
B50: Power spectral density at the EESS receiver in a 1 MHz bandwidth | C50: dBW/MHz | D50: =D46+D16-D47-D48 -> -240.9402252 | E50: -244.4694064 | F50: -254.2331836 | G50: -229.3002355 | H50: -241.6266498 | I50: -226.465989 | J50: -231.184361 | K50: -243.214864 | L50: -231.365989 | M50: -221.3658242 | N50: -232.0350351
B51: Corresponding power at the EESS receiver in the reference bandwidth for a single CDR | C51: dBW | D51: =D50+10*LOG10(D10) -> -217.9299252 | E51: -221.4591064 | F51: -231.2228836 | G51: -206.2899356 | H51: -218.6163499 | I51: -203.455689 | J51: -208.1740611 | K51: -220.2045641 | L51: -208.355689 | M51: -198.3555242 | N51: -209.0247352
B52: Uniform CDR device density (with uniform distribution over Europe) | C52: 1/km² | D52: ='Market Size'!H20 -> 0.0001140359213 | E52: ='Market Size'!H20 -> 0.0001140359213 | F52: ='Market Size'!H20 -> 0.0001140359213 | G52: ='Market Size'!H20 -> 0.0001140359213 | H52: ='Market Size'!H20 -> 0.0001140359213 | I52: ='Market Size'!H20 -> 0.0001140359213 | J52: ='Market Size'!H20 -> 0.0001140359213 | K52: ='Market Size'!H20 -> 0.0001140359213 | L52: ='Market Size'!H20 -> 0.0001140359213 | M52: ='Market Size'!H20 -> 0.0001140359213 | N52: ='Market Size'!H20 -> 0.0001140359213
B53: Aggregate CDR device density (uniform distribution weighted with factor 75; acc. to annex 9 in the Report) | C53: 1/km² | D53: =D52*75 -> 0.008552694099 | E53: 0.008552694099 | F53: 0.008552694099 | G53: 0.008552694099 | H53: 0.008552694099 | I53: 0.008552694099 | J53: 0.008552694099 | K53: =K52*75 -> 0.008552694099 | L53: 0.008552694099 | M53: 0.008552694099 | N53: =N52*75 -> 0.008552694099
B54: Number of aggregate CDR devices in the IFOV and active in the reference BW of the satellite | D54: =ROUNDUP(D53*D17,0) -> 1 | E54: 3 | F54: 18 | G54: 2 | H54: 10 | I54: 1 | J54: 3 | K54: 16 | L54: 2 | M54: 1 | N54: 2
B55: Percentage of CDRs operated indoors | C55: % | D55: 90 | E55: 90 | F55: 90 | G55: 90 | H55: 90 | I55: 90 | J55: 90 | K55: 90 | L55: 90 | M55: 90 | N55: 90
B56: Resulting total number of outdoor interferers in EESS FOV on Earth's surface | D56: =ROUNDUP((D55/100)*D54*10^-(D49/10)+((1-D55/100)*D54),0) -> 1 | E56: 1 | F56: 2 | G56: 1 | H56: 2 | I56: 1 | J56: 1 | K56: 2 | L56: 1 | M56: 1 | N56: 1
B57: Corresponding received power at the EESS in the reference bandwidth within the EESS's FOV | C57: dBW | D57: =D51+10*LOG10(D56) -> -217.9299252 | E57: -221.4591064 | F57: -228.2125837 | G57: -206.2899356 | H57: -215.6060499 | I57: -203.455689 | J57: -208.1740611 | K57: -217.1942641 | L57: -208.355689 | M57: -198.3555242 | N57: -209.0247352
B58: Margin with reference to ITU-R RS.2017-0 | C58: dB | D58: =D18-D19-D57 -> 42.92992521 | E58: 46.45910643 | F58: 53.21258369 | G58: 31.28993559 | H58: 40.60604992 | I58: 28.45568903 | J58: 33.17406108 | K58: 42.1942641 | L58: 33.35568903 | M58: 23.35552424 | N58: 34.02473517
B63: Compatibility analysis between DBF-CDR in the frequency band 167-182 GHz and EESS
B66: Aggregate interference study | D66: Band of EESS: 164-167 GHz | G66: Band of EESS: 174,8-191,8 GHz
B67: Victim EESS system | D67: Sensor P1 | E67: Sensor P2 (nadir) | F67: Sensor P2 (outer) | G67: MHS (nadir) | H67: MHS (outer) | I67: MWI | J67: MWS (nadir) | K67: MWS (outer) | L67: ICI | M67: AWS (nadir) | N67: AWS (outer)
B68: Sensor type | D68: Conical scan | E68: Nadir scan | F68: Nadir scan | G68: Nadir scan | H68: Nadir scan | I68: Conical scan | J68: Nadir scan | K68: Nadir scan | L68: Conical scan | M68: Nadir scan | N68: Nadir scan
B69: EESS: | C69: Units
B70: Assumed centre frequency of EESS | C70: GHz | D70: 165.5 | E70: 165.5 | F70: 165.5 | G70: 178.4 | H70: 178.4 | I70: 178.4 | J70: 178.4 | K70: 178.4 | L70: 178.4 | M70: 178.4 | N70: 178.4
B71: Wavelength of EESS | C71: m | D71: =2.99792458/D70/10 -> 0.001811434792 | E71: 0.001811434792 | F71: 0.001811434792 | G71: 0.001680450998 | H71: 0.001680450998 | I71: 0.001680450998 | J71: 0.001680450998 | K71: 0.001680450998 | L71: 0.001680450998 | M71: 0.001680450998 | N71: 0.001680450998
B72: Reference bandwidth | C72: MHz | D72: 200 | E72: 200 | F72: 200 | G72: 200 | H72: 200 | I72: 200 | J72: 200 | K72: 200 | L72: 200 | M72: 200 | N72: 200
B73: Orbit altitude | C73: km² | D73: 828 | E73: 824 | F73: 824 | G73: 822 | H73: 822 | I73: 830 | J73: 830 | K73: 830 | L73: 830 | M73: 600 | N73: 600
B74: Angle of incidence at Earth's surface (from zenith) | C74: deg | D74: 55.5 | E74: 0 | F74: 64 | G74: 0 | H74: 59 | I74: 53.3 | J74: 0 | K74: 58.5 | L74: 53.3 | M74: 0 | N74: 55.7
B75: Elevation angle at ground | C75: deg | D75: =90-D74 -> 34.5 | E75: 90 | F75: 26 | G75: 90 | H75: 31 | I75: 36.7 | J75: 90 | K75: 31.5 | L75: 36.7 | M75: 90 | N75: 34.3
B76: Off-nadir angle | C76: deg | D76: =(ASIN(SIN(D74*PI()/180)/(1+D73/6371)))*180/PI()+0.00000001 -> 46.83096782 | E76: 1e-08 | F76: 52.73661527 | G76: 1e-08 | H76: 49.39479043 | I76: 45.18299423 | J76: 1e-08 | K76: 48.96977181 | L76: 45.18299423 | M76: 1e-08 | N76: 49.02495908
B77: Slant path distance | C77: km | D77: =6371*SIN((ASIN(((6371+D73)/6371)*SIN(D76*PI()/180))*180/PI()-D76)*PI()/180)/SIN(D76*PI()/180) -> 1316.643352 | E77: 824 | F77: 1563.565476 | G77: 822 | H77: 1400.207928 | I77: 1268.117481 | J77: 830 | K77: 1398.309283 | L77: 1268.117481 | M77: 600 | N77: 980.8707785
B78: EESS antenna gain | C78: dBi | D78: 54 | E78: 43.9 | F78: 43.9 | G78: 44.8 | H78: 44.8 | I78: 56.9 | J78: 43 | K78: 43 | L78: 52 | M78: 50 | N78: 50
B79: Size of EESS FOV on Earth's surface | C79: km² | D79: 113 | E79: 254 | F79: 2083 | G79: 201 | H79: 1103 | I79: 61 | J79: 315 | K79: 1762 | L79: 164 | M79: 28 | N79: 141
B80: EESS interference criterion in the reference bandwidth (ITU-R RS.2017-0) | C80: dBW | D80: -163 | E80: -163 | F80: -163 | G80: -163 | H80: -163 | I80: -163 | J80: -163 | K80: -163 | L80: -163 | M80: -163 | N80: -163
B81: Apportionment factor | C81: dB | D81: 12 | E81: 12 | F81: 12 | G81: 12 | H81: 12 | I81: 12 | J81: 12 | K81: 12 | L81: 12 | M81: 12 | N81: 12
B83: CDR system:
B84: Conducted Tx power of CDR | C84: dBm | D84: -5 | E84: -5 | F84: -5 | G84: -5 | H84: -5 | I84: -5 | J84: -5 | K84: -5 | L84: -5 | M84: -5 | N84: -5
B85: Out-of-band unwanted emissions attenuation (if EESS victim is located in an adjacent band) | C85: dB | D85: 20 | E85: 20 | F85: 20 | G85: 0 | H85: 0 | I85: 0 | J85: 0 | K85: 0 | L85: 0 | M85: 0 | N85: 0
B86: Tx e.i.r.p. of CDR | C86: dBm | D86: =D84-D85+D91 -> -15 | E86: -15 | F86: -15 | G86: 5 | H86: 5 | I86: 5 | J86: 5 | K86: 5 | L86: 5 | M86: 5 | N86: 5
B87: Bandwidth of CDR Tx signal | C87: GHz | D87: 15 | E87: 2.5 | F87: 2.5 | G87: 2.5 | H87: 2.5 | I87: 2.5 | J87: 2.5 | K87: 2.5 | L87: 2.5 | M87: 2.5 | N87: 2.5
B88: Tx e.i.r.p. spectral density of CDR | C88: dBm/MHz | D88: =D86-10*LOG(D87*1000) -> -56.76091259 | E88: =E86-10*LOG(E87*1000) -> -48.97940009 | F88: -48.97940009 | G88: -28.97940009 | H88: -28.97940009 | I88: -28.97940009 | J88: -28.97940009 | K88: -28.97940009 | L88: -28.97940009 | M88: -28.97940009 | N88: -28.97940009
B89: Tx e.i.r.p. spectral density of CDR | C89: dBW/MHz | D89: =D88-30 -> -86.76091259 | E89: =E88-30 -> -78.97940009 | F89: -78.97940009 | G89: -58.97940009 | H89: -58.97940009 | I89: -58.97940009 | J89: -58.97940009 | K89: -58.97940009 | L89: -58.97940009 | M89: -58.97940009 | N89: -58.97940009
B90: Mitigation technique (e.g. activity factor, adaptive power control) | C90: dB | D90: 0 | E90: 0 | F90: 0 | G90: 0 | H90: 0 | I90: 0 | J90: 0 | K90: 0 | L90: 0 | M90: 0 | N90: 0
B91: Gain of the CDR antenna in direction of main radiation | C91: dBi | D91: 10 | E91: 10 | F91: 10 | G91: 10 | H91: 10 | I91: 10 | J91: 10 | K91: 10 | L91: 10 | M91: 10 | N91: 10
B92: Tx power spectral density of CDR without mitigation | C92: dBW/MHz | D92: =D89-D91 -> -96.76091259 | E92: =E89-E91 -> -88.97940009 | F92: -88.97940009 | G92: -68.97940009 | H92: -68.97940009 | I92: -68.97940009 | J92: -68.97940009 | K92: -68.97940009 | L92: -68.97940009 | M92: -68.97940009 | N92: -68.97940009
B93: Tx power spectral density of CDR with mitigation | C93: dBW/MHz | D93: =D89+D90-D91 -> -96.76091259 | E93: =E89+E90-E91 -> -88.97940009 | F93: -88.97940009 | G93: -68.97940009 | H93: -68.97940009 | I93: -68.97940009 | J93: -68.97940009 | K93: -68.97940009 | L93: -68.97940009 | M93: -68.97940009 | N93: -68.97940009
B95: Back lobe interference component:
B96: Max. gain of the CDR antenna backlobe | C96: dBi | D96: -5.1 | E96: -5.1 | F96: -5.1 | G96: -5.8 | H96: -5.8 | I96: -5.8 | J96: -5.8 | K96: -5.8 | L96: -5.8 | M96: -5.8 | N96: -5.8
B97: Back lobe e.i.r.p. spectral density component sent to the EESS | C97: dBW/MHz | D97: =D93+D96 -> -101.8609126 | E97: -94.07940009 | F97: -94.07940009 | G97: -74.77940009 | H97: -74.77940009 | I97: -74.77940009 | J97: -74.77940009 | K97: -74.77940009 | L97: -74.77940009 | M97: -74.77940009 | N97: -74.77940009
B99: Scattered/reflected interference component:
B100: Additional losses for the scattered component | C100: dB | D100: -10 | E100: -10 | F100: -10 | G100: -10 | H100: -10 | I100: -10 | J100: -10 | K100: -10 | L100: -10 | M100: -10 | N100: -10
B101: Average dielectric reflection attenuation at sand slope | C101: dB | D101: -20 | E101: -20 | F101: -20 | G101: -20 | H101: -20 | I101: -20 | J101: -20 | K101: -20 | L101: -20 | M101: -20 | N101: -20
B102: Scattered/reflected e.i.r.p. spectral density component sent to the EESS | C102: dBW/MHz | D102: =D89+D90+D100+D101 -> -116.7609126 | E102: -108.9794001 | F102: -108.9794001 | G102: -88.97940009 | H102: -88.97940009 | I102: -88.97940009 | J102: -88.97940009 | K102: -88.97940009 | L102: -88.97940009 | M102: -88.97940009 | N102: -88.97940009
B104: Free space loss between CDR and EESS | C104: dB | D104: =20*LOG10(4*PI()*D77*1000/D71) -> 199.2131062 | E104: 195.1422874 | F104: 200.7060646 | G104: 195.7731166 | H104: 200.3995309 | I104: 199.53887 | J104: 195.8572421 | K104: 200.387745 | L104: 199.53887 | M104: 193.0387052 | N104: 197.3079162
B105: Back lobe e.i.r.p. spectral density component at the EESS antenna | C105: dBW/MHz | D105: =D97-D104 -> -301.0740188 | E105: -289.2216875 | F105: -294.7854647 | G105: -270.5525167 | H105: -275.178931 | I105: -274.3182701 | J105: -270.6366422 | K105: -275.1671451 | L105: -274.3182701 | M105: -267.8181053 | N105: -272.0873162
B106: Reflected e.i.r.p. spectral density component at the EESS antenna | C106: dBW/MHz | D106: =D102-D104 -> -315.9740188 | E106: -304.1216875 | F106: -309.6854647 | G106: -284.7525167 | H106: -289.378931 | I106: -288.5182701 | J106: -284.8366422 | K106: -289.3671451 | L106: -288.5182701 | M106: -282.0181053 | N106: -286.2873162
B107: Total e.i.r.p. spectral density at the EESS antenna (without consideration of atmospheric loss) | C107: dBW/MHz | D107: =10*LOG10(10^(D105/10)+10^(D106/10)) -> -300.9357098 | E107: -289.0833785 | F107: -294.6471557 | G107: -270.3904639 | H107: -275.0168782 | I107: -274.1562173 | J107: -270.4745894 | K107: -275.0050924 | L107: -274.1562173 | M107: -267.6560525 | N107: -271.9252635
B108: Atmospheric loss (according to contribution SE24(20)063_rev1) | C108: dB | D108: 5.7 | E108: 3.2 | F108: 7.4 | G108: 8.3 | H108: 16 | I108: 13.8 | J108: 8.3 | K108: 15.8 | L108: 13.8 | M108: 8.3 | N108: 14.7
B109: Polarisation mismatch loss | C109: dB | D109: 3 | E109: 3 | F109: 3 | G109: 3 | H109: 3 | I109: 3 | J109: 3 | K109: 3 | L109: 3 | M109: 3 | N109: 3
B110: Indoor-outdoor attenuation (according to clause 2.3 in the Report) | C110: dB | D110: =VLOOKUP(D75,'Indoor outdoor attenuation'!data_1,9) -> 22.41623389 | E110: =VLOOKUP(E75,'Indoor outdoor attenuation'!data_1,9) -> 26.61562776 | F110: =VLOOKUP(F75,'Indoor outdoor attenuation'!data_1,9) -> 22.92497143 | G110: =VLOOKUP(G75,'Indoor outdoor attenuation'!data_1,9) -> 26.61562776 | H110: =VLOOKUP(H75,'Indoor outdoor attenuation'!data_1,9) -> 22.52212379 | I110: =VLOOKUP(I75,'Indoor outdoor attenuation'!data_1,9) -> 22.31623389 | J110: =VLOOKUP(J75,'Indoor outdoor attenuation'!data_1,9) -> 26.61562776 | K110: =VLOOKUP(K75,'Indoor outdoor attenuation'!data_1,9) -> 22.52212379 | L110: =VLOOKUP(L75,'Indoor outdoor attenuation'!data_1,9) -> 22.31623389 | M110: =VLOOKUP(M75,'Indoor outdoor attenuation'!data_1,9) -> 26.61562776 | N110: =VLOOKUP(N75,'Indoor outdoor attenuation'!data_1,9) -> 22.41623389
B111: Power spectral density at the EESS receiver in a 1 MHz bandwidth | C111: dBW/MHz | D111: =D107+D78-D108-D109 -> -255.6357098 | E111: -251.3833785 | F111: -261.1471557 | G111: -236.8904639 | H111: -249.2168782 | I111: -234.0562173 | J111: -238.7745894 | K111: -250.8050924 | L111: -238.9562173 | M111: -228.9560525 | N111: -239.6252635
B112: Corresponding power at the EESS receiver in the reference bandwidth for a single CDR | C112: dBW | D112: =D111+10*LOG10(D72) -> -232.6254098 | E112: -228.3730785 | F112: -238.1368557 | G112: -213.8801639 | H112: -226.2065782 | I112: -211.0459174 | J112: -215.7642894 | K112: -227.7947924 | L112: -215.9459174 | M112: -205.9457526 | N112: -216.6149635
B113: Uniform CDR device density (with uniform distribution over Europe) | C113: 1/km² | D113: ='Market Size'!H20 -> 0.0001140359213 | E113: ='Market Size'!H20 -> 0.0001140359213 | F113: ='Market Size'!H20 -> 0.0001140359213 | G113: ='Market Size'!H20 -> 0.0001140359213 | H113: ='Market Size'!H20 -> 0.0001140359213 | I113: ='Market Size'!H20 -> 0.0001140359213 | J113: ='Market Size'!H20 -> 0.0001140359213 | K113: ='Market Size'!H20 -> 0.0001140359213 | L113: ='Market Size'!H20 -> 0.0001140359213 | M113: ='Market Size'!H20 -> 0.0001140359213 | N113: ='Market Size'!H20 -> 0.0001140359213
B114: Aggregate CDR device density (uniform distribution weighted with factor 75; acc. to annex 9 in the Report) | C114: 1/km² | D114: =D113*75 -> 0.008552694099 | E114: =E113*75 -> 0.008552694099 | F114: 0.008552694099 | G114: 0.008552694099 | H114: 0.008552694099 | I114: 0.008552694099 | J114: 0.008552694099 | K114: 0.008552694099 | L114: 0.008552694099 | M114: 0.008552694099 | N114: =N113*75 -> 0.008552694099
B115: Number of aggregate CDR devices in the IFOV and active in the reference BW of the satellite | D115: =ROUNDUP(D114*D79,0) -> 1 | E115: 3 | F115: 18 | G115: 2 | H115: 10 | I115: 1 | J115: 3 | K115: 16 | L115: 2 | M115: 1 | N115: 2
B116: Percentage of CDRs operated indoors | C116: % | D116: 90 | E116: 90 | F116: 90 | G116: 90 | H116: 90 | I116: 90 | J116: 90 | K116: 90 | L116: 90 | M116: 90 | N116: 90
B117: Resulting total number of outdoor interferers in EESS FOV on Earth's surface | D117: =ROUNDUP((D116/100)*D115*10^-(D110/10)+((1-D116/100)*D115),0) -> 1 | E117: 1 | F117: 2 | G117: 1 | H117: 2 | I117: 1 | J117: 1 | K117: 2 | L117: 1 | M117: 1 | N117: 1
B118: Corresponding received power at the EESS in the reference bandwidth within the EESS's FOV | C118: dBW | D118: =D112+10*LOG10(D117) -> -232.6254098 | E118: -228.3730785 | F118: -235.1265558 | G118: -213.8801639 | H118: -223.1962783 | I118: -211.0459174 | J118: -215.7642894 | K118: -224.7844924 | L118: -215.9459174 | M118: -205.9457526 | N118: -216.6149635
B119: Margin with reference to ITU-R RS.2017-0 | C119: dB | D119: =D80-D81-D118 -> 57.62540981 | E119: 53.37307853 | F119: 60.12655579 | G119: 38.88016393 | H119: 48.19627827 | I119: 36.04591737 | J119: 40.76428942 | K119: 49.78449244 | L119: 40.94591737 | M119: 30.94575258 | N119: 41.61496351

Sheet EESS 231,5-250GHz (single)
B1: Compatibility analysis between M-CDR and PA-CDR in the frequency band 231,5-250 GHz and EESS
D3: Band of EESS: 226-231,5 GHz | F3: Band of EESS: 239-248 GHz
B4: Single-entry study | D4: AWS (Nadir) | E4: AWS (outer) | F4: ICI | G4: AWS (Nadir) | H4: AWS (outer)
B5: Sensor type | D5: Nadir scan | E5: Nadir scan | F5: Conical Scan | G5: Nadir Scan | H5: Nadir Scan
B6: EESS: | C6: Units
B7: Assumed centre frequency of EESS | C7: GHz | D7: 228.75 | E7: 228.75 | F7: 243.5 | G7: 243.5 | H7: 243.5
B8: Wavelength of EESS | C8: m | D8: =2.99792458/D7/10 -> 0.001310568122 | E8: =2.99792458/E7/10 -> 0.001310568122 | F8: =2.99792458/F7/10 -> 0.001231180526 | G8: =2.99792458/G7/10 -> 0.001231180526 | H8: =2.99792458/H7/10 -> 0.001231180526
B9: Reference bandwidth | C9: MHz | D9: 200 | E9: 200 | F9: 200 | G9: 200 | H9: 200
B10: Orbit altitude | C10: km² | D10: 600 | E10: 600 | F10: 830 | G10: 600 | H10: 600
B11: Angle of incidence at Earth's surface (from zenith) | C11: deg | D11: 0 | E11: 55.7 | F11: 53.3 | G11: 0 | H11: 55.7
B12: Elevation angle at ground | C12: deg | D12: =90-D11 -> 90 | E12: =90-E11 -> 34.3 | F12: =90-F11 -> 36.7 | G12: =90-G11 -> 90 | H12: =90-H11 -> 34.3
B13: Off-nadir angle | C13: deg | D13: =(ASIN(SIN(D11*PI()/180)/(1+D10/6371)))*180/PI()+0.00000001 -> 1e-08 | E13: 49.02495908 | F13: 45.18299423 | G13: 1e-08 | H13: 49.02495908
B14: Slant path distance | C14: km | D14: =6371*SIN((ASIN(((6371+D10)/6371)*SIN(D13*PI()/180))*180/PI()-D13)*PI()/180)/SIN(D13*PI()/180) -> 600 | E14: 980.8707785 | F14: 1268.117481 | G14: 600 | H14: 980.8707785
B15: EESS antenna gain | C15: dBi | D15: 50 | E15: 50 | F15: 52 | G15: 50 | H15: 50
B16: Size of EESS FOV on Earth's surface | C16: km² | D16: 28 | E16: 141 | F16: 164 | G16: 28 | H16: 141
B17: EESS interference criterion in the reference bandwidth (ITU-R RS.2017-0) | C17: dBW | D17: -160 | E17: -160 | F17: -160 | G17: -160 | H17: -160
B18: Apportionment factor | C18: dB | D18: 12 | E18: 12 | F18: 12 | G18: 12 | H18: 12
B20: CDR system:
B21: Conducted Tx power of CDR | C21: dBm | D21: 1 | E21: 1 | F21: 1 | G21: 1 | H21: 1
B22: Out-of-band unwanted emissions attenuation (if EESS victim is located in an adjacent band) | C22: dB | D22: 20 | E22: 20 | F22: 0 | G22: 0 | H22: 0
B23: Tx e.i.r.p. of CDR | C23: dBm | D23: =D21-D22+D28 -> 13 | E23: 13 | F23: 33 | G23: 33 | H23: 33
B24: Bandwidth of CDR Tx signal | C24: GHz | D24: 8 | E24: 8 | F24: 8 | G24: 8 | H24: 8
B25: Tx e.i.r.p. spectral density of CDR | C25: dBm/MHz | D25: =D23-10*LOG(D24*1000) -> -26.03089987 | E25: =E23-10*LOG(E24*1000) -> -26.03089987 | F25: -6.03089987 | G25: -6.03089987 | H25: -6.03089987
B26: Tx e.i.r.p. spectral density of CDR | C26: dBW/MHz | D26: =D25-30 -> -56.03089987 | E26: =E25-30 -> -56.03089987 | F26: -36.03089987 | G26: -36.03089987 | H26: -36.03089987
B27: Mitigation technique (e.g. activity factor, adaptive power control) | C27: dB | D27: 0 | E27: 0 | F27: 0 | G27: 0 | H27: 0
B28: Gain of the CDR antenna in direction of main radiation | C28: dBi | D28: 32 | E28: 32 | F28: 32 | G28: 32 | H28: 32
B29: Tx power spectral density of CDR without mitigation | C29: dBW/MHz | D29: =D26-D28 -> -88.03089987 | E29: =E26-E28 -> -88.03089987 | F29: -68.03089987 | G29: -68.03089987 | H29: -68.03089987
B30: Tx power spectral density of CDR with mitigation | C30: dBW/MHz | D30: =D26+D27-D28 -> -88.03089987 | E30: =E26+E27-E28 -> -88.03089987 | F30: -68.03089987 | G30: -68.03089987 | H30: -68.03089987
B32: Reflected interference component:
B33: Reduction of e.i.r.p. due to spatial mitigation (See Report clause 2.2.6.6) | C33: dB | D33: -28.6 | E33: -28.6 | F33: -28.6 | G33: -28.6 | H33: -28.6
B34: Reflection loss on wet sand surface (with εr=8 for f>100GHz) | C34: dB | D34: 6.42 | E34: 6.42 | F34: 6.42 | G34: 6.42 | H34: 6.42
B35: Reflected e.i.r.p. spectral density component sent to the EESS | C35: dBW/MHz | D35: =D26+D33-D34+D27 -> -91.05089987 | E35: =E26+E33-E34+E27 -> -91.05089987 | F35: =F26+F33-F34+F27 -> -71.05089987 | G35: =G26+G33-G34+G27 -> -71.05089987 | H35: =H26+H33-H34+H27 -> -71.05089987
B37: Back lobe/side lobe interference component:
B38: Antenna side-lobe gain >45° offset angle | C38: dBi | D38: 4 | E38: 4 | F38: 4 | G38: 4 | H38: 4
B39: Back lobe/side lobe e.i.r.p. spectral density component sent to the EESS | C39: dBW/MHz | D39: =D30+D38 -> -84.03089987 | E39: -84.03089987 | F39: -64.03089987 | G39: -64.03089987 | H39: -64.03089987
B41: Free space loss between CDR and EESS | C41: dB | D41: =20*LOG10(4*PI()*D14*1000/D8) -> 195.1980303 | E41: =20*LOG10(4*PI()*E14*1000/E8) -> 199.4672412 | F41: =20*LOG10(4*PI()*F14*1000/F8) -> 202.2409523 | G41: =20*LOG10(4*PI()*G14*1000/G8) -> 195.7407875 | H41: =20*LOG10(4*PI()*H14*1000/H8) -> 200.0099985
B42: Reflected e.i.r.p. spectral density component at the EESS antenna | C42: dBW/MHz | D42: =D35-D41 -> -286.2489302 | E42: -290.5181411 | F42: -273.2918522 | G42: -266.7916874 | H42: -271.0608983
B43: Back lobe/side lobe e.i.r.p. spectral density component at the EESS antenna | C43: dBW/MHz | D43: =D39-D41 -> -279.2289302 | E43: -283.4981411 | F43: -266.2718522 | G43: -259.7716874 | H43: -264.0408983
B44: Total e.i.r.p. spectral density at the EESS antenna (without consideration of atmospheric loss) | C44: dBW/MHz | D44: =10*LOG10(10^(D42/10)+10^(D43/10)) -> -278.442153 | E44: =10*LOG10(10^(E42/10)+10^(E43/10)) -> -282.711364 | F44: =10*LOG10(10^(F42/10)+10^(F43/10)) -> -265.4850751 | G44: =10*LOG10(10^(G42/10)+10^(G43/10)) -> -258.9849103 | H44: =10*LOG10(10^(H42/10)+10^(H43/10)) -> -263.2541212
B45: Atmospheric loss (according to contribution SE24(20)WI71#9-3) | C45: dB | D45: 4.8 | E45: 8.5 | F45: 8.8 | G45: 5.3 | H45: 9.3
B46: Polarisation mismatch loss | C46: dB | D46: 3 | E46: 3 | F46: 3 | G46: 3 | H46: 3
B47: Indoor-outdoor attenuation (according to clause 2.3 in the Report) | C47: dB | D47: 0 | E47: 0 | F47: 0 | G47: 0 | H47: 0
B48: Power spectral density at the EESS receiver in a 1 MHz bandwidth | C48: dBW/MHz | D48: =D44+D15-D45-D46-D47 -> -236.242153 | E48: =E44+E15-E45-E46-E47 -> -244.211364 | F48: =F44+F15-F45-F46-F47 -> -225.2850751 | G48: =G44+G15-G45-G46-G47 -> -217.2849103 | H48: =H44+H15-H45-H46-H47 -> -225.5541212
B49: Corresponding power at the EESS receiver in the reference bandwidth for a single CDR | C49: dBW | D49: =D48+10*LOG10(D9) -> -213.2318531 | E49: =E48+10*LOG10(E9) -> -221.201064 | F49: =F48+10*LOG10(F9) -> -202.2747751 | G49: =G48+10*LOG10(G9) -> -194.2746103 | H49: =H48+10*LOG10(H9) -> -202.5438213
B50: Number of interferers in EESS FOV on Earth's surface | D50: 1 | E50: 1 | F50: 1 | G50: 1 | H50: 1
B51: Corresponding received power at the EESS in the reference bandwidth within the EESS's FOV | C51: dBW | D51: =D49+10*LOG10(D50) -> -213.2318531 | E51: -221.201064 | F51: -202.2747751 | G51: -194.2746103 | H51: -202.5438213
B52: Margin with reference to ITU-R RS.2017-0 | C52: dB | D52: =D17-D18-D51 -> 41.23185307 | E52: 49.20106399 | F52: 30.27477511 | G52: 22.27461033 | H52: 30.54382125
B56: Compatibility analysis between DBF-CDR in the frequency band 231,5-250 GHz and EESS
D58: Band of EESS: 226-231,5 GHz | F58: Band of EESS: 239-248 GHz
B59: Single-entry study | D59: AWS (Nadir) | E59: AWS (outer) | F59: ICI | G59: AWS (Nadir) | H59: AWS (outer)
B60: Sensor type | D60: Nadir scan | E60: Nadir scan | F60: Conical Scan | G60: Nadir Scan | H60: Nadir Scan
B61: EESS: | C61: Units
B62: Assumed centre frequency of EESS | C62: GHz | D62: 228.75 | E62: 228.75 | F62: 243.5 | G62: 243.5 | H62: 243.5
B63: Wavelength of EESS | C63: m | D63: =2.99792458/D62/10 -> 0.001310568122 | E63: =2.99792458/E62/10 -> 0.001310568122 | F63: =2.99792458/F62/10 -> 0.001231180526 | G63: =2.99792458/G62/10 -> 0.001231180526 | H63: =2.99792458/H62/10 -> 0.001231180526
B64: Reference bandwidth | C64: MHz | D64: 200 | E64: 200 | F64: 200 | G64: 200 | H64: 200
B65: Orbit altitude | C65: km² | D65: 600 | E65: 600 | F65: 830 | G65: 600 | H65: 600
B66: Angle of incidence at Earth's surface (from zenith) | C66: deg | D66: 0 | E66: 55.7 | F66: 53.3 | G66: 0 | H66: 55.7
B67: Elevation angle at ground | C67: deg | D67: =90-D66 -> 90 | E67: =90-E66 -> 34.3 | F67: =90-F66 -> 36.7 | G67: =90-G66 -> 90 | H67: =90-H66 -> 34.3
B68: Off-nadir angle | C68: deg | D68: =(ASIN(SIN(D66*PI()/180)/(1+D65/6371)))*180/PI()+0.00000001 -> 1e-08 | E68: 49.02495908 | F68: 45.18299423 | G68: 1e-08 | H68: 49.02495908
B69: Slant path distance | C69: km | D69: =6371*SIN((ASIN(((6371+D65)/6371)*SIN(D68*PI()/180))*180/PI()-D68)*PI()/180)/SIN(D68*PI()/180) -> 600 | E69: 980.8707785 | F69: 1268.117481 | G69: 600 | H69: 980.8707785
B70: EESS antenna gain | C70: dBi | D70: 50 | E70: 50 | F70: 52 | G70: 50 | H70: 50
B71: Size of EESS FOV on Earth's surface | C71: km² | D71: 28 | E71: 141 | F71: 164 | G71: 28 | H71: 141
B72: EESS interference criterion in the reference bandwidth (ITU-R RS.2017-0) | C72: dBW | D72: -160 | E72: -160 | F72: -160 | G72: -160 | H72: -160
B73: Apportionment factor | C73: dB | D73: 12 | E73: 12 | F73: 12 | G73: 12 | H73: 12
B75: CDR system:
B76: Conducted Tx power of CDR | C76: dBm | D76: -5 | E76: -5 | F76: -5 | G76: -5 | H76: -5
B77: Out-of-band unwanted emissions attenuation (if EESS victim is located in an adjacent band) | C77: dB | D77: 20 | E77: 20 | F77: 0 | G77: 0 | H77: 0
B78: Tx e.i.r.p. of CDR | C78: dBm | D78: =D76-D77+D83 -> -15 | E78: -15 | F78: 5 | G78: 5 | H78: 5
B79: Bandwidth of CDR Tx signal | C79: GHz | D79: 0.63 | E79: 0.63 | F79: 0.63 | G79: 0.63 | H79: 0.63
B80: Tx e.i.r.p. spectral density of CDR | C80: dBm/MHz | D80: =D78-10*LOG(D79*1000) -> -42.99340549 | E80: =E78-10*LOG(E79*1000) -> -42.99340549 | F80: -22.99340549 | G80: -22.99340549 | H80: -22.99340549
B81: Tx e.i.r.p. spectral density of CDR | C81: dBW/MHz | D81: =D80-30 -> -72.99340549 | E81: =E80-30 -> -72.99340549 | F81: -52.99340549 | G81: -52.99340549 | H81: -52.99340549
B82: Mitigation technique (e.g. activity factor, adaptive power control) | C82: dB | D82: 0 | E82: 0 | F82: 0 | G82: 0 | H82: 0
B83: Gain of the CDR antenna in direction of main radiation | C83: dBi | D83: 10 | E83: 10 | F83: 10 | G83: 10 | H83: 10
B84: Tx power spectral density of CDR without mitigation | C84: dBW/MHz | D84: =D81-D83 -> -82.99340549 | E84: =E81-E83 -> -82.99340549 | F84: -62.99340549 | G84: -62.99340549 | H84: -62.99340549
B85: Tx power spectral density of CDR with mitigation | C85: dBW/MHz | D85: =D81+D82-D83 -> -82.99340549 | E85: =E81+E82-E83 -> -82.99340549 | F85: -62.99340549 | G85: -62.99340549 | H85: -62.99340549
B87: Back lobe interference component:
B88: Max. gain of the CDR antenna backlobe | C88: dBi | D88: -3.7 | E88: -3.7 | F88: -3.9 | G88: -3.9 | H88: -3.9
B89: Back lobe e.i.r.p. spectral density component sent to the EESS | C89: dBW/MHz | D89: =D85+D88 -> -86.69340549 | E89: -86.69340549 | F89: =F85+F88 -> -66.89340549 | G89: -66.89340549 | H89: -66.89340549
B91: Reflected interference component:
B92: Reflection loss on wet sand surface (with εr=8 for f>100GHz) | C92: dB | D92: 6.42 | E92: 6.42 | F92: 6.42 | G92: 6.42 | H92: 6.42
B93: Reflected e.i.r.p. spectral density component sent to the EESS | C93: dBW/MHz | D93: =D81+D82-D92 -> -79.41340549 | E93: =E81+E82-E92 -> -79.41340549 | F93: =F81+F82-F92 -> -59.41340549 | G93: =G81+G82-G92 -> -59.41340549 | H93: =H81+H82-H92 -> -59.41340549
B95: Free space loss between CDR and EESS | C95: dB | D95: =20*LOG10(4*PI()*D69*1000/D63) -> 195.1980303 | E95: 199.4672412 | F95: =20*LOG10(4*PI()*F69*1000/F63) -> 202.2409523 | G95: 195.7407875 | H95: 200.0099985
B96: Back lobe e.i.r.p. spectral density component at the EESS antenna | C96: dBW/MHz | D96: =D89-D95 -> -281.8914358 | E96: -286.1606467 | F96: =F89-F95 -> -269.1343578 | G96: -262.634193 | H96: -266.903404
B97: Reflected e.i.r.p. spectral density component at the EESS antenna | C97: dBW/MHz | D97: =D93-D95 -> -274.6114358 | E97: -278.8806467 | F97: =F93-F95 -> -261.6543578 | G97: -255.154193 | H97: -259.423404
B98: Total e.i.r.p. spectral density at the EESS antenna (without consideration of atmospheric loss) | C98: dBW/MHz | D98: =10*LOG10(10^(D96/10)+10^(D97/10)) -> -273.866679 | E98: -278.1358899 | F98: =10*LOG10(10^(F96/10)+10^(F97/10)) -> -260.9405138 | G98: -254.440349 | H98: -258.7095599
B99: Atmospheric loss (according to contribution SE24(20)WI71#9-3) | C99: dB | D99: 4.8 | E99: 8.5 | F99: 8.8 | G99: 5.3 | H99: 9.3
B100: Polarisation mismatch loss | C100: dB | D100: 3 | E100: 3 | F100: 3 | G100: 3 | H100: 3
B101: Indoor-outdoor attenuation (according to clause 2.3 in the Report) | C101: dB | D101: 0 | E101: 0 | F101: 0 | G101: 0 | H101: 0
B102: Power spectral density at the EESS receiver in a 1 MHz bandwidth | C102: dBW/MHz | D102: =D98+D70-D99-D100-D101 -> -231.666679 | E102: =E98+E70-E99-E100-E101 -> -239.6358899 | F102: =F98+F70-F99-F100-F101 -> -220.7405138 | G102: =G98+G70-G99-G100-G101 -> -212.740349 | H102: =H98+H70-H99-H100-H101 -> -221.0095599
B103: Corresponding power at the EESS receiver in the reference bandwidth for a single CDR | C103: dBW | D103: =D102+10*LOG10(D64) -> -208.6563791 | E103: -216.62559 | F103: =F102+10*LOG10(F64) -> -197.7302138 | G103: -189.7300491 | H103: -197.99926
B104: Number of interferers in EESS FOV on Earth's surface | D104: 1 | E104: 1 | F104: 1 | G104: 1 | H104: 1
B105: Corresponding received power at the EESS in a bandwidth of 200MHz (Nadir, Conical) and 10MHz (Limb) within the EESS's FOV | C105: dBW | D105: =D103+10*LOG10(D104) -> -208.6563791 | E105: -216.62559 | F105: -197.7302138 | G105: -189.7300491 | H105: -197.99926
B106: Margin with reference to ITU-R RS.2017-0 | C106: dB | D106: =D72-D73-D105 -> 36.65637906 | E106: 44.62558998 | F106: 25.73021383 | G106: 17.73004905 | H106: 25.99925997

Sheet EESS 231,5-250GHz (aggregate)
B1: Compatibility analysis between M-CDR and PA-CDR in the frequency band 231,5-250 GHz and EESS
B4: Aggregate interference study | D4: Band of EESS: 226-231,5 GHz | F4: Band of EESS: 239-248 GHz
B5: Victim EESS system | D5: AWS (Nadir) | E5: AWS (outer) | F5: ICI | G5: AWS (Nadir) | H5: AWS (outer)
B6: Sensor type | D6: Nadir scan | E6: Nadir scan | F6: Conical Scan | G6: Nadir Scan | H6: Nadir Scan
B7: EESS: | C7: Units
B8: Assumed centre frequency of EESS | C8: GHz | D8: 228.75 | E8: 228.75 | F8: 243.5 | G8: 243.5 | H8: 243.5
B9: Wavelength of EESS | C9: m | D9: =2.99792458/D8/10 -> 0.001310568122 | E9: =2.99792458/E8/10 -> 0.001310568122 | F9: =2.99792458/F8/10 -> 0.001231180526 | G9: =2.99792458/G8/10 -> 0.001231180526 | H9: =2.99792458/H8/10 -> 0.001231180526
B10: Reference bandwidth | C10: MHz | D10: 200 | E10: 200 | F10: 200 | G10: 200 | H10: 200
B11: Orbit altitude | C11: km² | D11: 600 | E11: 600 | F11: 830 | G11: 600 | H11: 600
B12: Angle of incidence at Earth's surface (from zenith) | C12: deg | D12: 0 | E12: 55.7 | F12: 53.3 | G12: 0 | H12: 55.7
B13: Elevation angle at ground | C13: deg | D13: =90-D12 -> 90 | E13: =90-E12 -> 34.3 | F13: =90-F12 -> 36.7 | G13: =90-G12 -> 90 | H13: =90-H12 -> 34.3
B14: Off-nadir angle | C14: deg | D14: =(ASIN(SIN(D12*PI()/180)/(1+D11/6371)))*180/PI()+0.00000001 -> 1e-08 | E14: 49.02495908 | F14: 45.18299423 | G14: 1e-08 | H14: 49.02495908
B15: Slant path distance | C15: km | D15: =6371*SIN((ASIN(((6371+D11)/6371)*SIN(D14*PI()/180))*180/PI()-D14)*PI()/180)/SIN(D14*PI()/180) -> 600 | E15: 980.8707785 | F15: 1268.117481 | G15: 600 | H15: 980.8707785
B16: EESS antenna gain | C16: dBi | D16: 50 | E16: 50 | F16: 52 | G16: 50 | H16: 50
B17: Size of EESS FOV on Earth's surface | C17: km² | D17: 28 | E17: 141 | F17: 164 | G17: 28 | H17: 141
B18: EESS interference criterion in the reference bandwidth (ITU-R RS.2017-0) | C18: dBW | D18: -160 | E18: -160 | F18: -160 | G18: -160 | H18: -160
B19: Apportionment factor | C19: dB | D19: 12 | E19: 12 | F19: 12 | G19: 12 | H19: 12
B21: CDR system:
B22: Conducted Tx power of CDR | C22: dBm | D22: 1 | E22: 1 | F22: 1 | G22: 1 | H22: 1
B23: Out-of-band unwanted emissions attenuation (if EESS victim is located in an adjacent band) | C23: dB | D23: 20 | E23: 20 | F23: 0 | G23: 0 | H23: 0
B24: Tx e.i.r.p. of CDR | C24: dBm | D24: =D22-D23+D29 -> 13 | E24: 13 | F24: 33 | G24: 33 | H24: 33
B25: Bandwidth of CDR Tx signal | C25: GHz | D25: 8 | E25: 8 | F25: 8 | G25: 8 | H25: 8
B26: Tx e.i.r.p. spectral density of CDR | C26: dBm/MHz | D26: =D24-10*LOG(D25*1000) -> -26.03089987 | E26: =E24-10*LOG(E25*1000) -> -26.03089987 | F26: -6.03089987 | G26: -6.03089987 | H26: -6.03089987
B27: Tx e.i.r.p. spectral density of CDR | C27: dBW/MHz | D27: =D26-30 -> -56.03089987 | E27: =E26-30 -> -56.03089987 | F27: -36.03089987 | G27: -36.03089987 | H27: -36.03089987
B28: Mitigation technique (e.g. activity factor, adaptive power control) | C28: dB | D28: 0 | E28: 0 | F28: 0 | G28: 0 | H28: 0
B29: Gain of the CDR antenna in direction of main radiation | C29: dBi | D29: 32 | E29: 32 | F29: 32 | G29: 32 | H29: 32
B30: Tx power spectral density of CDR without mitigation | C30: dBW/MHz | D30: =D27-D29 -> -88.03089987 | E30: =E27-E29 -> -88.03089987 | F30: -68.03089987 | G30: -68.03089987 | H30: -68.03089987
B31: Tx power spectral density of CDR with mitigation | C31: dBW/MHz | D31: =D27+D28-D29 -> -88.03089987 | E31: =E27+E28-E29 -> -88.03089987 | F31: -68.03089987 | G31: -68.03089987 | H31: -68.03089987
B33: Reflected interference component:
B34: Reduction of e.i.r.p. due to spatial mitigation (See Report clause 2.2.6.6) | C34: dBi | D34: -28.6 | E34: -28.6 | F34: -28.6 | G34: -28.6 | H34: -28.6
B35: Additional losses for the scattered component | C35: dB | D35: -10 | E35: -10 | F35: -10 | G35: -10 | H35: -10
B36: Average dielectric reflection attenuation at sand slope | C36: dB | D36: -20 | E36: -20 | F36: -20 | G36: -20 | H36: -20
B37: Reflected e.i.r.p. spectral density component sent to the EESS | C37: dBW/MHz | D37: =D27+D28+D34+D35+D36 -> -114.6308999 | E37: =E27+E28+E34+E35+E36 -> -114.6308999 | F37: =F27+F28+F34+F35+F36 -> -94.63089987 | G37: =G27+G28+G34+G35+G36 -> -94.63089987 | H37: =H27+H28+H34+H35+H36 -> -94.63089987
B39: Back lobe/side lobe interference component:
B40: Antenna side-lobe gain >45° offset angle | C40: dBi | D40: 4 | E40: 4 | F40: 4 | G40: 4 | H40: 4
B41: Back lobe/side lobe e.i.r.p. spectral density component sent to the EESS | C41: dBW/MHz | D41: =D31+D40 -> -84.03089987 | E41: =E31+E40 -> -84.03089987 | F41: =F31+F40 -> -64.03089987 | G41: =G31+G40 -> -64.03089987 | H41: =H31+H40 -> -64.03089987
B43: Free space loss between CDR and EESS | C43: dB | D43: =20*LOG10(4*PI()*D15*1000/D9) -> 195.1980303 | E43: =20*LOG10(4*PI()*E15*1000/E9) -> 199.4672412 | F43: =20*LOG10(4*PI()*F15*1000/F9) -> 202.2409523 | G43: =20*LOG10(4*PI()*G15*1000/G9) -> 195.7407875 | H43: =20*LOG10(4*PI()*H15*1000/H9) -> 200.0099985
B44: Reflected e.i.r.p. spectral density component at the EESS antenna | C44: dBW/MHz | D44: =D37-D43 -> -309.8289302 | E44: =E37-E43 -> -314.0981411 | F44: =F37-F43 -> -296.8718522 | G44: =G37-G43 -> -290.3716874 | H44: =H37-H43 -> -294.6408983
B45: Back lobe e.i.r.p. spectral density component at the EESS antenna | C45: dBW/MHz | D45: =D41-D43 -> -279.2289302 | E45: =E41-E43 -> -283.4981411 | F45: =F41-F43 -> -266.2718522 | G45: =G41-G43 -> -259.7716874 | H45: =H41-H43 -> -264.0408983
B46: Total e.i.r.p. spectral density at the EESS antenna (without consideration of atmospheric loss) | C46: dBW/MHz | D46: =10*LOG10(10^(D44/10)+10^(D45/10)) -> -279.2251493 | E46: =10*LOG10(10^(E44/10)+10^(E45/10)) -> -283.4943602 | F46: =10*LOG10(10^(F44/10)+10^(F45/10)) -> -266.2680713 | G46: =10*LOG10(10^(G44/10)+10^(G45/10)) -> -259.7679065 | H46: =10*LOG10(10^(H44/10)+10^(H45/10)) -> -264.0371174
B47: Atmospheric loss (according to contribution SE24(20)063_rev1) | C47: dB | D47: 4.8 | E47: 8.5 | F47: 8.8 | G47: 5.3 | H47: 9.3
B48: Polarisation mismatch loss | C48: dB | D48: 3 | E48: 3 | F48: 3 | G48: 3 | H48: 3
B49: Indoor-outdoor attenuation (according to clause 2.3 in the Report) | C49: dB | D49: =VLOOKUP(D13,'Indoor outdoor attenuation'!data_1,9) -> 26.61562776 | E49: =VLOOKUP(E13,'Indoor outdoor attenuation'!data_1,9) -> 22.41623389 | F49: =VLOOKUP(F13,'Indoor outdoor attenuation'!data_1,9) -> 22.31623389 | G49: =VLOOKUP(G13,'Indoor outdoor attenuation'!data_1,9) -> 26.61562776 | H49: =VLOOKUP(H13,'Indoor outdoor attenuation'!data_1,9) -> 22.41623389
B50: Power spectral density at the EESS receiver in a 1 MHz bandwidth | C50: dBW/MHz | D50: =D46+D16-D47-D48 -> -237.0251493 | E50: =E46+E16-E47-E48 -> -244.9943602 | F50: =F46+F16-F47-F48 -> -226.0680713 | G50: =G46+G16-G47-G48 -> -218.0679065 | H50: =H46+H16-H47-H48 -> -226.3371174
B51: Corresponding power at the EESS receiver in the reference bandwidth for a single CDR | C51: dBW | D51: =D50+10*LOG10(D10) -> -214.0148493 | E51: =E50+10*LOG10(E10) -> -221.9840602 | F51: =F50+10*LOG10(F10) -> -203.0577713 | G51: =G50+10*LOG10(G10) -> -195.0576066 | H51: =H50+10*LOG10(H10) -> -203.3268175
B52: Uniform CDR device density (with uniform distribution over Europe) | C52: 1/km² | D52: ='Market Size'!H21 -> 7.602394754e-05 | E52: ='Market Size'!H21 -> 7.602394754e-05 | F52: ='Market Size'!H21 -> 7.602394754e-05 | G52: ='Market Size'!H21 -> 7.602394754e-05 | H52: ='Market Size'!H21 -> 7.602394754e-05
B53: Aggregate CDR device density (uniform distribution weighted with factor 75; acc. to annex 9 in the Report) | C53: 1/km² | D53: =D52*75 -> 0.005701796066 | E53: =E52*75 -> 0.005701796066 | F53: =F52*75 -> 0.005701796066 | G53: =G52*75 -> 0.005701796066 | H53: =H52*75 -> 0.005701796066
B54: Number of aggregate CDR devices in the IFOV and active in the reference BW of the satellite | D54: =ROUNDUP(D53*D17,0) -> 1 | E54: =ROUNDUP(E53*E17,0) -> 1 | F54: =ROUNDUP(F53*F17,0) -> 1 | G54: =ROUNDUP(G53*G17,0) -> 1 | H54: =ROUNDUP(H53*H17,0) -> 1
B55: Percentage of CDRs operated indoors | C55: % | D55: 90 | E55: 90 | F55: 90 | G55: 90 | H55: 90
B56: Resulting total number of outdoor interferers in EESS FOV on Earth's surface | D56: =ROUNDUP((D55/100)*D54*10^-(D49/10)+((1-D55/100)*D54),0) -> 1 | E56: =ROUNDUP((E55/100)*E54*10^-(E49/10)+((1-E55/100)*E54),0) -> 1 | F56: =ROUNDUP((F55/100)*F54*10^-(F49/10)+((1-F55/100)*F54),0) -> 1 | G56: =ROUNDUP((G55/100)*G54*10^-(G49/10)+((1-G55/100)*G54),0) -> 1 | H56: =ROUNDUP((H55/100)*H54*10^-(H49/10)+((1-H55/100)*H54),0) -> 1
B57: Corresponding received power at the EESS in the reference bandwidth within the EESS's FOV | C57: dBW | D57: =D51+10*LOG10(D56) -> -214.0148493 | E57: =E51+10*LOG10(E56) -> -221.9840602 | F57: =F51+10*LOG10(F56) -> -203.0577713 | G57: =G51+10*LOG10(G56) -> -195.0576066 | H57: =H51+10*LOG10(H56) -> -203.3268175
B58: Margin with reference to ITU-R RS.2017-0 | C58: dB | D58: =D18-D19-D57 -> 42.0148493 | E58: =E18-E19-E57 -> 49.98406022 | F58: =F18-F19-F57 -> 31.05777134 | G58: =G18-G19-G57 -> 23.05760655 | H58: =H18-H19-H57 -> 31.32681748
B63: Compatibility analysis between DBF-CDR in the frequency band 231,5-250 GHz and EESS
B66: Aggregate interference study | D66: Band of EESS: 226-231,5 GHz | F66: Band of EESS: 239-248 GHz
B67: Victim EESS system | D67: AWS (Nadir) | E67: AWS (outer) | F67: ICI | G67: AWS (Nadir) | H67: AWS (outer)
B68: Sensor type | D68: Nadir scan | E68: Nadir scan | F68: Conical Scan | G68: Nadir Scan | H68: Nadir Scan
B69: EESS: | C69: Units
B70: Assumed centre frequency of EESS | C70: GHz | D70: 228.75 | E70: 228.75 | F70: 243.5 | G70: 243.5 | H70: 243.5
B71: Wavelength of EESS | C71: m | D71: =2.99792458/D70/10 -> 0.001310568122 | E71: =2.99792458/E70/10 -> 0.001310568122 | F71: =2.99792458/F70/10 -> 0.001231180526 | G71: =2.99792458/G70/10 -> 0.001231180526 | H71: =2.99792458/H70/10 -> 0.001231180526
B72: Reference bandwidth | C72: MHz | D72: 200 | E72: 200 | F72: 200 | G72: 200 | H72: 200
B73: Orbit altitude | C73: km² | D73: 600 | E73: 600 | F73: 830 | G73: 600 | H73: 600
B74: Angle of incidence at Earth's surface (from zenith) | C74: deg | D74: 0 | E74: 55.7 | F74: 53.3 | G74: 0 | H74: 55.7
B75: Elevation angle at ground | C75: deg | D75: =90-D74 -> 90 | E75: =90-E74 -> 34.3 | F75: =90-F74 -> 36.7 | G75: =90-G74 -> 90 | H75: =90-H74 -> 34.3
B76: Off-nadir angle | C76: deg | D76: =(ASIN(SIN(D74*PI()/180)/(1+D73/6371)))*180/PI()+0.00000001 -> 1e-08 | E76: 49.02495908 | F76: 45.18299423 | G76: 1e-08 | H76: 49.02495908
B77: Slant path distance | C77: km | D77: =6371*SIN((ASIN(((6371+D73)/6371)*SIN(D76*PI()/180))*180/PI()-D76)*PI()/180)/SIN(D76*PI()/180) -> 600 | E77: 980.8707785 | F77: 1268.117481 | G77: 600 | H77: 980.8707785
B78: EESS antenna gain | C78: dBi | D78: 50 | E78: 50 | F78: 52 | G78: 50 | H78: 50
B79: Size of EESS FOV on Earth's surface | C79: km² | D79: 28 | E79: 141 | F79: 164 | G79: 28 | H79: 141
B80: EESS interference criterion in the reference bandwidth (ITU-R RS.2017-0) | C80: dBW | D80: -160 | E80: -160 | F80: -160 | G80: -160 | H80: -160
B81: Apportionment factor | C81: dB | D81: 12 | E81: 12 | F81: 12 | G81: 12 | H81: 12
B83: CDR system:
B84: Conducted Tx power of CDR | C84: dBm | D84: -5 | E84: -5 | F84: -5 | G84: -5 | H84: -5
B85: Out-of-band unwanted emissions attenuation (if EESS victim is located in an adjacent band) | C85: dB | D85: 20 | E85: 20 | F85: 0 | G85: 0 | H85: 0
B86: Tx e.i.r.p. of CDR | C86: dBm | D86: =D84-D85+D91 -> -15 | E86: -15 | F86: 5 | G86: 5 | H86: 5
B87: Bandwidth of CDR Tx signal | C87: GHz | D87: 0.63 | E87: 0.63 | F87: 0.63 | G87: 0.63 | H87: 0.63
B88: Tx e.i.r.p. spectral density of CDR | C88: dBm/MHz | D88: =D86-10*LOG(D87*1000) -> -42.99340549 | E88: =E86-10*LOG(E87*1000) -> -42.99340549 | F88: -22.99340549 | G88: -22.99340549 | H88: -22.99340549
B89: Tx e.i.r.p. spectral density of CDR | C89: dBW/MHz | D89: =D88-30 -> -72.99340549 | E89: =E88-30 -> -72.99340549 | F89: -52.99340549 | G89: -52.99340549 | H89: -52.99340549
B90: Mitigation technique (e.g. activity factor, adaptive power control) | C90: dB | D90: 0 | E90: 0 | F90: 0 | G90: 0 | H90: 0
B91: Gain of the CDR antenna in direction of main radiation | C91: dBi | D91: 10 | E91: 10 | F91: 10 | G91: 10 | H91: 10
B92: Tx power spectral density of CDR without mitigation | C92: dBW/MHz | D92: =D89-D91 -> -82.99340549 | E92: =E89-E91 -> -82.99340549 | F92: -62.99340549 | G92: -62.99340549 | H92: -62.99340549
B93: Tx power spectral density of CDR with mitigation | C93: dBW/MHz | D93: =D89+D90-D91 -> -82.99340549 | E93: =E89+E90-E91 -> -82.99340549 | F93: -62.99340549 | G93: -62.99340549 | H93: -62.99340549
B95: Back lobe interference component:
B96: Max. gain of the CDR antenna backlobe | C96: dBi | D96: -3.7 | E96: -3.7 | F96: -3.9 | G96: -3.9 | H96: -3.9
B97: Back lobe e.i.r.p. spectral density component sent to the EESS | C97: dBW/MHz | D97: =D93+D96 -> -86.69340549 | E97: -86.69340549 | F97: -66.89340549 | G97: -66.89340549 | H97: -66.89340549
B99: Scattered/reflected interference component:
B100: Additional losses for the scattered component | C100: dB | D100: -10 | E100: -10 | F100: -10 | G100: -10 | H100: -10
B101: Average dielectric reflection attenuation at sand slope | C101: dB | D101: -20 | E101: -20 | F101: -20 | G101: -20 | H101: -20
B102: Scattered/reflected e.i.r.p. spectral density component sent to the EESS | C102: dBW/MHz | D102: =D89+D90+D100+D101 -> -102.9934055 | E102: =E89+E90+E100+E101 -> -102.9934055 | F102: =F89+F90+F100+F101 -> -82.99340549 | G102: =G89+G90+G100+G101 -> -82.99340549 | H102: =H89+H90+H100+H101 -> -82.99340549
B104: Free space loss between CDR and EESS | C104: dB | D104: =20*LOG10(4*PI()*D77*1000/D71) -> 195.1980303 | E104: =20*LOG10(4*PI()*E77*1000/E71) -> 199.4672412 | F104: =20*LOG10(4*PI()*F77*1000/F71) -> 202.2409523 | G104: =20*LOG10(4*PI()*G77*1000/G71) -> 195.7407875 | H104: =20*LOG10(4*PI()*H77*1000/H71) -> 200.0099985
B105: Back lobe e.i.r.p. spectral density component at the EESS antenna | C105: dBW/MHz | D105: =D97-D104 -> -281.8914358 | E105: =E97-E104 -> -286.1606467 | F105: =F97-F104 -> -269.1343578 | G105: =G97-G104 -> -262.634193 | H105: =H97-H104 -> -266.903404
B106: Reflected e.i.r.p. spectral density component at the EESS antenna | C106: dBW/MHz | D106: =D102-D104 -> -298.1914358 | E106: =E102-E104 -> -302.4606467 | F106: =F102-F104 -> -285.2343578 | G106: =G102-G104 -> -278.734193 | H106: =H102-H104 -> -283.003404
B107: Total e.i.r.p. spectral density at the EESS antenna (without consideration of atmospheric loss) | C107: dBW/MHz | D107: =10*LOG10(10^(D105/10)+10^(D106/10)) -> -281.7908022 | E107: -286.0600131 | F107: =10*LOG10(10^(F105/10)+10^(F106/10)) -> -269.0290386 | G107: -262.5288738 | H107: -266.7980847
B108: Atmospheric loss (according to contribution SE24(20)063_rev1) | C108: dB | D108: 4.8 | E108: 8.5 | F108: 8.8 | G108: 5.3 | H108: 9.3
B109: Polarisation mismatch loss | C109: dB | D109: 3 | E109: 3 | F109: 3 | G109: 3 | H109: 3
B110: Indoor-outdoor attenuation (according to clause 2.3 in the Report) | C110: dB | D110: =VLOOKUP(D75,'Indoor outdoor attenuation'!data_1,9) -> 26.61562776 | E110: =VLOOKUP(E75,'Indoor outdoor attenuation'!data_1,9) -> 22.41623389 | F110: =VLOOKUP(F75,'Indoor outdoor attenuation'!data_1,9) -> 22.31623389 | G110: =VLOOKUP(G75,'Indoor outdoor attenuation'!data_1,9) -> 26.61562776 | H110: =VLOOKUP(H75,'Indoor outdoor attenuation'!data_1,9) -> 22.41623389
B111: Power spectral density at the EESS receiver in a 1 MHz bandwidth | C111: dBW/MHz | D111: =D107+D78-D108-D109 -> -239.5908022 | E111: =E107+E78-E108-E109 -> -247.5600131 | F111: =F107+F78-F108-F109 -> -228.8290386 | G111: =G107+G78-G108-G109 -> -220.8288738 | H111: =H107+H78-H108-H109 -> -229.0980847
B112: Corresponding power at the EESS receiver in the reference bandwidth for a single CDR | C112: dBW | D112: =D111+10*LOG10(D72) -> -216.5805022 | E112: =E111+10*LOG10(E72) -> -224.5497132 | F112: =F111+10*LOG10(F72) -> -205.8187386 | G112: =G111+10*LOG10(G72) -> -197.8185738 | H112: =H111+10*LOG10(H72) -> -206.0877848
B113: Uniform CDR device density (with uniform distribution over Europe) | C113: 1/km² | D113: ='Market Size'!H21 -> 7.602394754e-05 | E113: ='Market Size'!H21 -> 7.602394754e-05 | F113: ='Market Size'!H21 -> 7.602394754e-05 | G113: ='Market Size'!H21 -> 7.602394754e-05 | H113: ='Market Size'!H21 -> 7.602394754e-05
B114: Aggregate CDR device density (uniform distribution weighted with factor 75; acc. to annex 9 in the Report) | C114: 1/km² | D114: =D113*75 -> 0.005701796066 | E114: =E113*75 -> 0.005701796066 | F114: =F113*75 -> 0.005701796066 | G114: =G113*75 -> 0.005701796066 | H114: =H113*75 -> 0.005701796066
B115: Number of aggregate CDR devices in the IFOV and active in the reference BW of the satellite | D115: =ROUNDUP(D114*D79,0) -> 1 | E115: =ROUNDUP(E114*E79,0) -> 1 | F115: =ROUNDUP(F114*F79,0) -> 1 | G115: =ROUNDUP(G114*G79,0) -> 1 | H115: =ROUNDUP(H114*H79,0) -> 1
B116: Percentage of CDRs operated indoors | C116: % | D116: 90 | E116: 90 | F116: 90 | G116: 90 | H116: 90
B117: Resulting total number of outdoor interferers in EESS FOV on Earth's surface | D117: =ROUNDUP((D116/100)*D115*10^-(D110/10)+((1-D116/100)*D115),0) -> 1 | E117: =ROUNDUP((E116/100)*E115*10^-(E110/10)+((1-E116/100)*E115),0) -> 1 | F117: =ROUNDUP((F116/100)*F115*10^-(F110/10)+((1-F116/100)*F115),0) -> 1 | G117: =ROUNDUP((G116/100)*G115*10^-(G110/10)+((1-G116/100)*G115),0) -> 1 | H117: =ROUNDUP((H116/100)*H115*10^-(H110/10)+((1-H116/100)*H115),0) -> 1
B118: Corresponding received power at the EESS in the reference bandwidth within the EESS's FOV | C118: dBW | D118: =D112+10*LOG10(D117) -> -216.5805022 | E118: =E112+10*LOG10(E117) -> -224.5497132 | F118: =F112+10*LOG10(F117) -> -205.8187386 | G118: =G112+10*LOG10(G117) -> -197.8185738 | H118: =H112+10*LOG10(H117) -> -206.0877848 | XFD118: =XFD112+10*LOG10(XFD117) -> 
B119: Margin with reference to ITU-R RS.2017-0 | C119: dB | D119: =D80-D81-D118 -> 44.58050224 | E119: =E80-E81-E118 -> 52.54971317 | F119: =F80-F81-F118 -> 33.81873862 | G119: =G80-G81-G118 -> 25.81857384 | H119: =H80-H81-H118 -> 34.08778476

Sheet RAS 116-148,5GHz
B3: Compatibility analysis between M-CDR and PA-CDR in the frequency band 116 to 148,5 GHz and RAS systems
B5: Victim RAS system | D5: Band of RAS system: 76-116 GHz | F5: Band of RAS system: 123-158,5 GHz
B6: Sensor type | D6: Continuum observation | E6: Spectral-line observation | F6: Continuum observation | G6: Spectral-line observation
B7: RAS system: | C7: Units
B8: Assumed centre frequency of RAS system | C8: GHz | D8: 96 | E8: 96 | F8: 135.75 | G8: 135.75
B9: Wavelength of RAS system | C9: m | D9: =2.99792458/D8/10 -> 0.003122838104 | E9: 0.003122838104 | F9: 0.002208415897 | G9: 0.002208415897
B10: Bandwidth (ITU-R RA.769-2) | C10: MHz | D10: 8000 | E10: 1 | F10: 8000 | G10: 1
B11: Antenna gain in the direction of interferer (ITU-R RA.769-2) | C11: dBi | D11: 0 | E11: 0 | F11: 0 | G11: 0
B12: Feeder (insertion) loss | C12: dB | D12: 0 | E12: 0 | F12: 0 | G12: 0
B13: Threshold Interference level at receiver input (ITU-R RA.769-2) | C13: dBW | D13: -184.5 | E13: -209 | F13: -189.5 | G13: -209
B14: Threshold Interference level at receiver input | C14: dBm | D14: =D13+30 -> -154.5 | E14: =E13+30 -> -179 | F14: -159.5 | G14: -179
B16: M-CDR/PA-CDR system:
B17: Conducted Tx power of CDR | C17: dBm | D17: -5 | E17: -5 | F17: -5 | G17: -5
B18: Out-of-band unwanted emissions attenuation (if RAS victim is located in an adjacent band) | C18: dB | D18: 20 | E18: 20 | F18: 0 | G18: 0
B19: Tx power e.i.r.p. of CDR | C19: dBm | D19: =D17-D18+D25 -> 7 | E19: =E17-E18+E25 -> 7 | F19: =F17-F18+F25 -> 27 | G19: =G17-G18+G25 -> 27
B20: Bandwidth of CDR Tx signal | C20: GHz | D20: 8 | E20: 8 | F20: 8 | G20: 8
B21: Mitigation technique (e.g. activity factor, adaptive power control) | C21: dB | D21: 0 | E21: 0 | F21: 0 | G21: 0
B22: Tx e.i.r.p. spectral density of CDR | C22: dBm/MHz | D22: =D19-10*LOG(D20*1000) -> -32.03089987 | E22: -32.03089987 | F22: -12.03089987 | G22: -12.03089987
B23: Tx e.i.r.p. spectral density of CDR with mitigation | C23: dBm/MHz | D23: =D19+D21-10*LOG(D20*1000) -> -32.03089987 | E23: -32.03089987 | F23: -12.03089987 | G23: -12.03089987
B24: Tx e.i.r.p. of CDR with mitigation | C24: dBm | D24: =D19+D21 -> 7 | E24: =E19+E21 -> 7 | F24: =F19+F21 -> 27 | G24: =G19+G21 -> 27
B25: Gain of the CDR antenna in direction of main radiation | C25: dBi | D25: 32 | E25: 32 | F25: 32 | G25: 32
B27: Direct interference component:
B28: Reduction of e.i.r.p. due to spatial mitigation (See Report clause 2.2.6.6) | C28: dB | D28: -28.6 | E28: -28.6 | F28: -28.6 | G28: -28.6
B29: Direct e.i.r.p. component sent to RAS | C29: dBm | D29: =D24+D28 -> -21.6 | E29: =E24+E28 -> -21.6 | F29: =F24+F28 -> -1.6 | G29: =G24+G28 -> -1.6
B31: Side-lobe interference component:
B32: Antenna side-lobe gain >60° offset angle | C32: dBi | D32: 0 | E32: 0 | F32: 0 | G32: 0
B33: Side-lobe e.i.r.p. component sent to the RAS | C33: dBm | D33: =D24-D25+D32 -> -25 | E33: =E24-E25+E32 -> -25 | F33: =F24-F25+F32 -> -5 | G33: =G24-G25+G32 -> -5
B35: Reflected interference component:
B36: Sidelobe suppression (first sidelobe, offset angle 20-30° (24° nominal) | C36: dB | D36: -28 | E36: -28 | F36: -28 | G36: -28
B37: Reflection loss on sand surface (angle of incidence 33°) | C37: dB | D37: 18 | E37: 18 | F37: 18 | G37: 18
B38: Reflected e.i.r.p. component sent to the RAS | C38: dBm | D38: =D24+D36-D37 -> -39 | E38: =E24+E36-E37 -> -39 | F38: =F24+F36-F37 -> -19 | G38: =G24+G36-G37 -> -19
B40: Total e.i.r.p. towards RAS | C40: dBm | D40: =10*LOG10(10^(D29/10)+10^(D33/10)+10^(D38/10)) -> -19.91124015 | E40: =10*LOG10(10^(E29/10)+10^(E33/10)+10^(E38/10)) -> -19.91124015 | F40: =10*LOG10(10^(F29/10)+10^(F33/10)+10^(F38/10)) -> 0.08875985082 | G40: =10*LOG10(10^(G29/10)+10^(G33/10)+10^(G38/10)) -> 0.08875985082
B41: BWCF | C41: dB | D41: =IF(D20*1000<=D10, 0, 10*LOG10(D10/D20/1000)) -> 0 | E41: =IF(E20*1000<=E10, 0, 10*LOG10(E10/E20/1000)) -> -39.03089987 | F41: =IF(F20*1000<=F10, 0, 10*LOG10(F10/F20/1000)) -> 0 | G41: =IF(G20*1000<=G10, 0, 10*LOG10(G10/G20/1000)) -> -39.03089987
B44: Separation distance calculation:
B45: Minimum coupling loss (MCL) | C45: dB | D45: =D40-(D14-D11+D12)+D41 -> 134.5887599 | E45: =E40-(E14-E11+E12)+E41 -> 120.05786 | F45: =F40-(F14-F11+F12)+F41 -> 159.5887599 | G45: =G40-(G14-G11+G12)+G41 -> 140.05786
B46: Separation distance with FSL model | C46: km | D46: =10^((D45-32.44-20*LOG10(D8*1000))/20) -> 1.334033573 | E46: =10^((E45-32.44-20*LOG10(E8*1000))/20) -> 0.2503927593 | F46: =10^((F45-32.44-20*LOG10(F8*1000))/20) -> 16.77637612 | G46: =10^((G45-32.44-20*LOG10(G8*1000))/20) -> 1.770733325
B47: Specific attenuation due to atmospheric gases (acc. to ITU-R P.835-6 winter high latitude model) | C47: dB/km | D47: 0.06 | E47: 0.06 | F47: 0.1 | G47: 0.1
B48: Separation distance adjusted for attenuation due to atmospheric gases | C48: km | D48: 1.32180013 | E48: 0.2499380736 | F48: 14.23953743 | G48: 1.735581545
B49: Balance check (should be close to zero) | C49: dB | D49: =D45-20*LOG10(D48)-D48*D47-32.44-20*LOG10(D8*1000) -> 0.000711377486 | E49: =E45-20*LOG10(E48)-E48*E47-32.44-20*LOG10(E8*1000) -> 0.0007906739041 | F49: =F45-20*LOG10(F48)-F48*F47-32.44-20*LOG10(F8*1000) -> 9.171220177e-05 | G49: =G45-20*LOG10(G48)-G48*G47-32.44-20*LOG10(G8*1000) -> 0.0006045891272
B53: Compatibility analysis between DBF-CDR in the frequency band 116 to 148,5 GHz and RAS systems
B55: Victim RAS system | D55: Band of RAS system: 76-116 GHz | F55: Band of RAS system: 123-158,5 GHz
B56: Sensor type | D56: Continuum observation | E56: Spectral-line observation | F56: Continuum observation | G56: Spectral-line observation
B57: RAS system: | C57: Units
B58: Assumed centre frequency of RAS system | C58: GHz | D58: 96 | E58: 96 | F58: 135.75 | G58: 135.75
B59: Wavelength of RAS system | C59: m | D59: =2.99792458/D58/10 -> 0.003122838104 | E59: 0.003122838104 | F59: 0.002208415897 | G59: 0.002208415897
B60: Bandwidth (ITU-R RA.769-2) | C60: MHz | D60: 8000 | E60: 1 | F60: 8000 | G60: 1
B61: Antenna gain in the direction of interferer (ITU-R RA.769-2) | C61: dBi | D61: 0 | E61: 0 | F61: 0 | G61: 0
B62: Feeder (insertion) loss | C62: dB | D62: 0 | E62: 0 | F62: 0 | G62: 0
B63: Threshold Interference level at receiver input (ITU-R RA.769-2) | C63: dBW | D63: -184.5 | E63: -209 | F63: -189.5 | G63: -209
B64: Threshold Interference level at receiver input | C64: dBm | D64: =D63+30 -> -154.5 | E64: =E63+30 -> -179 | F64: -159.5 | G64: -179
B66: DBF-CDR system:
B67: Conducted Tx power of CDR | C67: dBm | D67: -5 | E67: -5 | F67: -5 | G67: -5
B68: Out-of-band unwanted emissions attenuation (if RAS victim is located in an adjacent band) | C68: dB | D68: 20 | E68: 20 | F68: 0 | G68: 0
B69: Tx power e.i.r.p. of CDR | C69: dBm | D69: =D67-D68+D75 -> -15 | E69: =E67-E68+E75 -> -15 | F69: =F67-F68+F75 -> 5 | G69: =G67-G68+G75 -> 5
B70: Bandwidth of CDR Tx signal | C70: GHz | D70: 5.7 | E70: 5.7 | F70: 5.7 | G70: 5.7
B71: Mitigation technique (e.g. activity factor, adaptive power control) | C71: dB | D71: 0 | E71: 0 | F71: 0 | G71: 0
B72: Tx e.i.r.p. spectral density of CDR | C72: dBm/MHz | D72: =D69-10*LOG(D70*1000) -> -52.55874856 | E72: -52.55874856 | F72: -32.55874856 | G72: -32.55874856
B73: Tx e.i.r.p. spectral density of CDR with mitigation | C73: dBm/MHz | D73: =D69+D71-10*LOG(D70*1000) -> -52.55874856 | E73: -52.55874856 | F73: -32.55874856 | G73: -32.55874856
B74: Tx e.i.r.p. of CDR with mitigation | C74: dBm | D74: =D69+D71 -> -15 | E74: =E69+E71 -> -15 | F74: =F69+F71 -> 5 | G74: =G69+G71 -> 5
B75: Gain of the CDR antenna in direction of main radiation | C75: dBi | D75: 10 | E75: 10 | F75: 10 | G75: 10
B77: Side-lobe interference component:
B78: Antenna side-lobe gain >60° offset angle | C78: dBi | D78: 7 | E78: 7 | F78: 7 | G78: 7
B79: Side-lobe e.i.r.p. component sent to the RAS | C79: dBm | D79: =D74-D75+D78 -> -18 | E79: =E74-E75+E78 -> -18 | F79: =F74-F75+F78 -> 2 | G79: =G74-G75+G78 -> 2
B81: Reflected interference component:
B82: Sidelobe suppression (first sidelobe, offset angle 20-30° (24° nominal) | C82: dB | D82: 0 | E82: 0 | F82: 0 | G82: 0
B83: Reflection loss on sand surface (angle of incidence 33°) | C83: dB | D83: 18 | E83: 18 | F83: 18 | G83: 18
B84: Reflected e.i.r.p. component sent to the RAS | C84: dBm | D84: =D74+D82-D83 -> -33 | E84: =E74+E82-E83 -> -33 | F84: =F74+F82-F83 -> -13 | G84: =G74+G82-G83 -> -13
B86: Total e.i.r.p. towards RAS | C86: dBm | D86: =10*LOG10(10^(D79/10)+10^(D84/10)) -> -17.86479078 | E86: =10*LOG10(10^(E79/10)+10^(E84/10)) -> -17.86479078 | F86: =10*LOG10(10^(F79/10)+10^(F84/10)) -> 2.135209221 | G86: =10*LOG10(10^(G79/10)+10^(G84/10)) -> 2.135209221
B87: BWCF | C87: dB | D87: =IF(D70*1000<=D60, 0, 10*LOG10(D60/D70/1000)) -> 0 | E87: =IF(E70*1000<=E60, 0, 10*LOG10(E60/E70/1000)) -> -37.55874856 | F87: =IF(F70*1000<=F60, 0, 10*LOG10(F60/F70/1000)) -> 0 | G87: =IF(G70*1000<=G60, 0, 10*LOG10(G60/G70/1000)) -> -37.55874856
B90: Separation distance calculation:
B91: Minimum coupling loss (MCL) | C91: dB | D91: =D86-(D64-D61+D62)+D87 -> 136.6352092 | E91: =E86-(E64-E61+E62)+E87 -> 123.5764607 | F91: =F86-(F64-F61+F62)+F87 -> 161.6352092 | G91: =G86-(G64-G61+G62)+G87 -> 143.5764607
B92: Separation distance with FSL model | C92: km | D92: =10^((D91-32.44-20*LOG10(D58*1000))/20) -> 1.68845398 | E92: =10^((E91-32.44-20*LOG10(E58*1000))/20) -> 0.3754497333 | F92: =10^((F91-32.44-20*LOG10(F58*1000))/20) -> 21.23345288 | G92: =10^((G91-32.44-20*LOG10(G58*1000))/20) -> 2.655114136
B93: Specific attenuation due to atmospheric gases (acc. to ITU-R P.835-6 winter high latitude model) | C93: dB/km | D93: 0.06 | E93: 0.06 | F93: 0.1 | G93: 0.1
B94: Separation distance adjusted for attenuation due to atmospheric gases | C94: km | D94: 1.668967858 | E94: 0.374459284 | F94: 17.38224525 | G94: 2.577375888
B95: Balance check (should be close to zero) | C95: dB | D95: =D91-20*LOG10(D94)-D94*D93-32.44-20*LOG10(D58*1000) -> 0.0006870326741 | E95: =E91-20*LOG10(E94)-E94*E93-32.44-20*LOG10(E58*1000) -> 0.0004763964976 | F95: =F91-20*LOG10(F94)-F94*F93-32.44-20*LOG10(F58*1000) -> 7.046920373e-05 | G95: =G91-20*LOG10(G94)-G94*G93-32.44-20*LOG10(G58*1000) -> 0.0003710840456
D96: Note 1 | F96: Note 2
B98: Note 1: A power spectral density of -32.6dBm/MHz in the whole RAS bandwidth of 8GHz would result in a separation distance of 2km. Therefore, a separation distance of at least 2km should be considered in order to protect RAS.
B100: Note 2: A power spectral density of -32.6dBm/MHz in the whole RAS bandwidth of 8GHz would result in a separation distance of 19.9km. Therefore, a separation distance of at least 19.9km should be considered in order to protect RAS.

Sheet RAS 167-182GHz
B3: Compatibility analysis between M-CDR and PA-CDR in the frequency band 167 to 182 GHz and RAS systems
B5: Victim RAS system | D5: Band of RAS system: 164-174,5 GHz | F5: Band of RAS system: 182-185 GHz
B6: Sensor type | D6: Continuum observation | E6: Spectral-line observation | F6: Continuum observation | G6: Spectral-line observation
B7: RAS system: | C7: Units
B8: Assumed centre frequency of RAS system | C8: GHz | D8: 170.75 | E8: 170.75 | F8: 183.5 | G8: 183.5
B9: Wavelength of RAS system | C9: m | D9: =2.99792458/D8/10 -> 0.001755739139 | E9: 0.001755739139 | F9: =2.99792458/F8/10 -> 0.001633746365 | G9: 0.001633746365
B10: Bandwidth (ITU-R RA.769-2) | C10: MHz | D10: 8000 | E10: 1 | F10: 8000 | G10: 1
B11: Antenna gain in the direction of interferer (ITU-R RA.769-2) | C11: dBi | D11: 0 | E11: 0 | F11: 0 | G11: 0
B12: Feeder (insertion) loss | C12: dB | D12: 0 | E12: 0 | F12: 0 | G12: 0
B13: Threshold Interference level at receiver input (ITU-R RA.769-2) | C13: dBW | D13: -189.1 | E13: -209 | F13: -182.4 | G13: -209
B14: Threshold Interference level at receiver input | C14: dBm | D14: =D13+30 -> -159.1 | E14: -179 | F14: =F13+30 -> -152.4 | G14: -179
B16: M-CDR/PA-CDR system:
B17: Conducted Tx power of CDR | C17: dBm | D17: -2 | E17: -2 | F17: -2 | G17: -2
B18: Out-of-band unwanted emissions attenuation (if RAS victim is located in an adjacent band) | C18: dB | D18: 0 | E18: 0 | F18: 20 | G18: 20
B19: Tx power e.i.r.p. of CDR | C19: dBm | D19: =D17-D18+D25 -> 30 | E19: =E17-E18+E25 -> 30 | F19: =F17-F18+F25 -> 10 | G19: =G17-G18+G25 -> 10
B20: Bandwidth of CDR Tx signal | C20: GHz | D20: 8 | E20: 8 | F20: 8 | G20: 8
B21: Mitigation technique (e.g. activity factor, adaptive power control) | C21: dB | D21: 0 | E21: 0 | F21: 0 | G21: 0
B22: Tx e.i.r.p. spectral density of CDR | C22: dBm/MHz | D22: =D19-10*LOG(D20*1000) -> -9.03089987 | E22: -9.03089987 | F22: =F19-10*LOG(F20*1000) -> -29.03089987 | G22: -29.03089987
B23: Tx e.i.r.p. spectral density of CDR with mitigation | C23: dBm/MHz | D23: =D19+D21-10*LOG(D20*1000) -> -9.03089987 | E23: -9.03089987 | F23: =F19+F21-10*LOG(F20*1000) -> -29.03089987 | G23: -29.03089987
B24: Tx e.i.r.p. of CDR with mitigation | C24: dBm | D24: =D19+D21 -> 30 | E24: =E19+E21 -> 30 | F24: =F19+F21 -> 10 | G24: =G19+G21 -> 10
B25: Gain of the CDR antenna in direction of main radiation | C25: dBi | D25: 32 | E25: 32 | F25: 32 | G25: 32
B27: Direct interference component:
B28: Reduction of e.i.r.p. due to spatial mitigation | C28: dB | D28: -28.6 | E28: -28.6 | F28: -28.6 | G28: -28.6
B29: Direct e.i.r.p. component sent to RAS | C29: dBm | D29: =D24+D28 -> 1.4 | E29: =E24+E28 -> 1.4 | F29: =F24+F28 -> -18.6 | G29: =G24+G28 -> -18.6
B31: Side-lobe interference component:
B32: Antenna side-lobe gain >60° offset angle | C32: dBi | D32: 0 | E32: 0 | F32: 0 | G32: 0
B33: Side-lobe e.i.r.p. component sent to the RAS | C33: dBm | D33: =D24-D25+D32 -> -2 | E33: =E24-E25+E32 -> -2 | F33: =F24-F25+F32 -> -22 | G33: =G24-G25+G32 -> -22
B35: Reflected interference component:
B36: Sidelobe suppression (first sidelobe, offset angle 20-30° (24° nominal) | C36: dB | D36: -28 | E36: -28 | F36: -28 | G36: -28
B37: Reflection loss on sand surface (angle of incidence 33°) | C37: dB | D37: 23 | E37: 23 | F37: 23 | G37: 23
B38: Reflected e.i.r.p. component sent to the RAS | C38: dBm | D38: =D24+D36-D37 -> -21 | E38: =E24+E36-E37 -> -21 | F38: =F24+F36-F37 -> -41 | G38: =G24+G36-G37 -> -41
B40: Total e.i.r.p. towards RAS | C40: dBm | D40: =10*LOG10(10^(D29/10)+10^(D33/10)+10^(D38/10)) -> 3.051975958 | E40: =10*LOG10(10^(E29/10)+10^(E33/10)+10^(E38/10)) -> 3.051975958 | F40: =10*LOG10(10^(F29/10)+10^(F33/10)+10^(F38/10)) -> -16.94802404 | G40: =10*LOG10(10^(G29/10)+10^(G33/10)+10^(G38/10)) -> -16.94802404
B41: BWCF | C41: dB | D41: =IF(D20*1000<=D10, 0, 10*LOG10(D10/D20/1000)) -> 0 | E41: =IF(E20*1000<=E10, 0, 10*LOG10(E10/E20/1000)) -> -39.03089987 | F41: =IF(F20*1000<=F10, 0, 10*LOG10(F10/F20/1000)) -> 0 | G41: =IF(G20*1000<=G10, 0, 10*LOG10(G10/G20/1000)) -> -39.03089987
B44: Separation distance calculation:
B45: Minimum coupling loss (MCL) | C45: dB | D45: =D40-(D14-D11+D12)+D41 -> 162.151976 | E45: =E40-(E14-E11+E12)+E41 -> 143.0210761 | F45: =F40-(F14-F11+F12)+F41 -> 135.451976 | G45: =G40-(G14-G11+G12)+G41 -> 123.0210761
B46: Separation distance with FSL model | C46: km | D46: =10^((D45-32.44-20*LOG10(D8*1000))/20) -> 17.91587755 | E46: =10^((E45-32.44-20*LOG10(E8*1000))/20) -> 1.980127212 | F46: =10^((F45-32.44-20*LOG10(F8*1000))/20) -> 0.7708373138 | G46: =10^((G45-32.44-20*LOG10(G8*1000))/20) -> 0.1842543441
B47: Specific attenuation due to atmospheric gases (acc. to ITU-R P.835-6 winter high latitude model) | C47: dB/km | D47: 0.21 | E47: 0.21 | F47: 3.55 | G47: 3.55
B48: Separation distance adjusted for attenuation due to atmospheric gases | C48: km | D48: 13.06370093 | E48: 1.891607244 | F48: 0.6025635951 | G48: 0.1717630104
B49: Balance check (should be close to zero) | C49: dB | D49: =D45-20*LOG10(D48)-D48*D47-32.44-20*LOG10(D8*1000) -> 5.992994946e-05 | E49: =E45-20*LOG10(E48)-E48*E47-32.44-20*LOG10(E8*1000) -> 4.950943094e-06 | F49: =F45-20*LOG10(F48)-F48*F47-32.44-20*LOG10(F8*1000) -> 9.603489792e-05 | G49: =G45-20*LOG10(G48)-G48*G47-32.44-20*LOG10(G8*1000) -> 3.166567524e-06
B53: Compatibility analysis between DBF-CDR in the frequency band 167 to 182 GHz and RAS systems
B55: Victim RAS system | D55: Band of RAS system: 164-174,5 GHz | F55: Band of RAS system: 182-185 GHz
B56: Sensor type | D56: Continuum observation | E56: Spectral-line observation | F56: Continuum observation | G56: Spectral-line observation
B57: RAS system: | C57: Units
B58: Assumed centre frequency of RAS system | C58: GHz | D58: 170.75 | E58: 170.75 | F58: 183.5 | G58: 183.5
B59: Wavelength of RAS system | C59: m | D59: =2.99792458/D58/10 -> 0.001755739139 | E59: 0.001755739139 | F59: 0.001633746365 | G59: 0.001633746365
B60: Bandwidth (ITU-R RA.769-2) | C60: MHz | D60: 8000 | E60: 1 | F60: 8000 | G60: 1
B61: Antenna gain in the direction of interferer (ITU-R RA.769-2) | C61: dBi | D61: 0 | E61: 0 | F61: 0 | G61: 0
B62: Feeder (insertion) loss | C62: dB | D62: 0 | E62: 0 | F62: 0 | G62: 0
B63: Threshold Interference level at receiver input (ITU-R RA.769-2) | C63: dBW | D63: -189.1 | E63: -209 | F63: -182.4 | G63: -209
B64: Threshold Interference level at receiver input | C64: dBm | D64: =D63+30 -> -159.1 | E64: -179 | F64: -152.4 | G64: -179
B66: DBF-CDR system:
B67: Conducted Tx power of CDR | C67: dBm | D67: -5 | E67: -5 | F67: -5 | G67: -5
B68: Out-of-band unwanted emissions attenuation (if RAS victim is located in an adjacent band) | C68: dB | D68: 0 | E68: 0 | F68: 20 | G68: 20
B69: Tx power e.i.r.p. of CDR | C69: dBm | D69: =D67-D68+D75 -> 5 | E69: =E67-E68+E75 -> 5 | F69: =F67-F68+F75 -> -15 | G69: =G67-G68+G75 -> -15
B70: Bandwidth of CDR Tx signal | C70: GHz | D70: 2.5 | E70: 2.5 | F70: 2.5 | G70: 2.5
B71: Mitigation technique (e.g. activity factor, adaptive power control) | C71: dB | D71: 0 | E71: 0 | F71: 0 | G71: 0
B72: Tx e.i.r.p. spectral density of CDR | C72: dBm/MHz | D72: =D69-10*LOG(D70*1000) -> -28.97940009 | E72: -28.97940009 | F72: -48.97940009 | G72: -48.97940009
B73: Tx e.i.r.p. spectral density of CDR with mitigation | C73: dBm/MHz | D73: =D69+D71-10*LOG(D70*1000) -> -28.97940009 | E73: -28.97940009 | F73: -48.97940009 | G73: -48.97940009
B74: Tx e.i.r.p. of CDR with mitigation | C74: dBm | D74: =D69+D71 -> 5 | E74: =E69+E71 -> 5 | F74: =F69+F71 -> -15 | G74: =G69+G71 -> -15
B75: Gain of the CDR antenna in direction of main radiation | C75: dBi | D75: 10 | E75: 10 | F75: 10 | G75: 10
B77: Side-lobe interference component:
B78: Antenna side-lobe gain >60° offset angle | C78: dBi | D78: 7 | E78: 7 | F78: 7 | G78: 7
B79: Side-lobe e.i.r.p. component sent to the RAS | C79: dBm | D79: =D74-D75+D78 -> 2 | E79: =E74-E75+E78 -> 2 | F79: =F74-F75+F78 -> -18 | G79: =G74-G75+G78 -> -18
B81: Reflected interference component:
B82: Sidelobe suppression (first sidelobe, offset angle 20-30° (24° nominal) | C82: dB | D82: 0 | E82: 0 | F82: 0 | G82: 0
B83: Reflection loss on sand surface (angle of incidence 33°) | C83: dB | D83: 23 | E83: 23 | F83: 23 | G83: 23
B84: Reflected e.i.r.p. component sent to the RAS | C84: dBm | D84: =D74+D82-D83 -> -18 | E84: =E74+E82-E83 -> -18 | F84: =F74+F82-F83 -> -38 | G84: =G74+G82-G83 -> -38
B86: Total e.i.r.p. towards RAS | C86: dBm | D86: =10*LOG10(10^(D79/10)+10^(D84/10)) -> 2.043213738 | E86: =10*LOG10(10^(E79/10)+10^(E84/10)) -> 2.043213738 | F86: =10*LOG10(10^(F79/10)+10^(F84/10)) -> -17.95678626 | G86: =10*LOG10(10^(G79/10)+10^(G84/10)) -> -17.95678626
B87: BWCF | C87: dB | D87: =IF(D70*1000<=D60, 0, 10*LOG10(D60/D70/1000)) -> 0 | E87: =IF(E70*1000<=E60, 0, 10*LOG10(E60/E70/1000)) -> -33.97940009 | F87: =IF(F70*1000<=F60, 0, 10*LOG10(F60/F70/1000)) -> 0 | G87: =IF(G70*1000<=G60, 0, 10*LOG10(G60/G70/1000)) -> -33.97940009
B90: Separation distance calculation:
B91: Minimum coupling loss (MCL) | C91: dB | D91: =D86-(D64-D61+D62)+D87 -> 161.1432137 | E91: =E86-(E64-E61+E62)+E87 -> 147.0638137 | F91: =F86-(F64-F61+F62)+F87 -> 134.4432137 | G91: =G86-(G64-G61+G62)+G87 -> 127.0638137
B92: Separation distance with FSL model | C92: km | D92: =10^((D91-32.44-20*LOG10(D58*1000))/20) -> 15.95144293 | E92: =10^((E91-32.44-20*LOG10(E58*1000))/20) -> 3.153769655 | F92: =10^((F91-32.44-20*LOG10(F58*1000))/20) -> 0.6863167817 | G92: =10^((G91-32.44-20*LOG10(G58*1000))/20) -> 0.2934638521
B93: Specific attenuation due to atmospheric gases (acc. to ITU-R P.835-6 winter high latitude model) | C93: dB/km | D93: 0.21 | E93: 0.21 | F93: 3.55 | G93: 3.55
B94: Separation distance adjusted for attenuation due to atmospheric gases | C94: km | D94: 11.94914456 | E94: 2.937713219 | F94: 0.5484942949 | G94: 0.2635108209
B95: Balance check (should be close to zero) | C95: dB | D95: =D91-20*LOG10(D94)-D94*D93-32.44-20*LOG10(D58*1000) -> -5.717405222e-05 | E95: =E91-20*LOG10(E94)-E94*E93-32.44-20*LOG10(E58*1000) -> -0.0005083222208 | F95: =F91-20*LOG10(F94)-F94*F93-32.44-20*LOG10(F58*1000) -> -0.000104674351 | G95: =G91-20*LOG10(G94)-G94*G93-32.44-20*LOG10(G58*1000) -> -0.0003402122933
D96: Note 1 | F96: Note 2
B98: Note 1: A power spectral density of -29dBm/MHz in the whole RAS bandwidth of 8GHz would result in a separation distance of 18.3km. Therefore, a separation distance of at least 18.3km should be considered in order to protect RAS.
B100: Note 2: A power spectral density of -29dBm/MHz in the whole RAS bandwidth of 8GHz would result in a separation distance of 0.9km. Therefore, a separation distance of at least 0.9km should be considered in order to protect RAS.

Sheet RAS 231,5-250GHz
B3: Compatibility analysis between M-CDR and PA-CDR in the frequency band 231,5 to 250 GHz and RAS systems
B5: Victim RAS system | D5: Band of RAS system: 190-231,5 GHz | F5: Band of RAS system: 235-238 GHz | H5: Band of RAS system: 241-275 GHz
B6: Sensor type | D6: Continuum observation | E6: Spectral-line observation | F6: Continuum observation | G6: Spectral-line observation | H6: Continuum observation | I6: Spectral-line observation
B7: RAS system: | C7: Units
B8: Assumed centre frequency of RAS system | C8: GHz | D8: 210.75 | E8: 210.75 | F8: 236.5 | G8: 236.5 | H8: 245.5 | I8: 245.5
B9: Wavelength of RAS system | C9: m | D9: =2.99792458/D8/10 -> 0.001422502766 | E9: 0.001422502766 | F9: 0.001267621387 | G9: 0.001267621387 | H9: 0.001221150542 | I9: 0.001221150542
B10: Bandwidth (ITU-R RA.769-2) | C10: MHz | D10: 8000 | E10: 1 | F10: 8000 | G10: 1 | H10: 8000 | I10: 1
B11: Antenna gain in the direction of interferer (ITU-R RA.769-2) | C11: dBi | D11: 0 | E11: 0 | F11: 0 | G11: 0 | H11: 0 | I11: 0
B12: Feeder (insertion) loss | C12: dB | D12: 0 | E12: 0 | F12: 0 | G12: 0 | H12: 0 | I12: 0
B13: Threshold Interference level at receiver input (ITU-R RA.769-2) | C13: dBW | D13: -187.8 | E13: -207 | F13: -187.8 | G13: -207 | H13: -186.8 | I13: -207
B14: Threshold Interference level at receiver input | C14: dBm | D14: =D13+30 -> -157.8 | E14: -177 | F14: -157.8 | G14: -177 | H14: -156.8 | I14: -177
B16: M-CDR/PA-CDR system:
B17: Conducted Tx power of CDR | C17: dBm | D17: 1 | E17: 1 | F17: 1 | G17: 1 | H17: 1 | I17: 1
B18: Out-of-band unwanted emissions attenuation (if RAS victim is located in an adjacent band) | C18: dB | D18: 20 | E18: 20 | F18: 0 | G18: 0 | H18: 0 | I18: 0
B19: Tx power e.i.r.p. of CDR | C19: dBm | D19: =D17-D18+D25 -> 13 | E19: 13 | F19: 33 | G19: 33 | H19: 33 | I19: 33
B20: Bandwidth of CDR Tx signal | C20: GHz | D20: 8 | E20: 8 | F20: 8 | G20: 8 | H20: 8 | I20: 8
B21: Mitigation technique (e.g. activity factor, adaptive power control) | C21: dB | D21: 0 | E21: 0 | F21: 0 | G21: 0 | H21: 0 | I21: 0
B22: Tx e.i.r.p. spectral density of CDR | C22: dBm/MHz | D22: =D19-10*LOG(D20*1000) -> -26.03089987 | E22: -26.03089987 | F22: -6.03089987 | G22: -6.03089987 | H22: -6.03089987 | I22: -6.03089987
B23: Tx e.i.r.p. spectral density of CDR with mitigation | C23: dBm/MHz | D23: =D19+D21-10*LOG(D20*1000) -> -26.03089987 | E23: -26.03089987 | F23: -6.03089987 | G23: -6.03089987 | H23: -6.03089987 | I23: -6.03089987
B24: Tx e.i.r.p. of CDR with mitigation | C24: dBm | D24: =D19+D21 -> 13 | E24: 13 | F24: 33 | G24: 33 | H24: 33 | I24: 33
B25: Gain of the CDR antenna in direction of main radiation | C25: dBi | D25: 32 | E25: 32 | F25: 32 | G25: 32 | H25: 32 | I25: 32
B27: Direct interference component:
B28: Reduction of e.i.r.p. due to spatial mitigation | C28: dB | D28: -28.6 | E28: -28.6 | F28: -28.6 | G28: -28.6 | H28: -28.6 | I28: -28.6
B29: Direct e.i.r.p. component sent to RAS | C29: dBm | D29: =D24+D28 -> -15.6 | E29: -15.6 | F29: 4.4 | G29: 4.4 | H29: 4.4 | I29: 4.4
B31: Side-lobe interference component:
B32: Antenna side-lobe gain >60° offset angle | C32: dBi | D32: 0 | E32: 0 | F32: 0 | G32: 0 | H32: 0 | I32: 0
B33: Side-lobe e.i.r.p. component sent to the RAS | C33: dBm | D33: =D24-D25+D32 -> -19 | E33: -19 | F33: 1 | G33: 1 | H33: 1 | I33: 1
B35: Reflected interference component:
B36: Sidelobe suppression (first sidelobe, offset angle 20-30° (24° nominal) | C36: dB | D36: -28 | E36: -28 | F36: -28 | G36: -28 | H36: -28 | I36: -28
B37: Reflection loss on sand surface (angle of incidence 33°) | C37: dB | D37: 25 | E37: 25 | F37: 25 | G37: 25 | H37: 25 | I37: 25
B38: Reflected e.i.r.p. component sent to the RAS | C38: dBm | D38: =D24+D36-D37 -> -40 | E38: -40 | F38: -20 | G38: -20 | H38: -20 | I38: -20
B40: Total e.i.r.p. towards RAS | C40: dBm | D40: =10*LOG10(10^(D29/10)+10^(D33/10)+10^(D38/10)) -> -13.95433331 | E40: -13.95433331 | F40: 6.045666694 | G40: 6.045666694 | H40: 6.045666694 | I40: 6.045666694
B41: BWCF | C41: dB | D41: =IF(D20*1000<=D10, 0, 10*LOG10(D10/D20/1000)) -> 0 | E41: -39.03089987 | F41: 0 | G41: -39.03089987 | H41: 0 | I41: -39.03089987
B44: Separation distance calculation:
B45: Minimum coupling loss (MCL) | C45: dB | D45: =D40-(D14-D11+D12)+D41 -> 143.8456667 | E45: 124.0147668 | F45: 163.8456667 | G45: 144.0147668 | H45: 162.8456667 | I45: 144.0147668
B46: Separation distance with FSL model | C46: km | D46: =10^((D45-32.44-20*LOG10(D8*1000))/20) -> 1.764069744 | E46: 0.1798749797 | F46: 15.71998726 | G46: 1.602902832 | H46: 13.49683188 | I46: 1.54414061
B47: Specific attenuation due to atmospheric gases (acc. to ITU-R P.835-6 winter high latitude model) | C47: dB/km | D47: 0.25 | E47: 0.25 | F47: 0.27 | G47: 0.27 | H47: 0.29 | I47: 0.29
B48: Separation distance adjusted for attenuation due to atmospheric gases | C48: km | D48: 1.680740513 | E48: 0.1789464452 | F48: 11.12371583 | G48: 1.528503698 | H48: 9.746871783 | I48: 1.470157281
B49: Balance check (should be close to zero) | C49: dB | D49: =D45-20*LOG10(D48)-D48*D47-32.44-20*LOG10(D8*1000) -> 0.0001165315901 | E49: 0.0002170381055 | F49: 0.0006428076122 | G49: 0.0001180460018 | H49: 0.0007388861659 | I49: 0.0001152997809
B53: Compatibility analysis between DBF-CDR in the frequency band 231,5 to 250 GHz and RAS systems
B55: Victim RAS system | D55: Band of RAS system: 190-231,5 GHz | F55: Band of RAS system: 235-238 GHz | H55: Band of RAS system: 241-275 GHz
B56: Sensor type | D56: Continuum observation | E56: Spectral-line observation | F56: Continuum observation | G56: Spectral-line observation | H56: Continuum observation | I56: Spectral-line observation
B57: RAS system: | C57: Units
B58: Assumed centre frequency of RAS system | C58: GHz | D58: 210.75 | E58: 210.75 | F58: 236.5 | G58: 236.5 | H58: 245.5 | I58: 245.5
B59: Wavelength of RAS system | C59: m | D59: =2.99792458/D58/10 -> 0.001422502766 | E59: 0.001422502766 | F59: 0.001267621387 | G59: 0.001267621387 | H59: 0.001221150542 | I59: 0.001221150542
B60: Bandwidth (ITU-R RA.769-2) | C60: MHz | D60: 8000 | E60: 1 | F60: 8000 | G60: 1 | H60: 8000 | I60: 1
B61: Antenna gain in the direction of interferer (ITU-R RA.769-2) | C61: dBi | D61: 0 | E61: 0 | F61: 0 | G61: 0 | H61: 0 | I61: 0
B62: Feeder (insertion) loss | C62: dB | D62: 0 | E62: 0 | F62: 0 | G62: 0 | H62: 0 | I62: 0
B63: Threshold Interference level at receiver input (ITU-R RA.769-2) | C63: dBW | D63: -187.8 | E63: -207 | F63: -187.8 | G63: -207 | H63: -186.8 | I63: -207
B64: Threshold Interference level at receiver input | C64: dBm | D64: =D63+30 -> -157.8 | E64: -177 | F64: -157.8 | G64: -177 | H64: -156.8 | I64: -177
B66: DBF-CDR system:
B67: Conducted Tx power of CDR | C67: dBm | D67: -5 | E67: -5 | F67: -5 | G67: -5 | H67: -5 | I67: -5
B68: Out-of-band unwanted emissions attenuation (if RAS victim is located in an adjacent band) | C68: dB | D68: 20 | E68: 20 | F68: 0 | G68: 0 | H68: 0 | I68: 0
B69: Tx power e.i.r.p. of CDR | C69: dBm | D69: =D67-D68+D75 -> -15 | E69: -15 | F69: 5 | G69: 5 | H69: 5 | I69: 5
B70: Bandwidth of CDR Tx signal | C70: GHz | D70: 0.63 | E70: 0.63 | F70: 0.63 | G70: 0.63 | H70: 0.63 | I70: 0.63
B71: Mitigation technique (e.g. activity factor, adaptive power control) | C71: dB | D71: 0 | E71: 0 | F71: 0 | G71: 0 | H71: 0 | I71: 0
B72: Tx e.i.r.p. spectral density of CDR | C72: dBm/MHz | D72: =D69-10*LOG(D70*1000) -> -42.99340549 | E72: -42.99340549 | F72: -22.99340549 | G72: -22.99340549 | H72: -22.99340549 | I72: -22.99340549
B73: Tx e.i.r.p. spectral density of CDR with mitigation | C73: dBm/MHz | D73: =D69+D71-10*LOG(D70*1000) -> -42.99340549 | E73: -42.99340549 | F73: -22.99340549 | G73: -22.99340549 | H73: -22.99340549 | I73: -22.99340549
B74: Tx e.i.r.p. of CDR with mitigation | C74: dBm | D74: =D69+D71 -> -15 | E74: -15 | F74: 5 | G74: 5 | H74: 5 | I74: 5
B75: Gain of the CDR antenna in direction of main radiation | C75: dBi | D75: 10 | E75: 10 | F75: 10 | G75: 10 | H75: 10 | I75: 10
B77: Side-lobe interference component:
B78: Antenna side-lobe gain >60° offset angle | C78: dBi | D78: 7 | E78: 7 | F78: 7 | G78: 7 | H78: 7 | I78: 7
B79: Side-lobe e.i.r.p. component sent to the RAS | C79: dBm | D79: =D74-D75+D78 -> -18 | E79: -18 | F79: 2 | G79: 2 | H79: 2 | I79: 2
B81: Reflected interference component:
B82: Sidelobe suppression (first sidelobe, offset angle 20-30° (24° nominal) | C82: dB | D82: 0 | E82: 0 | F82: 0 | G82: 0 | H82: 0 | I82: 0
B83: Reflection loss on sand surface (angle of incidence 33°) | C83: dB | D83: 25 | E83: 25 | F83: 25 | G83: 25 | H83: 25 | I83: 25
B84: Reflected e.i.r.p. component sent to the RAS | C84: dBm | D84: =D74+D82-D83 -> -40 | E84: -40 | F84: -20 | G84: -20 | H84: -20 | I84: -20
B86: Total e.i.r.p. towards RAS | C86: dBm | D86: =10*LOG10(10^(D79/10)+10^(D84/10)) -> -17.97268396 | E86: -17.97268396 | F86: 2.027316043 | G86: 2.027316043 | H86: 2.027316043 | I86: 2.027316043
B87: BWCF | C87: dB | D87: =IF(D70*1000<=D60, 0, 10*LOG10(D60/D70/1000)) -> 0 | E87: -27.99340549 | F87: 0 | G87: -27.99340549 | H87: 0 | I87: -27.99340549
B90: Separation distance calculation:
B91: Minimum coupling loss (MCL) | C91: dB | D91: =D86-(D64-D61+D62)+D87 -> 139.827316 | E91: 131.0339105 | F91: 159.827316 | G91: 151.0339105 | H91: 158.827316 | I91: 151.0339105
B92: Separation distance with FSL model | C92: km | D92: =10^((D91-32.44-20*LOG10(D58*1000))/20) -> 1.110703701 | E92: 0.4035784278 | F92: 9.897708453 | G92: 3.596370134 | H92: 8.497952627 | I92: 3.464527644
B93: Specific attenuation due to atmospheric gases (acc. to ITU-R P.835-6 winter high latitude model) | C93: dB/km | D93: 0.25 | E93: 0.25 | F93: 0.27 | G93: 0.27 | H93: 0.29 | I93: 0.29
B94: Separation distance adjusted for attenuation due to atmospheric gases | C94: km | D94: 1.076746393 | E94: 0.3989703642 | F94: 7.773113485 | G94: 3.250547197 | H94: 6.777094186 | I94: 3.121462806
B95: Balance check (should be close to zero) | C95: dB | D95: =D91-20*LOG10(D94)-D94*D93-32.44-20*LOG10(D58*1000) -> 0.0005092677005 | E95: 3.548409978e-06 | F95: 5.233468634e-05 | G95: 0.0005103794618 | H95: 5.837307643e-05 | I95: 0.0004931168787
D96: Note 1 | F96: Note 2 | H96: Note 3
B98: Note 1: A power spectral density of -23dBm/MHz in the whole RAS bandwidth of 8GHz would result in a separation distance of 3.6km. Therefore, a separation distance of at least 3.6km should be considered in order to protect RAS.
B100: Note 2: A power spectral density of -23dBm/MHz in the whole RAS bandwidth of 8GHz would result in a separation distance of 19.3km. Therefore, a separation distance of at least 19.3km should be considered in order to protect RAS.
B102: Note 3: A power spectral density of -23dBm/MHz in the whole RAS bandwidth of 8GHz would result in a separation distance of 17.1km. Therefore, a separation distance of at least 17.1km should be considered in order to protect RAS.

Sheet DBF-CDR vs. FS 116-148,5GHz
B3: Compatibility analysis between DBF-CDR in the frequency band 116-148,5 GHz and Fixed Service (FS) systems
B5: Scenario 1: Light pole connected to a building by means of an FS link – FS Rx on building. See Report figure 38.
B7: Victim Fixed Service (FS) system | D7: Band of FS system: 111,8-114,25 GHz | E7: Band of FS system: 111,8-114,25 GHz | F7: Band of FS system: 130-134 GHz | G7: Band of FS system: 130-134 GHz | H7: Band of FS system: 141-148,5 GHz | I7: Band of FS system: 141-148,5 GHz
B8: Sensor type | D8: Point-to-point (PP) | E8: Point-to-point (PP) | F8: Point-to-point (PP) | G8: Point-to-point (PP) | H8: Point-to-point (PP) | I8: Point-to-point (PP)
B9: FS system: | C9: Units
B10: Assumed centre frequency of FS system | C10: GHz | D10: 113.025 | E10: 113.025 | F10: 132 | G10: 132 | H10: 144.75 | I10: 144.75
B11: Wavelength of FS system | C11: m | D11: =2.99792458/D10/10 -> 0.002652443778 | E11: 0.002652443778 | F11: 0.002271154985 | G11: 0.002271154985 | H11: 0.002071105064 | I11: 0.002071105064
B12: Receiver noise bandwidth (ITU-R-F.758-6) | C12: MHz | D12: 1000 | E12: 1000 | F12: 1000 | G12: 1000 | H12: 1000 | I12: 1000
B13: Receiver noise figure (ITU-R-F.758-6) | C13: dB | D13: 12 | E13: 12 | F13: 14 | G13: 14 | H13: 14 | I13: 14
B14: Misalignment of antenna main beam towards CDR (see figure 38 in the Report) | C14: ° | D14: 0.19 | E14: 0.19 | F14: 0.19 | G14: 0.19 | H14: 0.19 | I14: 0.19
B15: Misalignment of antenna main beam towards reflection point on sand surface (see figure 38 in the Report) | C15: ° | D15: 0.67 | E15: 0.67 | F15: 0.67 | G15: 0.67 | H15: 0.67 | I15: 0.67
B16: Antenna gain in the direction of interferer for the side-lobe interference component (ITU-R-F.758-6) | C16: dBi | D16: 43 | E16: 43 | F16: 43 | G16: 43 | H16: 43 | I16: 43
B17: Antenna gain in the direction of interferer for the reflected interference component (ITU-R-F.758-6) | C17: dBi | D17: 40 | E17: 40 | F17: 40 | G17: 40 | H17: 40 | I17: 40
B18: Feeder (insertion) loss (ITU-R-F.758-6) | C18: dB | D18: 0 | E18: 0 | F18: 0 | G18: 0 | H18: 0 | I18: 0
B19: I/N criteria (ITU-R F.758-6 ) | C19: dB | D19: -20 | E19: 5 | F19: -20 | G19: 5 | H19: -20 | I19: 5
B20: Receiver noise power density typical (ITU-R-F.758-6) | C20: dBW/MHz | D20: -132 | E20: -132 | F20: -130 | G20: -130 | H20: -130 | I20: -130
B21: Nominal long-term interference power density threshold (ITU-R-F.758-6) | C21: dBW/MHz | D21: =D20+D19 -> -152 | E21: -127 | F21: -150 | G21: -125 | H21: -150 | I21: -125
B22: Interference threshold at receiver input within IF bandwidth | C22: dBm | D22: =D21+10*LOG10(D12)+30 -> -92 | E22: -67 | F22: -90 | G22: -65 | H22: -90 | I22: -65
B23: (Receiver noise power density calculated over NF) | C23: dBW/MHz | D23: =-113.83+D13-30 -> -131.83 | E23: -131.83 | F23: -129.83 | G23: -129.83 | H23: -129.83 | I23: -129.83
B25: DBF-CDR system:
B26: Conducted Tx power of CDR | C26: dBm | D26: -5 | E26: 5 | F26: -5 | G26: 5 | H26: -5 | I26: 5
B27: Out-of-band unwanted emissions attenuation (if FS victim is located in an adjacent band) | C27: dB | D27: 20 | E27: 20 | F27: 0 | G27: 0 | H27: 0 | I27: 0
B28: Tx e.i.r.p. of CDR | C28: dBm | D28: =D26-D27+D34 -> -15 | E28: -5 | F28: 5 | G28: 15 | H28: 5 | I28: 15
B29: Bandwidth of CDR Tx signal | C29: GHz | D29: 5.7 | E29: 5.7 | F29: 5.7 | G29: 5.7 | H29: 5.7 | I29: 5.7
B30: Mitigation technique (e.g. activity factor, adaptive power control) | C30: dB | D30: 0 | E30: 0 | F30: 0 | G30: 0 | H30: 0 | I30: 0
B31: Tx e.i.r.p. spectral density of CDR | C31: dBm/MHz | D31: =D28-10*LOG(D29*1000) -> -52.55874856 | E31: -42.55874856 | F31: -32.55874856 | G31: -22.55874856 | H31: -32.55874856 | I31: -22.55874856
B32: Tx e.i.r.p. spectral density of CDR with mitigation | C32: dBm/MHz | D32: =D28+D30-10*LOG(D29*1000) -> -52.55874856 | E32: -42.55874856 | F32: -32.55874856 | G32: -22.55874856 | H32: -32.55874856 | I32: -22.55874856
B33: Tx e.i.r.p. of CDR with mitigation | C33: dBm | D33: =D28+D30 -> -15 | E33: -5 | F33: 5 | G33: 15 | H33: 5 | I33: 15
B34: Gain of the CDR antenna in direction of main radiation | C34: dBi | D34: 10 | E34: 10 | F34: 10 | G34: 10 | H34: 10 | I34: 10
B36: Side-lobe interference component:
B37: Antenna side-lobe gain (offset angle 90°+ε, see figure 38 in the Report ) | C37: dBi | D37: -4.7 | E37: -4.7 | F37: -5.4 | G37: -5.4 | H37: -6.9 | I37: -6.9
B38: Direct e.i.r.p. component sent to FS system | C38: dBm | D38: =D33-D34+D37 -> -29.7 | E38: -19.7 | F38: -10.4 | G38: -0.4 | H38: -11.9 | I38: -1.9
B39: Direct e.i.r.p. component at FS receiver | C39: dBm | D39: =D38+D16-D18 -> 13.3 | E39: 23.3 | F39: 32.6 | G39: 42.6 | H39: 31.1 | I39: 41.1
B41: Reflected interference component:
B42: Offset angle of reflected interference component (angle ζ in figure 38 in the Report) | C42: ° | D42: 19.71 | E42: 19.71 | F42: 19.71 | G42: 19.71 | H42: 19.71 | I42: 19.71
B43: Antenna gain at angle ζ (see figure 38 in the Report) | C43: dBi | D43: 10 | E43: 10 | F43: 10 | G43: 10 | H43: 10 | I43: 10
B44: Reflection loss on sand surface (angle of incidence 52,71°) | C44: dB | D44: 9 | E44: 9 | F44: 9 | G44: 9 | H44: 9 | I44: 9
B45: Reflected e.i.r.p. component sent to FS system | C45: dBm | D45: =D33-D34+D43-D44 -> -24 | E45: -14 | F45: -4 | G45: 6 | H45: -4 | I45: 6
B46: Reflected e.i.r.p. component at FS receiver | C46: dBm | D46: =D45+D17-D18 -> 16 | E46: 26 | F46: 36 | G46: 46 | H46: 36 | I46: 46
B48: Total e.i.r.p. at FS receiver | C48: dBm | D48: =10*LOG10(10^(D39/10)+10^(D46/10)) -> 17.86682852 | E48: 27.86682852 | F48: 37.63485838 | G48: 47.63485838 | H48: 37.21754677 | I48: 47.21754677
B49: BWCF | C49: dB | D49: =IF(D12*1000<=D29, 0, 10*LOG10(D12/D29/1000)) -> -7.558748557 | E49: 0 | F49: =IF(F12*1000<=F29, 0, 10*LOG10(F12/F29/1000)) -> -7.558748557 | G49: 0 | H49: =IF(H12*1000<=H29, 0, 10*LOG10(H12/H29/1000)) -> -7.558748557 | I49: 0
B51: Separation distance calculation:
B52: Minimum coupling loss (MCL) | C52: dB | D52: =D48-D22+D49 -> 102.30808 | E52: 94.86682852 | F52: 120.0761098 | G52: 112.6348584 | H52: 119.6587982 | I52: 112.2175468
B53: Separation distance with FSL model | C53: km | D53: =10^((D52-32.44-20*LOG10(D10*1000))/20) -> 0.0275568443 | E53: =10^((E52-32.44-20*LOG10(E10*1000))/20) -> 0.01169948945 | F53: 0.1824868438 | G53: =10^((G52-32.44-20*LOG10(G10*1000))/20) -> 0.07747632064 | H53: 0.1586066303 | I53: =10^((I52-32.44-20*LOG10(I10*1000))/20) -> 0.06733777563
B54: Specific attenuation due to atmospheric gases (ITU-R P.676-11 figure 5) | C54: dB/km | D54: 0.4 | E54: 0.4 | F54: 0.8 | G54: 0.8 | H54: 1 | I54: 1
B55: Separation distance adjusted for attenuation due to atmospheric gases | C55: km | D55: 0.02752041354 | E55: 0.011693017 | F55: 0.1794862349 | G55: 0.07692684624 | H55: 0.1557799849 | I55: 0.06682170094
B56: Balance check (should be close to zero) | C56: dB | D56: =D52-20*LOG10(D55)-D55*D54-32.44-20*LOG10(D10*1000) -> 0.0004823698947 | E56: 0.0001293754634 | F56: 0.0004192655459 | G56: 0.0002797172521 | H56: 0.0004136370418 | I56: 3.096482317e-06
D57: Long term interference criterion | E57: Peak power objective | F57: Long term interference criterion | G57: Peak power objective | H57: Long term interference criterion | I57: Peak power objective
B61: Scenario 2: Light pole connected to a building by means of an FS link – FS Rx at light pole. See Report figure 39.
B63: Victim Fixed Service (FS) system | D63: Band of FS system: 111,8-114,25 GHz | E63: Band of FS system: 111,8-114,25 GHz | F63: Band of FS system: 130-134 GHz | G63: Band of FS system: 130-134 GHz | H63: Band of FS system: 141-148,5 GHz | I63: Band of FS system: 141-148,5 GHz
B64: Sensor type | D64: Point-to-point (PP) | E64: Point-to-point (PP) | F64: Point-to-point (PP) | G64: Point-to-point (PP) | H64: Point-to-point (PP) | I64: Point-to-point (PP)
B65: FS system: | C65: Units
B66: Assumed centre frequency of FS system | C66: GHz | D66: 113.025 | E66: 113.025 | F66: 132 | G66: 132 | H66: 144.75 | I66: 144.75
B67: Wavelength of FS system | C67: m | D67: =2.99792458/D66/10 -> 0.002652443778 | E67: 0.002652443778 | F67: 0.002271154985 | G67: 0.002271154985 | H67: 0.002071105064 | I67: 0.002071105064
B68: Receiver noise bandwidth (ITU-R-F.758-6) | C68: MHz | D68: 1000 | E68: 1000 | F68: 1000 | G68: 1000 | H68: 1000 | I68: 1000
B69: Receiver noise figure (ITU-R-F.758-6) | C69: dB | D69: 12 | E69: 12 | F69: 14 | G69: 14 | H69: 14 | I69: 14
B70: Misalignment of antenna main beam towards CDR (angle α in figure 39 in the Report) | C70: ° | D70: 3.62 | E70: 3.62 | F70: 3.62 | G70: 3.62 | H70: 3.62 | I70: 3.62
B71: Misalignment of antenna main beam towards reflection point on sand surface (angle α+β in figure 39 in the Report) | C71: ° | D71: 4.29 | E71: 4.29 | F71: 4.29 | G71: 4.29 | H71: 4.29 | I71: 4.29
B72: Antenna gain in the direction of interferer for the side-lobe interference component (ITU-R-F.758-6) | C72: dBi | D72: 22 | E72: 22 | F72: 22 | G72: 22 | H72: 22 | I72: 22
B73: Antenna gain in the direction of interferer for the reflected interference component (ITU-R-F.758-6) | C73: dBi | D73: 19 | E73: 19 | F73: 19 | G73: 19 | H73: 19 | I73: 19
B74: Feeder (insertion) loss (ITU-R-F.758-6) | C74: dB | D74: 0 | E74: 0 | F74: 0 | G74: 0 | H74: 0 | I74: 0
B75: I/N criteria (ITU-R F.758-6 ) | C75: dB | D75: -20 | E75: 5 | F75: -20 | G75: 5 | H75: -20 | I75: 5
B76: Receiver noise power density typical (ITU-R-F.758-6) | C76: dBW/MHz | D76: -132 | E76: -132 | F76: -130 | G76: -130 | H76: -130 | I76: -130
B77: Nominal long-term interference power density threshold (ITU-R-F.758-6) | C77: dBW/MHz | D77: =D76+D75 -> -152 | E77: -127 | F77: -150 | G77: -125 | H77: -150 | I77: -125
B78: Interference threshold at receiver input within IF bandwidth | C78: dBm | D78: =D77+10*LOG10(D68)+30 -> -92 | E78: -67 | F78: -90 | G78: -65 | H78: -90 | I78: -65
B79: (Receiver noise power density calculated over NF) | C79: dBW/MHz | D79: =-113.83+D69-30 -> -131.83 | E79: -131.83 | F79: -129.83 | G79: -129.83 | H79: -129.83 | I79: -129.83
B81: DBF-CDR system:
B82: Conducted Tx power of CDR | C82: dBm | D82: -5 | E82: 5 | F82: -5 | G82: 5 | H82: -5 | I82: 5
B83: Out-of-band unwanted emissions attenuation (if FS victim is located in an adjacent band) | C83: dB | D83: 20 | E83: 20 | F83: 0 | G83: 0 | H83: 0 | I83: 0
B84: Tx e.i.r.p. of CDR | C84: dBm | D84: =D82-D83+D90 -> -15 | E84: -5 | F84: 5 | G84: 15 | H84: 5 | I84: 15
B85: Bandwidth of CDR Tx signal | C85: GHz | D85: 5.7 | E85: 5.7 | F85: 5.7 | G85: 5.7 | H85: 5.7 | I85: 5.7
B86: Mitigation technique (e.g. activity factor, adaptive power control) | C86: dB | D86: 0 | E86: 0 | F86: 0 | G86: 0 | H86: 0 | I86: 0
B87: Tx e.i.r.p. spectral density of CDR | C87: dBm/MHz | D87: =D84-10*LOG(D85*1000) -> -52.55874856 | E87: -42.55874856 | F87: -32.55874856 | G87: -22.55874856 | H87: -32.55874856 | I87: -22.55874856
B88: Tx e.i.r.p. spectral density of CDR with mitigation | C88: dBm/MHz | D88: =D84+D86-10*LOG(D85*1000) -> -52.55874856 | E88: -42.55874856 | F88: -32.55874856 | G88: -22.55874856 | H88: -32.55874856 | I88: -22.55874856
B89: Tx e.i.r.p. of CDR with mitigation | C89: dBm | D89: =D84+D86 -> -15 | E89: -5 | F89: 5 | G89: 15 | H89: 5 | I89: 15
B90: Gain of the CDR antenna in direction of main radiation | C90: dBi | D90: 10 | E90: 10 | F90: 10 | G90: 10 | H90: 10 | I90: 10
B92: Side-lobe interference component:
B93: Antenna side-lobe gain (offset angle 90°, see figure 39 in the Report ) | C93: dBi | D93: -4.7 | E93: -4.7 | F93: -5.4 | G93: -5.4 | H93: -6.9 | I93: -6.9
B94: Direct e.i.r.p. component sent to FS system | C94: dBm | D94: =D89-D90+D93 -> -29.7 | E94: -19.7 | F94: -10.4 | G94: -0.4 | H94: -11.9 | I94: -1.9
B95: Direct e.i.r.p. component at FS receiver | C95: dBm | D95: =D94+D72-D74 -> -7.7 | E95: 2.3 | F95: 11.6 | G95: 21.6 | H95: 10.1 | I95: 20.1
B97: Reflected interference component:
B98: Offset angle of reflected interference component (angle ζ in figure 39 in the Report) | C98: ° | D98: 23.33 | E98: 23.33 | F98: 23.33 | G98: 23.33 | H98: 23.33 | I98: 23.33
B99: Antenna gain at angle ζ (see figure 39 in the Report) | C99: dBi | D99: 10 | E99: 10 | F99: 10 | G99: 10 | H99: 10 | I99: 10
B100: Reflection loss on sand surface (angle of incidence 56,33°) | C100: dB | D100: 8 | E100: 8 | F100: 8 | G100: 8 | H100: 8 | I100: 8
B101: Reflected e.i.r.p. component sent to FS system | C101: dBm | D101: =D89-D90+D99-D100 -> -23 | E101: -13 | F101: -3 | G101: 7 | H101: -3 | I101: 7
B102: Reflected e.i.r.p. component at FS receiver | C102: dBm | D102: =D101+D73-D74 -> -4 | E102: 6 | F102: 16 | G102: 26 | H102: 16 | I102: 26
B104: Total e.i.r.p. at FS receiver | C104: dBm | D104: =10*LOG10(10^(D95/10)+10^(D102/10)) -> -2.457040154 | E104: 7.542959846 | F104: 17.34520726 | G104: 27.34520726 | H104: 16.99348952 | I104: 26.99348952
B105: BWCF | C105: dB | D105: =IF(D68*1000<=D85, 0, 10*LOG10(D68/D85/1000)) -> -7.558748557 | E105: 0 | F105: =IF(F68*1000<=F85, 0, 10*LOG10(F68/F85/1000)) -> -7.558748557 | G105: 0 | H105: =IF(H68*1000<=H85, 0, 10*LOG10(H68/H85/1000)) -> -7.558748557 | I105: 0
B107: Separation distance calculation:
B108: Minimum coupling loss (MCL) | C108: dB | D108: =D104-D78+D105 -> 81.98421129 | E108: 74.54295985 | F108: 99.7864587 | G108: 92.34520726 | H108: 99.43474096 | I108: 91.99348952
B109: Separation distance with FSL model | C109: km | D109: =10^((D108-32.44-20*LOG10(D66*1000))/20) -> 0.002654825918 | E109: 0.001127128618 | F109: 0.01765017452 | G109: 0.007493529679 | H109: 0.01545676043 | I109: 0.006562297324
B110: Specific attenuation due to atmospheric gases (ITU-R P.676-11 figure 5) | C110: dB/km | D110: 0.4 | E110: 0.4 | F110: 0.8 | G110: 0.8 | H110: 1 | I110: 1
B111: Separation distance adjusted for attenuation due to atmospheric gases | C111: km | D111: 0.002654352296 | E111: 0.001126988929 | F111: 0.01762057787 | G111: 0.007488360212 | H111: 0.01542847674 | I111: 0.006557314793
B112: Balance check (should be close to zero) | C112: dB | D112: =D108-20*LOG10(D111)-D111*D110-32.44-20*LOG10(D66*1000) -> 0.0004879630049 | E112: 0.0006257398245 | F112: 0.0004806737145 | G112: 3.404852833e-06 | H112: 0.0004800331068 | I112: 4.00936691e-05
D113: Long term interference criterion | E113: Peak power objective | F113: Long term interference criterion | G113: Peak power objective | H113: Long term interference criterion | I113: Peak power objective

Sheet DBF-CDR vs. FS 167-182GHz
B3: Compatibility analysis between DBF-CDR in the frequency band 167 to 182 GHz and Fixed Service (FS) systems
B5: Scenario 1: Light pole connected to a building by means of an FS link – FS Rx on building. See Report figure 38.
B7: Victim Fixed Service (FS) system | D7: Band of FS system: 167-174,8 GHz | E7: Band of FS system: 167-174,8 GHz
B8: Sensor type | D8: Point-to-point (PP) | E8: Point-to-point (PP)
B9: FS system: | C9: Units
B10: Assumed centre frequency of FS system | C10: GHz | D10: 170.9 | E10: 170.9
B11: Wavelength of FS system | C11: m | D11: =2.99792458/D10/10 -> 0.001754198116 | E11: =2.99792458/E10/10 -> 0.001754198116
B12: Receiver noise bandwidth (ITU-R-F.758-6) | C12: MHz | D12: 1000 | E12: 1000
B13: Receiver noise figure (ITU-R-F.758-6) | C13: dB | D13: 14 | E13: 14
B14: Misalignment of antenna main beam towards CDR (see figure 38 in the Report) | C14: ° | D14: 0.19 | E14: 0.19
B15: Misalignment of antenna main beam towards reflection point on sand surface (see figure 38 in the Report) | C15: ° | D15: 0.67 | E15: 0.67
B16: Antenna gain in the direction of interferer for the side-lobe interference component (ITU-R-F.758-6) | C16: dBi | D16: 43 | E16: 43
B17: Antenna gain in the direction of interferer for the reflected interference component (ITU-R-F.758-6) | C17: dBi | D17: 40 | E17: 40
B18: Feeder (insertion) loss (ITU-R-F.758-6) | C18: dB | D18: 0 | E18: 0
B19: I/N criteria (ITU-R F.758-6 ) | C19: dB | D19: -20 | E19: 5
B20: Receiver noise power density typical (ITU-R-F.758-6) | C20: dBW/MHz | D20: -130 | E20: -130
B21: Nominal long-term interference power density threshold (ITU-R-F.758-6) | C21: dBW/MHz | D21: =D20+D19 -> -150 | E21: =E20+E19 -> -125
B22: Interference threshold at receiver input within IF bandwidth | C22: dBm | D22: =D21+10*LOG10(D12)+30 -> -90 | E22: =E21+10*LOG10(E12)+30 -> -65
B23: (Receiver noise power density calculated over NF) | C23: dBW/MHz | D23: =-113.83+D13-30 -> -129.83 | E23: =-113.83+E13-30 -> -129.83
B25: DBF-CDR system:
B26: Conducted Tx power of CDR | C26: dBm | D26: -5 | E26: 5
B27: Out-of-band unwanted emissions attenuation (if FS victim is located in an adjacent band) | C27: dB | D27: 0 | E27: 0
B28: Tx e.i.r.p. of CDR | C28: dBm | D28: =D26-D27+D34 -> 5 | E28: =E26-E27+E34 -> 15
B29: Bandwidth of CDR Tx signal | C29: GHz | D29: 2.5 | E29: 2.5
B30: Mitigation technique (e.g. activity factor, adaptive power control) | C30: dB | D30: 0 | E30: 0
B31: Tx e.i.r.p. spectral density of CDR | C31: dBm/MHz | D31: =D28-10*LOG(D29*1000) -> -28.97940009 | E31: =E28-10*LOG(E29*1000) -> -18.97940009
B32: Tx e.i.r.p. spectral density of CDR with mitigation | C32: dBm/MHz | D32: =D28+D30-10*LOG(D29*1000) -> -28.97940009 | E32: =E28+E30-10*LOG(E29*1000) -> -18.97940009
B33: Tx e.i.r.p. of CDR with mitigation | C33: dBm | D33: =D28+D30 -> 5 | E33: =E28+E30 -> 15
B34: Gain of the CDR antenna in direction of main radiation | C34: dBi | D34: 10 | E34: 10
B36: Side-lobe interference component:
B37: Antenna side-lobe gain (offset angle 90°+ε, see figure 38 in the Report ) | C37: dBi | D37: -5.1 | E37: -5.1
B38: Direct e.i.r.p. component sent to FS system | C38: dBm | D38: =D33-D34+D37 -> -10.1 | E38: =E33-E34+E37 -> -0.1
B39: Direct e.i.r.p. component at FS receiver | C39: dBm | D39: =D38+D16-D18 -> 32.9 | E39: =E38+E16-E18 -> 42.9
B41: Reflected interference component:
B42: Offset angle of reflected interference component (angle ζ in figure 38 in the Report) | C42: ° | D42: 19.71 | E42: 19.71
B43: Antenna gain at angle ζ (see figure 38 in the Report) | C43: dBi | D43: 10 | E43: 10
B44: Reflection loss on sand surface (angle of incidence 52,71°) | C44: dB | D44: 12.5 | E44: 12.5
B45: Reflected e.i.r.p. component sent to FS system | C45: dBm | D45: =D33-D34+D43-D44 -> -7.5 | E45: =E33-E34+E43-E44 -> 2.5
B46: Reflected e.i.r.p. component at FS receiver | C46: dBm | D46: =D45+D17-D18 -> 32.5 | E46: =E45+E17-E18 -> 42.5
B48: Total e.i.r.p. at FS receiver | C48: dBm | D48: =10*LOG10(10^(D39/10)+10^(D46/10)) -> 35.7149035 | E48: =10*LOG10(10^(E39/10)+10^(E46/10)) -> 45.7149035
B49: BWCF | C49: dB | D49: =IF(D12*1000<=D29, 0, 10*LOG10(D12/D29/1000)) -> -3.979400087 | E49: 0
B51: Separation distance calculation:
B52: Minimum coupling loss (MCL) | C52: dB | D52: =D48-D22+D49 -> 121.7355034 | E52: =E48-E22+E49 -> 110.7149035
B53: Separation distance with FSL model | C53: km | D53: =10^((D52-32.44-20*LOG10(D10*1000))/20) -> 0.1706212455 | E53: =10^((E52-32.44-20*LOG10(E10*1000))/20) -> 0.04797368866
B54: Specific attenuation due to atmospheric gases (ITU-R P.676-11 figure 5) | C54: dB/km | D54: 2 | E54: 2
B55: Separation distance adjusted for attenuation due to atmospheric gases | C55: km | D55: 0.1642871042 | E55: 0.04745152593
B56: Balance check (should be close to zero) | C56: dB | D56: =D52-20*LOG10(D55)-D55*D54-32.44-20*LOG10(D10*1000) -> 1.845970544e-05 | E56: =E52-20*LOG10(E55)-E55*E54-32.44-20*LOG10(E10*1000) -> 0.000155536339
D57: Long term interference criterion | E57: Peak power objective
B61: Scenario 2: Light pole connected to a building by means of an FS link – FS Rx at light pole. See Report figure 39.
B63: Victim Fixed Service (FS) system | D63: Band of FS system: 167-174,8 GHz | E63: Band of FS system: 167-174,8 GHz
B64: Sensor type | D64: Point-to-point (PP) | E64: Point-to-point (PP)
B65: FS system: | C65: Units
B66: Assumed centre frequency of FS system | C66: GHz | D66: 170.9 | E66: 170.9
B67: Wavelength of FS system | C67: m | D67: =2.99792458/D66/10 -> 0.001754198116 | E67: =2.99792458/E66/10 -> 0.001754198116
B68: Receiver noise bandwidth (ITU-R-F.758-6) | C68: MHz | D68: 1000 | E68: 1000
B69: Receiver noise figure (ITU-R-F.758-6) | C69: dB | D69: 14 | E69: 14
B70: Misalignment of antenna main beam towards CDR (angle α in figure 39 in the Report) | C70: ° | D70: 3.62 | E70: 3.62
B71: Misalignment of antenna main beam towards reflection point on sand surface (angle α+β in figure 39 in the Report) | C71: ° | D71: 4.29 | E71: 4.29
B72: Antenna gain in the direction of interferer for the side-lobe interference component (ITU-R-F.758-6) | C72: dBi | D72: 22 | E72: 22
B73: Antenna gain in the direction of interferer for the reflected interference component (ITU-R-F.758-6) | C73: dBi | D73: 19 | E73: 19
B74: Feeder (insertion) loss (ITU-R-F.758-6) | C74: dB | D74: 0 | E74: 0
B75: I/N criteria (ITU-R F.758-6 ) | C75: dB | D75: -20 | E75: 5
B76: Receiver noise power density typical (ITU-R-F.758-6) | C76: dBW/MHz | D76: -130 | E76: -130
B77: Nominal long-term interference power density threshold (ITU-R-F.758-6) | C77: dBW/MHz | D77: =D76+D75 -> -150 | E77: =E76+E75 -> -125
B78: Interference threshold at receiver input within IF bandwidth | C78: dBm | D78: =D77+10*LOG10(D68)+30 -> -90 | E78: =E77+10*LOG10(E68)+30 -> -65
B79: (Receiver noise power density calculated over NF) | C79: dBW/MHz | D79: =-113.83+D69-30 -> -129.83 | E79: =-113.83+E69-30 -> -129.83
B81: DBF-CDR system:
B82: Conducted Tx power of CDR | C82: dBm | D82: -5 | E82: 5
B83: Out-of-band unwanted emissions attenuation (if FS victim is located in an adjacent band) | C83: dB | D83: 0 | E83: 0
B84: Tx e.i.r.p. of CDR | C84: dBm | D84: =D82-D83+D90 -> 5 | E84: =E82-E83+E90 -> 15
B85: Bandwidth of CDR Tx signal | C85: GHz | D85: 2.5 | E85: 2.5
B86: Mitigation technique (e.g. activity factor, adaptive power control) | C86: dB | D86: 0 | E86: 0
B87: Tx e.i.r.p. spectral density of CDR | C87: dBm/MHz | D87: =D84-10*LOG(D85*1000) -> -28.97940009 | E87: =E84-10*LOG(E85*1000) -> -18.97940009
B88: Tx e.i.r.p. spectral density of CDR with mitigation | C88: dBm/MHz | D88: =D84+D86-10*LOG(D85*1000) -> -28.97940009 | E88: =E84+E86-10*LOG(E85*1000) -> -18.97940009
B89: Tx e.i.r.p. of CDR with mitigation | C89: dBm | D89: =D84+D86 -> 5 | E89: =E84+E86 -> 15
B90: Gain of the CDR antenna in direction of main radiation | C90: dBi | D90: 10 | E90: 10
B92: Side-lobe interference component:
B93: Antenna side-lobe gain (offset angle 90°, see figure 39 in the Report ) | C93: dBi | D93: -5.1 | E93: -5.1
B94: Direct e.i.r.p. component sent to FS system | C94: dBm | D94: =D89-D90+D93 -> -10.1 | E94: =E89-E90+E93 -> -0.1
B95: Direct e.i.r.p. component at FS receiver | C95: dBm | D95: =D94+D72-D74 -> 11.9 | E95: =E94+E72-E74 -> 21.9
B97: Reflected interference component:
B98: Offset angle of reflected interference component (angle ζ in figure 39 in the Report) | C98: ° | D98: 23.33 | E98: 23.33
B99: Antenna gain at angle ζ (see figure 39 in the Report) | C99: dBi | D99: 10 | E99: 10
B100: Reflection loss on sand surface (angle of incidence 56,33°) | C100: dB | D100: 12.5 | E100: 12.5
B101: Reflected e.i.r.p. component sent to FS system | C101: dBm | D101: =D89-D90+D99-D100 -> -7.5 | E101: =E89-E90+E99-E100 -> 2.5
B102: Reflected e.i.r.p. component at FS receiver | C102: dBm | D102: =D101+D73-D74 -> 11.5 | E102: =E101+E73-E74 -> 21.5
B104: Total e.i.r.p. at FS receiver | C104: dBm | D104: =10*LOG10(10^(D95/10)+10^(D102/10)) -> 14.7149035 | E104: =10*LOG10(10^(E95/10)+10^(E102/10)) -> 24.7149035
B105: BWCF | C105: dB | D105: =IF(D68*1000<=D85, 0, 10*LOG10(D68/D85/1000)) -> -3.979400087 | E105: 0
B107: Separation distance calculation:
B108: Minimum coupling loss (MCL) | C108: dB | D108: =D104-D78+D105 -> 100.7355034 | E108: =E104-E78+E105 -> 89.7149035
B109: Separation distance with FSL model | C109: km | D109: =10^((D108-32.44-20*LOG10(D66*1000))/20) -> 0.01520663451 | E109: =10^((E108-32.44-20*LOG10(E66*1000))/20) -> 0.004275659502
B110: Specific attenuation due to atmospheric gases (ITU-R P.676-11 figure 5) | C110: dB/km | D110: 2 | E110: 2
B111: Separation distance adjusted for attenuation due to atmospheric gases | C111: km | D111: 0.01515361467 | E111: 0.004271373336
B112: Balance check (should be close to zero) | C112: dB | D112: =D108-20*LOG10(D111)-D111*D110-32.44-20*LOG10(D66*1000) -> 3.013580664e-05 | E112: =E108-20*LOG10(E111)-E111*E110-32.44-20*LOG10(E66*1000) -> 0.0001688529545
D113: Long term interference criterion | E113: Peak power objective

Sheet M-&PA-CDR vs. FS 116-148,5GHz P
B3: Compatibility analysis between M-CDR and PA-CDR in the frequency band 116-148,5 GHz and Fixed Service (FS) systems
B5: Scenario 1: Light pole connected to a building by means of an FS link – FS Rx on building. Reflected interference component points directly to FS Rx. See Report figure 44.
B7: Victim Fixed Service (FS) system | D7: Band of FS system: 111,8-114,25 GHz | E7: Band of FS system: 130-134 GHz | F7: Band of FS system: 141-148,5 GHz
B8: Sensor type | D8: Point-to-point (PP) | E8: Point-to-point (PP) | F8: Point-to-point (PP)
B9: FS system: | C9: Units
B10: Assumed centre frequency of FS system | C10: GHz | D10: 113.025 | E10: 132 | F10: 144.75
B11: Wavelength of FS system | C11: m | D11: =2.99792458/D10/10 -> 0.002652443778 | E11: 0.002271154985 | F11: 0.002071105064
B12: Receiver noise bandwidth (ITU-R-F.758-6) | C12: MHz | D12: 1000 | E12: 1000 | F12: 1000
B13: Receiver noise figure (ITU-R-F.758-6) | C13: dB | D13: 12 | E13: 14 | F13: 14
B14: Misalignment of antenna main beam towards CDR (angle ε-α in figure 44 in the Report) | C14: ° | D14: 0.19 | E14: 0.19 | F14: 0.19
B15: Misalignment of antenna main beam towards reflection point on sand surface (angle δ in figure 44 in the Report) | C15: ° | D15: 0.67 | E15: 0.67 | F15: 0.67
B16: Antenna gain in the direction of interferer for the side-lobe interference component (ITU-R-F.758-6) | C16: dBi | D16: 43 | E16: 43 | F16: 43
B17: Antenna gain in the direction of interferer for the reflected interference component (ITU-R-F.758-6) | C17: dBi | D17: 40 | E17: 40 | F17: 40
B18: Feeder (insertion) loss (ITU-R-F.758-6) | C18: dB | D18: 0 | E18: 0 | F18: 0
B19: I/N criteria (ITU-R F.758-6 ) | C19: dB | D19: 5 | E19: 5 | F19: 5
B20: Receiver noise power density typical (ITU-R-F.758-6) | C20: dBW/MHz | D20: -132 | E20: -130 | F20: -130
B21: Nominal long-term interference power density threshold (ITU-R-F.758-6) | C21: dBW/MHz | D21: =D20+D19 -> -127 | E21: -125 | F21: -125
B22: Interference threshold at receiver input within IF bandwidth | C22: dBm | D22: =D21+10*LOG10(D12)+30 -> -67 | E22: -65 | F22: -65
B23: (Receiver noise power density calculated over NF) | C23: dBW/MHz | D23: =-113.83+D13-30 -> -131.83 | E23: -129.83 | F23: -129.83
B25: M- and PA-CDR system:
B26: Conducted Tx power of CDR | C26: dBm | D26: -3.4 | E26: -3.4 | F26: -3.4
B27: Out-of-band unwanted emissions attenuation (if FS victim is located in an adjacent band) | C27: dB | D27: 20 | E27: 0 | F27: 0
B28: Tx e.i.r.p. of CDR | C28: dBm | D28: =D26-D27+D34 -> 8.6 | E28: 28.6 | F28: 28.6
B29: Bandwidth of CDR Tx signal | C29: GHz | D29: 8 | E29: 8 | F29: 8
B30: Mitigation technique (e.g. activity factor, adaptive power control) | C30: dB | D30: 0 | E30: 0 | F30: 0
B31: Tx e.i.r.p. spectral density of CDR | C31: dBm/MHz | D31: =D28-10*LOG(D29*1000) -> -30.43089987 | E31: -10.43089987 | F31: -10.43089987
B32: Tx e.i.r.p. spectral density of CDR with mitigation | C32: dBm/MHz | D32: =D28+D30-10*LOG(D29*1000) -> -30.43089987 | E32: -10.43089987 | F32: -10.43089987
B33: Tx e.i.r.p. of CDR with mitigation | C33: dBm | D33: =D28+D30 -> 8.6 | E33: 28.6 | F33: 28.6
B34: Gain of the CDR antenna in direction of main radiation | C34: dBi | D34: 32 | E34: 32 | F34: 32
B36: Side-lobe interference component:
B37: Antenna side-lobe gain >60° offset angle (offset angle ξ=74°, see figure 44 in the Report ) | C37: dBi | D37: 0 | E37: 0 | F37: 0
B38: Direct e.i.r.p. component sent to FS system | C38: dBm | D38: =D33-D34+D37 -> -23.4 | E38: -3.4 | F38: -3.4
B39: Direct e.i.r.p. component at FS receiver | C39: dBm | D39: =D38+D16-D18 -> 19.6 | E39: 39.6 | F39: 39.6
B41: Reflected interference component:
B42: Misalignment of reflected interference component towards FS receiver (see figure 44 in the Report) | C42: ° | D42: 0 | E42: 0 | F42: 0
B43: Antenna gain at angle 0° (see figure 44 in the Report) | C43: dBi | D43: 32 | E43: 32 | F43: 32
B44: Reflection loss on sand surface (angle of incidence 52,71°) | C44: dB | D44: 9 | E44: 9 | F44: 9
B45: Reflected e.i.r.p. component sent to FS system | C45: dBm | D45: =D33-D34+D43-D44 -> -0.4 | E45: 19.6 | F45: 19.6
B46: Reflected e.i.r.p. component at FS receiver | C46: dBm | D46: =D45+D17-D18 -> 39.6 | E46: 59.6 | F46: 59.6
B48: Total e.i.r.p. at FS receiver | C48: dBm | D48: =10*LOG10(10^(D39/10)+10^(D46/10)) -> 39.64321374 | E48: 59.64321374 | F48: 59.64321374
B49: BWCF | C49: dB | D49: 0 | E49: 0 | F49: 0
B51: Separation distance calculation:
B52: Minimum coupling loss (MCL) | C52: dB | D52: =D48-D22+D49 -> 106.6432137 | E52: 124.6432137 | F52: 124.6432137
B53: Separation distance with FSL model | C53: km | D53: =10^((D52-32.44-20*LOG10(D10*1000))/20) -> 0.04539271625 | E53: 0.3087356322 | F53: 0.2815413019
B54: Specific attenuation due to atmospheric gases (ITU-R P.676-11 figure 5) | C54: dB/km | D54: 0.4 | E54: 0.8 | F54: 1
B55: Separation distance adjusted for attenuation due to atmospheric gases | C55: km | D55: 0.04529825288 | E55: 0.3003140876 | F55: 0.272836111
B56: Balance check (should be close to zero) | C56: dB | D56: =D52-20*LOG10(D55)-D55*D54-32.44-20*LOG10(D10*1000) -> -2.491553376e-05 | E56: -3.026148602e-05 | F56: -3.082950926e-05
D57: Peak power objective | E57: Peak power objective | F57: Peak power objective
B61: Scenario 2: Light pole connected to a building by means of an FS link – FS Rx on building. Reflected interference component points directly to FS Rx. See Report figure 45.
B63: Victim Fixed Service (FS) system | D63: Band of FS system: 111,8-114,25 GHz | E63: Band of FS system: 130-134 GHz | F63: Band of FS system: 141-148,5 GHz
B64: Sensor type | D64: Point-to-point (PP) | E64: Point-to-point (PP) | F64: Point-to-point (PP)
B65: FS system: | C65: Units
B66: Assumed centre frequency of FS system | C66: GHz | D66: 113.025 | E66: 132 | F66: 144.75
B67: Wavelength of FS system | C67: m | D67: =2.99792458/D66/10 -> 0.002652443778 | E67: 0.002271154985 | F67: 0.002071105064
B68: Receiver noise bandwidth (ITU-R-F.758-6) | C68: MHz | D68: 1000 | E68: 1000 | F68: 1000
B69: Receiver noise figure (ITU-R-F.758-6) | C69: dB | D69: 12 | E69: 14 | F69: 14
B70: Misalignment of antenna main beam towards CDR (angle ε-α in figure 45 in the Report) | C70: ° | D70: 3.62 | E70: 3.62 | F70: 3.62
B71: Misalignment of antenna main beam towards reflection point on sand surface (angle δ in figure 45 in the Report) | C71: ° | D71: 4.29 | E71: 4.29 | F71: 4.29
B72: Antenna gain in the direction of interferer for the side-lobe interference component (ITU-R-F.758-6) | C72: dBi | D72: 22 | E72: 22 | F72: 22
B73: Antenna gain in the direction of interferer for the reflected interference component (ITU-R-F.758-6) | C73: dBi | D73: 19 | E73: 19 | F73: 19
B74: Feeder (insertion) loss (ITU-R-F.758-6) | C74: dB | D74: 0 | E74: 0 | F74: 0
B75: I/N criteria (ITU-R F.758-6 ) | C75: dB | D75: 5 | E75: 5 | F75: 5
B76: Receiver noise power density typical (ITU-R-F.758-6) | C76: dBW/MHz | D76: -132 | E76: -130 | F76: -130
B77: Nominal long-term interference power density threshold (ITU-R-F.758-6) | C77: dBW/MHz | D77: =D76+D75 -> -127 | E77: -125 | F77: -125
B78: Interference threshold at receiver input within IF bandwidth | C78: dBm | D78: =D77+10*LOG10(D68)+30 -> -67 | E78: -65 | F78: -65
B79: (Receiver noise power density calculated over NF) | C79: dBW/MHz | D79: =-113.83+D69-30 -> -131.83 | E79: -129.83 | F79: -129.83
B81: M- and PA-CDR system:
B82: Conducted Tx power of CDR | C82: dBm | D82: -3.4 | E82: -3.4 | F82: -3.4
B83: Out-of-band unwanted emissions attenuation (if FS victim is located in an adjacent band) | C83: dB | D83: 20 | E83: 0 | F83: 0
B84: Tx e.i.r.p. of CDR | C84: dBm | D84: =D82-D83+D90 -> 8.6 | E84: 28.6 | F84: 28.6
B85: Bandwidth of CDR Tx signal | C85: GHz | D85: 8 | E85: 8 | F85: 8
B86: Mitigation technique (e.g. activity factor, adaptive power control) | C86: dB | D86: 0 | E86: 0 | F86: 0
B87: Tx e.i.r.p. spectral density of CDR | C87: dBm/MHz | D87: =D84-10*LOG(D85*1000) -> -30.43089987 | E87: -10.43089987 | F87: -10.43089987
B88: Tx e.i.r.p. spectral density of CDR with mitigation | C88: dBm/MHz | D88: =D84+D86-10*LOG(D85*1000) -> -30.43089987 | E88: -10.43089987 | F88: -10.43089987
B89: Tx e.i.r.p. of CDR with mitigation | C89: dBm | D89: =D84+D86 -> 8.6 | E89: 28.6 | F89: 28.6
B90: Gain of the CDR antenna in direction of main radiation | C90: dBi | D90: 32 | E90: 32 | F90: 32
B92: Side-lobe interference component:
B93: Antenna side-lobe gain >60° offset angle (offset angle ξ=67°, see figure 45 in the Report ) | C93: dBi | D93: 0 | E93: 0 | F93: 0
B94: Direct e.i.r.p. component sent to FS system | C94: dBm | D94: =D89-D90+D93 -> -23.4 | E94: =E89-E90+E93 -> -3.4 | F94: =F89-F90+F93 -> -3.4
B95: Direct e.i.r.p. component at FS receiver | C95: dBm | D95: =D94+D72-D74 -> -1.4 | E95: =E94+E72-E74 -> 18.6 | F95: =F94+F72-F74 -> 18.6
B97: Reflected interference component:
B98: Misalignment of reflected interference component towards FS receiver (see figure 45 in the Report) | C98: ° | D98: 0 | E98: 0 | F98: 0
B99: Antenna gain at angle 0° (see figure 45 in the Report) | C99: dBi | D99: 32 | E99: 32 | F99: 32
B100: Reflection loss on sand surface (angle of incidence 56,33°) | C100: dB | D100: 8 | E100: 8 | F100: 8
B101: Reflected e.i.r.p. component sent to FS system | C101: dBm | D101: =D89-D90+D99-D100 -> 0.6 | E101: =E89-E90+E99-E100 -> 20.6 | F101: =F89-F90+F99-F100 -> 20.6
B102: Reflected e.i.r.p. component at FS receiver | C102: dBm | D102: =D101+D73-D74 -> 19.6 | E102: =E101+E73-E74 -> 39.6 | F102: =F101+F73-F74 -> 39.6
B104: Total e.i.r.p. at FS receiver | C104: dBm | D104: =10*LOG10(10^(D95/10)+10^(D102/10)) -> 19.63436095 | E104: 39.63436095 | F104: 39.63436095
B105: BWCF | C105: dB | D105: 0 | E105: 0 | F105: 0
B107: Separation distance calculation:
B108: Minimum coupling loss (MCL) | C108: dB | D108: =D104-D78+D105 -> 86.63436095 | E108: 104.6343609 | F108: 104.6343609
B109: Separation distance with FSL model | C109: km | D109: =10^((D108-32.44-20*LOG10(D66*1000))/20) -> 0.004534647487 | E109: 0.03084211244 | F109: 0.02812544969
B110: Specific attenuation due to atmospheric gases (ITU-R P.676-11 figure 5) | C110: dB/km | D110: 0.4 | E110: 0.8 | F110: 1
B111: Separation distance adjusted for attenuation due to atmospheric gases | C111: km | D111: 0.004533713576 | E111: 0.03075496053 | F111: 0.02803489871
B112: Balance check (should be close to zero) | C112: dB | D112: =D108-20*LOG10(D111)-D111*D110-32.44-20*LOG10(D66*1000) -> -2.44421043e-05 | E112: -2.512544336e-05 | F112: -2.522608827e-05
D113: Peak power objective | E113: Peak power objective | F113: Peak power objective
B117: Scenario 3: Light pole connected to a building by means of an FS link – FS Rx on building. Horizontal emission. See Report figure 46.
B119: Victim Fixed Service (FS) system | D119: Band of FS system: 111,8-114,25 GHz | E119: Band of FS system: 130-134 GHz | F119: Band of FS system: 141-148,5 GHz
B120: Sensor type | D120: Point-to-point (PP) | E120: Point-to-point (PP) | F120: Point-to-point (PP)
B121: FS system: | C121: Units
B122: Assumed centre frequency of FS system | C122: GHz | D122: 113.025 | E122: 132 | F122: 144.75
B123: Wavelength of FS system | C123: m | D123: =2.99792458/D122/10 -> 0.002652443778 | E123: 0.002271154985 | F123: 0.002071105064
B124: Receiver noise bandwidth (ITU-R-F.758-6) | C124: MHz | D124: 1000 | E124: 1000 | F124: 1000
B125: Receiver noise figure (ITU-R-F.758-6) | C125: dB | D125: 12 | E125: 14 | F125: 14
B126: Misalignment of antenna main beam towards CDR (angle ε-α in figure 46 in the Report) | C126: ° | D126: 0.19 | E126: 0.19 | F126: 0.19
B127: Antenna gain in the direction of interferer for the side-lobe interference component (ITU-R-F.758-6) | C127: dBi | D127: 43 | E127: 43 | F127: 43
B128: Feeder (insertion) loss (ITU-R-F.758-6) | C128: dB | D128: 0 | E128: 0 | F128: 0
B129: I/N criteria (ITU-R F.758-6 ) | C129: dB | D129: 5 | E129: 5 | F129: 5
B130: Receiver noise power density typical (ITU-R-F.758-6) | C130: dBW/MHz | D130: -132 | E130: -130 | F130: -130
B131: Nominal long-term interference power density threshold (ITU-R-F.758-6) | C131: dBW/MHz | D131: =D130+D129 -> -127 | E131: -125 | F131: -125
B132: Interference threshold at receiver input within IF bandwidth | C132: dBm | D132: =D131+10*LOG10(D124)+30 -> -67 | E132: =E131+10*LOG10(E124)+30 -> -65 | F132: =F131+10*LOG10(F124)+30 -> -65
B133: (Receiver noise power density calculated over NF) | C133: dBW/MHz | D133: =-113.83+D125-30 -> -131.83 | E133: =-113.83+E125-30 -> -129.83 | F133: =-113.83+F125-30 -> -129.83
B135: M- and PA-CDR system:
B136: Conducted Tx power of CDR | C136: dBm | D136: -3.4 | E136: -3.4 | F136: -3.4
B137: Out-of-band unwanted emissions attenuation (if FS victim is located in an adjacent band) | C137: dB | D137: 20 | E137: 0 | F137: 0
B138: Tx e.i.r.p. of CDR | C138: dBm | D138: =D136-D137+D144 -> 8.6 | E138: 28.6 | F138: 28.6
B139: Bandwidth of CDR Tx signal | C139: GHz | D139: 8 | E139: 8 | F139: 8
B140: Mitigation technique (e.g. activity factor, adaptive power control) | C140: dB | D140: 0 | E140: 0 | F140: 0
B141: Tx e.i.r.p. spectral density of CDR | C141: dBm/MHz | D141: =D138-10*LOG(D139*1000) -> -30.43089987 | E141: -10.43089987 | F141: -10.43089987
B142: Tx e.i.r.p. spectral density of CDR with mitigation | C142: dBm/MHz | D142: =D138+D140-10*LOG(D139*1000) -> -30.43089987 | E142: -10.43089987 | F142: -10.43089987
B143: Tx e.i.r.p. of CDR with mitigation | C143: dBm | D143: =D138+D140 -> 8.6 | E143: 28.6 | F143: 28.6
B144: Gain of the CDR antenna in direction of main radiation | C144: dBi | D144: 32 | E144: 32 | F144: 32
B146: Side-lobe interference component:
B147: Antenna side-lobe gain at offset angle ε (offset angle ε=3,8°, see figure 46 in the Report ) | C147: dBi | D147: 29 | E147: 29 | F147: 29
B148: Direct e.i.r.p. component sent to FS system | C148: dBm | D148: =D143-D144+D147 -> 5.6 | E148: =E143-E144+E147 -> 25.6 | F148: =F143-F144+F147 -> 25.6
B149: Direct e.i.r.p. component at FS receiver | C149: dBm | D149: =D148+D127-D128 -> 48.6 | E149: =E148+E127-E128 -> 68.6 | F149: =F148+F127-F128 -> 68.6
B151: Total e.i.r.p. at FS receiver | C151: dBm | D151: =D149 -> 48.6 | E151: =E149 -> 68.6 | F151: =F149 -> 68.6
B152: BWCF | C152: dB | D152: 0 | E152: 0 | F152: 0
B154: Separation distance calculation:
B155: Minimum coupling loss (MCL) | C155: dB | D155: =D151-D132+D152 -> 115.6 | E155: =E151-E132+E152 -> 133.6 | F155: =F151-F132+F152 -> 133.6
B156: Separation distance with FSL model | C156: km | D156: =10^((D155-32.44-20*LOG10(D122*1000))/20) -> 0.1272991443 | E156: =10^((E155-32.44-20*LOG10(E122*1000))/20) -> 0.8658169203 | F156: =10^((F155-32.44-20*LOG10(F122*1000))/20) -> 0.7895532537
B157: Specific attenuation due to atmospheric gases (ITU-R P.676-11 figure 5) | C157: dB/km | D157: 0.4 | E157: 0.8 | F157: 1
B158: Separation distance adjusted for attenuation due to atmospheric gases | C158: km | D158: 0.1265597424 | E158: 0.8040181599 | F158: 0.7262239403
B159: Balance check (should be close to zero) | C159: dB | D159: =D155-20*LOG10(D158)-D158*D157-32.44-20*LOG10(D122*1000) -> -2.585514331e-05 | E159: =E155-20*LOG10(E158)-E158*E157-32.44-20*LOG10(E122*1000) -> -1.031271023e-05 | F159: =F155-20*LOG10(F158)-F158*F157-32.44-20*LOG10(F122*1000) -> -6.619411806e-06
D160: Peak power objective | E160: Peak power objective | F160: Peak power objective
B164: Scenario 4: Light pole connected to a building by means of an FS link – FS Rx on light pole. Horizontal emission. See Report figure 47.
B166: Victim Fixed Service (FS) system | D166: Band of FS system: 111,8-114,25 GHz | E166: Band of FS system: 130-134 GHz | F166: Band of FS system: 141-148,5 GHz
B167: Sensor type | D167: Point-to-point (PP) | E167: Point-to-point (PP) | F167: Point-to-point (PP)
B168: FS system: | C168: Units
B169: Assumed centre frequency of FS system | C169: GHz | D169: 113.025 | E169: 132 | F169: 144.75
B170: Wavelength of FS system | C170: m | D170: =2.99792458/D169/10 -> 0.002652443778 | E170: 0.002271154985 | F170: 0.002071105064
B171: Receiver noise bandwidth (ITU-R-F.758-6) | C171: MHz | D171: 1000 | E171: 1000 | F171: 1000
B172: Receiver noise figure (ITU-R-F.758-6) | C172: dB | D172: 12 | E172: 14 | F172: 14
B173: Misalignment of antenna main beam towards CDR (angle α in figure 47 in the Report) | C173: ° | D173: 3.62 | E173: 3.62 | F173: 3.62
B174: Antenna gain in the direction of interferer for the side-lobe interference component (ITU-R-F.758-6) | C174: dBi | D174: 22 | E174: 22 | F174: 22
B175: Feeder (insertion) loss (ITU-R-F.758-6) | C175: dB | D175: 0 | E175: 0 | F175: 0
B176: I/N criteria (ITU-R F.758-6 ) | C176: dB | D176: 5 | E176: 5 | F176: 5
B177: Receiver noise power density typical (ITU-R-F.758-6) | C177: dBW/MHz | D177: -132 | E177: -130 | F177: -130
B178: Nominal long-term interference power density threshold (ITU-R-F.758-6) | C178: dBW/MHz | D178: =D177+D176 -> -127 | E178: -125 | F178: -125
B179: Interference threshold at receiver input within IF bandwidth | C179: dBm | D179: =D178+10*LOG10(D171)+30 -> -67 | E179: =E178+10*LOG10(E171)+30 -> -65 | F179: =F178+10*LOG10(F171)+30 -> -65
B180: (Receiver noise power density calculated over NF) | C180: dBW/MHz | D180: =-113.83+D172-30 -> -131.83 | E180: =-113.83+E172-30 -> -129.83 | F180: =-113.83+F172-30 -> -129.83
B182: M- and PA-CDR system:
B183: Conducted Tx power of CDR | C183: dBm | D183: -3.4 | E183: -3.4 | F183: -3.4
B184: Out-of-band unwanted emissions attenuation (if FS victim is located in an adjacent band) | C184: dB | D184: 20 | E184: 0 | F184: 0
B185: Tx e.i.r.p. of CDR | C185: dBm | D185: =D183-D184+D191 -> 8.6 | E185: 28.6 | F185: 28.6
B186: Bandwidth of CDR Tx signal | C186: GHz | D186: 8 | E186: 8 | F186: 8
B187: Mitigation technique (e.g. activity factor, adaptive power control) | C187: dB | D187: 0 | E187: 0 | F187: 0
B188: Tx e.i.r.p. spectral density of CDR | C188: dBm/MHz | D188: =D185-10*LOG(D186*1000) -> -30.43089987 | E188: -10.43089987 | F188: -10.43089987
B189: Tx e.i.r.p. spectral density of CDR with mitigation | C189: dBm/MHz | D189: =D185+D187-10*LOG(D186*1000) -> -30.43089987 | E189: -10.43089987 | F189: -10.43089987
B190: Tx e.i.r.p. of CDR with mitigation | C190: dBm | D190: =D185+D187 -> 8.6 | E190: 28.6 | F190: 28.6
B191: Gain of the CDR antenna in direction of main radiation | C191: dBi | D191: 32 | E191: 32 | F191: 32
B193: Side-lobe interference component:
B194: Antenna gain in the direction of the FS receiver | C194: dBi | D194: 32 | E194: 32 | F194: 32
B195: Direct e.i.r.p. component sent to FS system | C195: dBm | D195: =D190-D191+D194 -> 8.6 | E195: =E190-E191+E194 -> 28.6 | F195: =F190-F191+F194 -> 28.6
B196: Direct e.i.r.p. component at FS receiver | C196: dBm | D196: =D195+D174-D175 -> 30.6 | E196: =E195+E174-E175 -> 50.6 | F196: =F195+F174-F175 -> 50.6
B198: Total e.i.r.p. at FS receiver | C198: dBm | D198: =D196 -> 30.6 | E198: =E196 -> 50.6 | F198: =F196 -> 50.6
B199: BWCF | C199: dB | D199: 0 | E199: 0 | F199: 0
B201: Separation distance calculation:
B202: Minimum coupling loss (MCL) | C202: dB | D202: =D198-D179+D199 -> 97.6 | E202: =E198-E179+E199 -> 115.6 | F202: =F198-F179+F199 -> 115.6
B203: Separation distance with FSL model | C203: km | D203: =10^((D202-32.44-20*LOG10(D169*1000))/20) -> 0.01602601276 | E203: =10^((E202-32.44-20*LOG10(E169*1000))/20) -> 0.1089998923 | F203: =10^((F202-32.44-20*LOG10(F169*1000))/20) -> 0.09939886551
B204: Specific attenuation due to atmospheric gases (ITU-R P.676-11 figure 5) | C204: dB/km | D204: 0.4 | E204: 0.8 | F204: 1
B205: Separation distance adjusted for attenuation due to atmospheric gases | C205: km | D205: 0.01601424349 | E205: 0.1079221342 | F205: 0.0982808138
B206: Balance check (should be close to zero) | C206: dB | D206: =D202-20*LOG10(D205)-D205*D204-32.44-20*LOG10(D169*1000) -> -2.455876235e-05 | E206: =E202-20*LOG10(E205)-E205*E204-32.44-20*LOG10(E169*1000) -> -2.682916983e-05 | F206: =F202-20*LOG10(F205)-F205*F204-32.44-20*LOG10(F169*1000) -> -2.714008377e-05
D207: Peak power objective | E207: Peak power objective | F207: Peak power objective

Sheet M-&PA-CDR vs. FS 116-148,5G LT
B3: Compatibility analysis between M-CDR and PA-CDR in the frequency band 116-148,5 GHz and Fixed Service (FS) systems
B5: Scenario 1: Light pole connected to a building by means of an FS link – FS Rx on building. Reflected interference component points directly to FS Rx. See Report figure 44.
B7: Victim Fixed Service (FS) system | D7: Band of FS system: 111,8-114,25 GHz | E7: Band of FS system: 130-134 GHz | F7: Band of FS system: 141-148,5 GHz
B8: Sensor type | D8: Point-to-point (PP) | E8: Point-to-point (PP) | F8: Point-to-point (PP)
B9: FS system: | C9: Units
B10: Assumed centre frequency of FS system | C10: GHz | D10: 113.025 | E10: 132 | F10: 144.75
B11: Wavelength of FS system | C11: m | D11: =2.99792458/D10/10 -> 0.002652443778 | E11: 0.002271154985 | F11: 0.002071105064
B12: Receiver noise bandwidth (ITU-R-F.758-6) | C12: MHz | D12: 1000 | E12: 1000 | F12: 1000
B13: Receiver noise figure (ITU-R-F.758-6) | C13: dB | D13: 12 | E13: 14 | F13: 14
B14: Misalignment of antenna main beam towards CDR (angle ε-α in figure 44 in the Report) | C14: ° | D14: 0.19 | E14: 0.19 | F14: 0.19
B15: Misalignment of antenna main beam towards reflection point on sand surface (angle δ in figure 44 in the Report) | C15: ° | D15: 0.67 | E15: 0.67 | F15: 0.67
B16: Antenna gain in the direction of interferer for the side-lobe interference component (ITU-R-F.758-6) | C16: dBi | D16: 43 | E16: 43 | F16: 43
B17: Antenna gain in the direction of interferer for the reflected interference component (ITU-R-F.758-6) | C17: dBi | D17: 40 | E17: 40 | F17: 40
B18: Feeder (insertion) loss (ITU-R-F.758-6) | C18: dB | D18: 0 | E18: 0 | F18: 0
B19: I/N criteria (ITU-R F.758-6 ) | C19: dB | D19: -20 | E19: -20 | F19: -20
B20: Receiver noise power density typical (ITU-R-F.758-6) | C20: dBW/MHz | D20: -132 | E20: -130 | F20: -130
B21: Nominal long-term interference power density threshold (ITU-R-F.758-6) | C21: dBW/MHz | D21: =D20+D19 -> -152 | E21: -150 | F21: -150
B22: Interference threshold at receiver input within IF bandwidth | C22: dBm | D22: =D21+10*LOG10(D12)+30 -> -92 | E22: -90 | F22: -90
B23: (Receiver noise power density calculated over NF) | C23: dBW/MHz | D23: =-113.83+D13-30 -> -131.83 | E23: -129.83 | F23: -129.83
B25: M- and PA-CDR system:
B26: Conducted Tx power of CDR | C26: dBm | D26: -5 | E26: -5 | F26: -5
B27: Out-of-band unwanted emissions attenuation (if FS victim is located in an adjacent band) | C27: dB | D27: 20 | E27: 0 | F27: 0
B28: Tx e.i.r.p. of CDR | C28: dBm | D28: =D26-D27+D34 -> 7 | E28: 27 | F28: 27
B29: Bandwidth of CDR Tx signal | C29: GHz | D29: 8 | E29: 8 | F29: 8
B30: Mitigation technique (e.g. activity factor, adaptive power control) | C30: dB | D30: 0 | E30: 0 | F30: 0
B31: Tx e.i.r.p. spectral density of CDR | C31: dBm/MHz | D31: =D28-10*LOG(D29*1000) -> -32.03089987 | E31: -12.03089987 | F31: -12.03089987
B32: Tx e.i.r.p. spectral density of CDR with mitigation | C32: dBm/MHz | D32: =D28+D30-10*LOG(D29*1000) -> -32.03089987 | E32: -12.03089987 | F32: -12.03089987
B33: Tx e.i.r.p. of CDR with mitigation | C33: dBm | D33: =D28+D30 -> 7 | E33: 27 | F33: 27
B34: Gain of the CDR antenna in direction of main radiation | C34: dBi | D34: 32 | E34: 32 | F34: 32
B36: Side-lobe interference component:
B37: Antenna side-lobe gain >60° offset angle (offset angle ξ=74°, see figure 44 in the Report ) | C37: dBi | D37: 0 | E37: 0 | F37: 0
B38: Direct e.i.r.p. component sent to FS system | C38: dBm | D38: =D33-D34+D37 -> -25 | E38: =E33-E34+E37 -> -5 | F38: -5
B39: Direct e.i.r.p. component at FS receiver | C39: dBm | D39: =D38+D16-D18 -> 18 | E39: 38 | F39: 38
B41: Reflected interference component:
B42: Reduction of e.i.r.p. due to spatial distribution of the power over half-sphere | C42: dB | D42: -28.6 | E42: -28.6 | F42: -28.6
B43: Misalignment of reflected interference component towards FS receiver (see figure 44 in the Report) | C43: ° | D43: 0 | E43: 0 | F43: 0
B44: Antenna gain at angle 0° (see figure 44 in the Report) | C44: dBi | D44: 32 | E44: 32 | F44: 32
B45: Reflection loss on sand surface (angle of incidence 52,71°) | C45: dB | D45: 9 | E45: 9 | F45: 9
B46: Reflected e.i.r.p. component sent to FS system | C46: dBm | D46: =D33-D34+D44-D45+D42 -> -30.6 | E46: =E33-E34+E44-E45+E42 -> -10.6 | F46: =F33-F34+F44-F45+F42 -> -10.6
B47: Reflected e.i.r.p. component at FS receiver | C47: dBm | D47: =D46+D17-D18 -> 9.4 | E47: =E46+E17-E18 -> 29.4 | F47: =F46+F17-F18 -> 29.4
B49: Total e.i.r.p. at FS receiver | C49: dBm | D49: =10*LOG10(10^(D39/10)+10^(D47/10)) -> 18.56156926 | E49: 38.56156926 | F49: 38.56156926
B50: BWCF | C50: dB | D50: =IF(D12*1000<=D29, 0, 10*LOG10(D12/D29/1000)) -> -9.03089987 | E50: =IF(E12*1000<=E29, 0, 10*LOG10(E12/E29/1000)) -> -9.03089987 | F50: =IF(F12*1000<=F29, 0, 10*LOG10(F12/F29/1000)) -> -9.03089987
B52: Separation distance calculation:
B53: Minimum coupling loss (MCL) | C53: dB | D53: =D49-D22+D50 -> 101.5306694 | E53: 119.5306694 | F53: 119.5306694
B54: Separation distance with FSL model | C54: km | D54: =10^((D53-32.44-20*LOG10(D10*1000))/20) -> 0.02519758704 | E54: 0.1713797632 | F54: 0.1562841364
B55: Specific attenuation due to atmospheric gases (ITU-R P.676-11 figure 5) | C55: dB/km | D55: 0.4 | E55: 0.8 | F55: 1
B56: Separation distance adjusted for attenuation due to atmospheric gases | C56: km | D56: 0.02516608845 | E56: 0.1687245148 | F56: 0.1535347955
B57: Balance check (should be close to zero) | C57: dB | D57: =D53-20*LOG10(D56)-D56*D55-32.44-20*LOG10(D10*1000) -> 0.0007982710945 | E57: 0.0006474013852 | F57: 0.0006268549468
D58: Long term interference criterion | E58: Long term interference criterion | F58: Long term interference criterion
B62: Scenario 2: Light pole connected to a building by means of an FS link – FS Rx on building. Reflected interference component points directly to FS Rx. See Report figure 45.
B64: Victim Fixed Service (FS) system | D64: Band of FS system: 111,8-114,25 GHz | E64: Band of FS system: 130-134 GHz | F64: Band of FS system: 141-148,5 GHz
B65: Sensor type | D65: Point-to-point (PP) | E65: Point-to-point (PP) | F65: Point-to-point (PP)
B66: FS system: | C66: Units
B67: Assumed centre frequency of FS system | C67: GHz | D67: 113.025 | E67: 132 | F67: 144.75
B68: Wavelength of FS system | C68: m | D68: =2.99792458/D67/10 -> 0.002652443778 | E68: 0.002271154985 | F68: 0.002071105064
B69: Receiver noise bandwidth (ITU-R-F.758-6) | C69: MHz | D69: 1000 | E69: 1000 | F69: 1000
B70: Receiver noise figure (ITU-R-F.758-6) | C70: dB | D70: 12 | E70: 14 | F70: 14
B71: Misalignment of antenna main beam towards CDR (angle ε-α in figure 45 in the Report) | C71: ° | D71: 3.62 | E71: 3.62 | F71: 3.62
B72: Misalignment of antenna main beam towards reflection point on sand surface (angle δ in figure 45 in the Report) | C72: ° | D72: 4.29 | E72: 4.29 | F72: 4.29
B73: Antenna gain in the direction of interferer for the side-lobe interference component (ITU-R-F.758-6) | C73: dBi | D73: 22 | E73: 22 | F73: 22
B74: Antenna gain in the direction of interferer for the reflected interference component (ITU-R-F.758-6) | C74: dBi | D74: 19 | E74: 19 | F74: 19
B75: Feeder (insertion) loss (ITU-R-F.758-6) | C75: dB | D75: 0 | E75: 0 | F75: 0
B76: I/N criteria (ITU-R F.758-6 ) | C76: dB | D76: -20 | E76: -20 | F76: -20
B77: Receiver noise power density typical (ITU-R-F.758-6) | C77: dBW/MHz | D77: -132 | E77: -130 | F77: -130
B78: Nominal long-term interference power density threshold (ITU-R-F.758-6) | C78: dBW/MHz | D78: =D77+D76 -> -152 | E78: -150 | F78: -150
B79: Interference threshold at receiver input within IF bandwidth | C79: dBm | D79: =D78+10*LOG10(D69)+30 -> -92 | E79: -90 | F79: -90
B80: (Receiver noise power density calculated over NF) | C80: dBW/MHz | D80: =-113.83+D70-30 -> -131.83 | E80: -129.83 | F80: -129.83
B82: M- and PA-CDR system:
B83: Conducted Tx power of CDR | C83: dBm | D83: -5 | E83: -5 | F83: -5
B84: Out-of-band unwanted emissions attenuation (if FS victim is located in an adjacent band) | C84: dB | D84: 20 | E84: 0 | F84: 0
B85: Tx e.i.r.p. of CDR | C85: dBm | D85: =D83-D84+D91 -> 7 | E85: 27 | F85: 27
B86: Bandwidth of CDR Tx signal | C86: GHz | D86: 8 | E86: 8 | F86: 8
B87: Mitigation technique (e.g. activity factor, adaptive power control) | C87: dB | D87: 0 | E87: 0 | F87: 0
B88: Tx e.i.r.p. spectral density of CDR | C88: dBm/MHz | D88: =D85-10*LOG(D86*1000) -> -32.03089987 | E88: -12.03089987 | F88: -12.03089987
B89: Tx e.i.r.p. spectral density of CDR with mitigation | C89: dBm/MHz | D89: =D85+D87-10*LOG(D86*1000) -> -32.03089987 | E89: -12.03089987 | F89: -12.03089987
B90: Tx e.i.r.p. of CDR with mitigation | C90: dBm | D90: =D85+D87 -> 7 | E90: 27 | F90: 27
B91: Gain of the CDR antenna in direction of main radiation | C91: dBi | D91: 32 | E91: 32 | F91: 32
B93: Side-lobe interference component:
B94: Antenna side-lobe gain >60° offset angle (offset angle ξ=67°, see figure 45 in the Report ) | C94: dBi | D94: 0 | E94: 0 | F94: 0
B95: Direct e.i.r.p. component sent to FS system | C95: dBm | D95: =D90-D91+D94 -> -25 | E95: -5 | F95: -5
B96: Direct e.i.r.p. component at FS receiver | C96: dBm | D96: =D95+D73-D75 -> -3 | E96: 17 | F96: 17
B98: Reflected interference component:
B99: Reduction of e.i.r.p. due to spatial distribution of the power over half-sphere | C99: dB | D99: -28.6 | E99: -28.6 | F99: -28.6
B100: Misalignment of reflected interference component towards FS receiver (see figure 45 in the Report) | C100: ° | D100: 0 | E100: 0 | F100: 0
B101: Antenna gain at angle 0° (see figure 45 in the Report) | C101: dBi | D101: 32 | E101: 32 | F101: 32
B102: Reflection loss on sand surface (angle of incidence 56,33°) | C102: dB | D102: 8 | E102: 8 | F102: 8
B103: Reflected e.i.r.p. component sent to FS system | C103: dBm | D103: =D90-D91+D101-D102+D99 -> -29.6 | E103: =E90-E91+E101-E102+E99 -> -9.6 | F103: =F90-F91+F101-F102+F99 -> -9.6
B104: Reflected e.i.r.p. component at FS receiver | C104: dBm | D104: =D103+D74-D75 -> -10.6 | E104: 9.4 | F104: 9.4
B106: Total e.i.r.p. at FS receiver | C106: dBm | D106: =10*LOG10(10^(D96/10)+10^(D104/10)) -> -2.30413264 | E106: 17.69586736 | F106: 17.69586736
B107: BWCF | C107: dB | D107: =IF(D69*1000<=D86, 0, 10*LOG10(D69/D86/1000)) -> -9.03089987 | E107: =IF(E69*1000<=E86, 0, 10*LOG10(E69/E86/1000)) -> -9.03089987 | F107: =IF(F69*1000<=F86, 0, 10*LOG10(F69/F86/1000)) -> -9.03089987
B109: Separation distance calculation:
B110: Minimum coupling loss (MCL) | C110: dB | D110: =D106-D79+D107 -> 80.66496749 | E110: 98.66496749 | F110: 98.66496749
B111: Separation distance with FSL model | C111: km | D111: =10^((D110-32.44-20*LOG10(D67*1000))/20) -> 0.002280729914 | E111: 0.01551223743 | F111: 0.01414587454
B112: Specific attenuation due to atmospheric gases (ITU-R P.676-11 figure 5) | C112: dB/km | D112: 0.4 | E112: 0.8 | F112: 1
B113: Separation distance adjusted for attenuation due to atmospheric gases | C113: km | D113: 0.002280277828 | E113: 0.01548870664 | F113: 0.01412160609
B114: Balance check (should be close to zero) | C114: dB | D114: =D110-20*LOG10(D113)-D113*D112-32.44-20*LOG10(D67*1000) -> 0.0008097765 | E114: 0.000794814736 | F114: 0.0007925762272
D115: Long term interference criterion | E115: Long term interference criterion | F115: Long term interference criterion
B119: Scenario 3: Light pole connected to a building by means of an FS link – FS Rx on building. Horizontal emission. See Report figure 46.
B121: Victim Fixed Service (FS) system | D121: Band of FS system: 111,8-114,25 GHz | E121: Band of FS system: 130-134 GHz | F121: Band of FS system: 141-148,5 GHz
B122: Sensor type | D122: Point-to-point (PP) | E122: Point-to-point (PP) | F122: Point-to-point (PP)
B123: FS system: | C123: Units
B124: Assumed centre frequency of FS system | C124: GHz | D124: 113.025 | E124: 132 | F124: 144.75
B125: Wavelength of FS system | C125: m | D125: =2.99792458/D124/10 -> 0.002652443778 | E125: 0.002271154985 | F125: 0.002071105064
B126: Receiver noise bandwidth (ITU-R-F.758-6) | C126: MHz | D126: 1000 | E126: 1000 | F126: 1000
B127: Receiver noise figure (ITU-R-F.758-6) | C127: dB | D127: 12 | E127: 14 | F127: 14
B128: Misalignment of antenna main beam towards CDR (angle ε-α in figure 46 in the Report) | C128: ° | D128: 0.19 | E128: 0.19 | F128: 0.19
B129: Antenna gain in the direction of interferer for the side-lobe interference component (ITU-R-F.758-6) | C129: dBi | D129: 43 | E129: 43 | F129: 43
B130: Feeder (insertion) loss (ITU-R-F.758-6) | C130: dB | D130: 0 | E130: 0 | F130: 0
B131: I/N criteria (ITU-R F.758-6 ) | C131: dB | D131: -20 | E131: -20 | F131: -20
B132: Receiver noise power density typical (ITU-R-F.758-6) | C132: dBW/MHz | D132: -132 | E132: -130 | F132: -130
B133: Nominal long-term interference power density threshold (ITU-R-F.758-6) | C133: dBW/MHz | D133: =D132+D131 -> -152 | E133: -150 | F133: -150
B134: Interference threshold at receiver input within IF bandwidth | C134: dBm | D134: =D133+10*LOG10(D126)+30 -> -92 | E134: =E133+10*LOG10(E126)+30 -> -90 | F134: =F133+10*LOG10(F126)+30 -> -90
B135: (Receiver noise power density calculated over NF) | C135: dBW/MHz | D135: =-113.83+D127-30 -> -131.83 | E135: =-113.83+E127-30 -> -129.83 | F135: =-113.83+F127-30 -> -129.83
B137: M- and PA-CDR system:
B138: Conducted Tx power of CDR | C138: dBm | D138: -5 | E138: -5 | F138: -5
B139: Out-of-band unwanted emissions attenuation (if FS victim is located in an adjacent band) | C139: dB | D139: 20 | E139: 0 | F139: 0
B140: Tx e.i.r.p. of CDR | C140: dBm | D140: =D138-D139+D146 -> 7 | E140: 27 | F140: 27
B141: Bandwidth of CDR Tx signal | C141: GHz | D141: 8 | E141: 8 | F141: 8
B142: Mitigation technique (e.g. activity factor, adaptive power control) | C142: dB | D142: 0 | E142: 0 | F142: 0
B143: Tx e.i.r.p. spectral density of CDR | C143: dBm/MHz | D143: =D140-10*LOG(D141*1000) -> -32.03089987 | E143: -12.03089987 | F143: -12.03089987
B144: Tx e.i.r.p. spectral density of CDR with mitigation | C144: dBm/MHz | D144: =D140+D142-10*LOG(D141*1000) -> -32.03089987 | E144: -12.03089987 | F144: -12.03089987
B145: Tx e.i.r.p. of CDR with mitigation | C145: dBm | D145: =D140+D142 -> 7 | E145: 27 | F145: 27
B146: Gain of the CDR antenna in direction of main radiation | C146: dBi | D146: 32 | E146: 32 | F146: 32
B148: Direct interference component:
B149: Reduction of e.i.r.p. due to spatial distribution of the power over half-sphere | C149: dB | D149: -28.6 | E149: -28.6 | F149: -28.6
B150: Antenna gain at offset angle ε (offset angle ε=3,8°, see figure 46 in the Report ) | C150: dBi | D150: 29 | E150: 29 | F150: 29
B151: Direct e.i.r.p. component sent to FS system | C151: dBm | D151: =D145-D146+D150+D149 -> -24.6 | E151: =E145-E146+E150+E149 -> -4.6 | F151: =F145-F146+F150+F149 -> -4.6
B152: Direct e.i.r.p. component at FS receiver | C152: dBm | D152: =D151+D129-D130 -> 18.4 | E152: =E151+E129-E130 -> 38.4 | F152: =F151+F129-F130 -> 38.4
B154: Total e.i.r.p. at FS receiver | C154: dBm | D154: =D152 -> 18.4 | E154: =E152 -> 38.4 | F154: =F152 -> 38.4
B155: BWCF | C155: dB | D155: =IF(D126*1000<=D141, 0, 10*LOG10(D126/D141/1000)) -> -9.03089987 | E155: =IF(E126*1000<=E141, 0, 10*LOG10(E126/E141/1000)) -> -9.03089987 | F155: =IF(F126*1000<=F141, 0, 10*LOG10(F126/F141/1000)) -> -9.03089987
B157: Separation distance calculation:
B158: Minimum coupling loss (MCL) | C158: dB | D158: =D154-D134+D155 -> 101.3691001 | E158: =E154-E134+E155 -> 119.3691001 | F158: =F154-F134+F155 -> 119.3691001
B159: Separation distance with FSL model | C159: km | D159: =10^((D158-32.44-20*LOG10(D124*1000))/20) -> 0.02473321033 | E159: =10^((E158-32.44-20*LOG10(E124*1000))/20) -> 0.168221335 | F159: =10^((F158-32.44-20*LOG10(F124*1000))/20) -> 0.1534039117
B160: Specific attenuation due to atmospheric gases (ITU-R P.676-11 figure 5) | C160: dB/km | D160: 0.4 | E160: 0.8 | F160: 1
B161: Separation distance adjusted for attenuation due to atmospheric gases | C161: km | D161: 0.02470282244 | E161: 0.1656617122 | F161: 0.1507534665
B162: Balance check (should be close to zero) | C162: dB | D162: =D158-20*LOG10(D161)-D161*D160-32.44-20*LOG10(D124*1000) -> 0.0007971510443 | E162: =E158-20*LOG10(E161)-E161*E160-32.44-20*LOG10(E124*1000) -> 0.0006492230586 | F162: =F158-20*LOG10(F161)-F161*F160-32.44-20*LOG10(F124*1000) -> 0.000629067693
D163: Long term interference criterion | E163: Long term interference criterion | F163: Long term interference criterion
B167: Scenario 4: Light pole connected to a building by means of an FS link – FS Rx on light pole. Horizontal emission. See Report figure 47.
B169: Victim Fixed Service (FS) system | D169: Band of FS system: 111,8-114,25 GHz | E169: Band of FS system: 130-134 GHz | F169: Band of FS system: 141-148,5 GHz
B170: Sensor type | D170: Point-to-point (PP) | E170: Point-to-point (PP) | F170: Point-to-point (PP)
B171: FS system: | C171: Units
B172: Assumed centre frequency of FS system | C172: GHz | D172: 113.025 | E172: 132 | F172: 144.75
B173: Wavelength of FS system | C173: m | D173: =2.99792458/D172/10 -> 0.002652443778 | E173: 0.002271154985 | F173: 0.002071105064
B174: Receiver noise bandwidth (ITU-R-F.758-6) | C174: MHz | D174: 1000 | E174: 1000 | F174: 1000
B175: Receiver noise figure (ITU-R-F.758-6) | C175: dB | D175: 12 | E175: 14 | F175: 14
B176: Misalignment of antenna main beam towards CDR (angle α in figure 47 in the Report) | C176: ° | D176: 3.62 | E176: 3.62 | F176: 3.62
B177: Antenna gain in the direction of interferer for the side-lobe interference component (ITU-R-F.758-6) | C177: dBi | D177: 22 | E177: 22 | F177: 22
B178: Feeder (insertion) loss (ITU-R-F.758-6) | C178: dB | D178: 0 | E178: 0 | F178: 0
B179: I/N criteria (ITU-R F.758-6 ) | C179: dB | D179: -20 | E179: -20 | F179: -20
B180: Receiver noise power density typical (ITU-R-F.758-6) | C180: dBW/MHz | D180: -132 | E180: -130 | F180: -130
B181: Nominal long-term interference power density threshold (ITU-R-F.758-6) | C181: dBW/MHz | D181: =D180+D179 -> -152 | E181: -150 | F181: -150
B182: Interference threshold at receiver input within IF bandwidth | C182: dBm | D182: =D181+10*LOG10(D174)+30 -> -92 | E182: =E181+10*LOG10(E174)+30 -> -90 | F182: =F181+10*LOG10(F174)+30 -> -90
B183: (Receiver noise power density calculated over NF) | C183: dBW/MHz | D183: =-113.83+D175-30 -> -131.83 | E183: =-113.83+E175-30 -> -129.83 | F183: =-113.83+F175-30 -> -129.83
B185: M- and PA-CDR system:
B186: Conducted Tx power of CDR | C186: dBm | D186: -5 | E186: -5 | F186: -5
B187: Out-of-band unwanted emissions attenuation (if FS victim is located in an adjacent band) | C187: dB | D187: 20 | E187: 0 | F187: 0
B188: Tx e.i.r.p. of CDR | C188: dBm | D188: =D186-D187+D194 -> 7 | E188: 27 | F188: 27
B189: Bandwidth of CDR Tx signal | C189: GHz | D189: 8 | E189: 8 | F189: 8
B190: Mitigation technique (e.g. activity factor, adaptive power control) | C190: dB | D190: 0 | E190: 0 | F190: 0
B191: Tx e.i.r.p. spectral density of CDR | C191: dBm/MHz | D191: =D188-10*LOG(D189*1000) -> -32.03089987 | E191: -12.03089987 | F191: -12.03089987
B192: Tx e.i.r.p. spectral density of CDR with mitigation | C192: dBm/MHz | D192: =D188+D190-10*LOG(D189*1000) -> -32.03089987 | E192: -12.03089987 | F192: -12.03089987
B193: Tx e.i.r.p. of CDR with mitigation | C193: dBm | D193: =D188+D190 -> 7 | E193: 27 | F193: 27
B194: Gain of the CDR antenna in direction of main radiation | C194: dBi | D194: 32 | E194: 32 | F194: 32
B196: Direct interference component:
B197: Reduction of e.i.r.p. due to spatial distribution of the power over half-sphere | C197: dB | D197: -28.6 | E197: -28.6 | F197: -28.6
B198: Antenna gain in the direction of the FS receiver | C198: dBi | D198: 32 | E198: 32 | F198: 32
B199: Direct e.i.r.p. component sent to FS system | C199: dBm | D199: =D193-D194+D198+D197 -> -21.6 | E199: =E193-E194+E198+E197 -> -1.6 | F199: =F193-F194+F198+F197 -> -1.6
B200: Direct e.i.r.p. component at FS receiver | C200: dBm | D200: =D199+D177-D178 -> 0.4 | E200: =E199+E177-E178 -> 20.4 | F200: =F199+F177-F178 -> 20.4
B202: Total e.i.r.p. at FS receiver | C202: dBm | D202: =D200 -> 0.4 | E202: =E200 -> 20.4 | F202: =F200 -> 20.4
B203: BWCF | C203: dB | D203: =IF(D174*1000<=D189, 0, 10*LOG10(D174/D189/1000)) -> -9.03089987 | E203: =IF(E174*1000<=E189, 0, 10*LOG10(E174/E189/1000)) -> -9.03089987 | F203: =IF(F174*1000<=F189, 0, 10*LOG10(F174/F189/1000)) -> -9.03089987
B205: Separation distance calculation:
B206: Minimum coupling loss (MCL) | C206: dB | D206: =D202-D182+D203 -> 83.36910013 | E206: =E202-E182+E203 -> 101.3691001 | F206: =F202-F182+F203 -> 101.3691001
B207: Separation distance with FSL model | C207: km | D207: =10^((D206-32.44-20*LOG10(D172*1000))/20) -> 0.0031137267 | E207: =10^((E206-32.44-20*LOG10(E172*1000))/20) -> 0.02117781135 | F207: =10^((F206-32.44-20*LOG10(F172*1000))/20) -> 0.01931240828
B208: Specific attenuation due to atmospheric gases (ITU-R P.676-11 figure 5) | C208: dB/km | D208: 0.4 | E208: 0.8 | F208: 1
B209: Separation distance adjusted for attenuation due to atmospheric gases | C209: km | D209: 0.003112990827 | E209: 0.02113470894 | F209: 0.01926787294
B210: Balance check (should be close to zero) | C210: dB | D210: =D206-20*LOG10(D209)-D209*D208-32.44-20*LOG10(D172*1000) -> 0.0008078001226 | E210: =E206-20*LOG10(E209)-E209*E208-32.44-20*LOG10(E172*1000) -> 0.0007883130112 | F210: =F206-20*LOG10(F209)-F209*F208-32.44-20*LOG10(F172*1000) -> 0.0007853321137
D211: Long term interference criterion | E211: Long term interference criterion | F211: Long term interference criterion

Sheet M-&PA-CDR vs. FS 167-182GHz P
B3: Compatibility analysis between M-CDR and PA-CDR in the frequency band 167-182 GHz and Fixed Service (FS) systems
B5: Scenario 1: Light pole connected to a building by means of an FS link – FS Rx on building. Reflected interference component points directly to FS Rx. See Report figure 44.
B7: Victim Fixed Service (FS) system | D7: Band of FS system: 167-174,8 GHz
B8: Sensor type | D8: Point-to-point (PP)
B9: FS system: | C9: Units
B10: Assumed centre frequency of FS system | C10: GHz | D10: 170.9
B11: Wavelength of FS system | C11: m | D11: =2.99792458/D10/10 -> 0.001754198116
B12: Receiver noise bandwidth (ITU-R-F.758-6) | C12: MHz | D12: 1000
B13: Receiver noise figure (ITU-R-F.758-6) | C13: dB | D13: 14
B14: Misalignment of antenna main beam towards CDR (angle ε-α in figure 44 in the Report) | C14: ° | D14: 0.19
B15: Misalignment of antenna main beam towards reflection point on sand surface (angle δ in figure 44 in the Report) | C15: ° | D15: 0.67
B16: Antenna gain in the direction of interferer for the side-lobe interference component (ITU-R-F.758-6) | C16: dBi | D16: 43
B17: Antenna gain in the direction of interferer for the reflected interference component (ITU-R-F.758-6) | C17: dBi | D17: 40
B18: Feeder (insertion) loss (ITU-R-F.758-6) | C18: dB | D18: 0
B19: I/N criteria (ITU-R F.758-6 ) | C19: dB | D19: 5
B20: Receiver noise power density typical (ITU-R-F.758-6) | C20: dBW/MHz | D20: -130
B21: Nominal long-term interference power density threshold (ITU-R-F.758-6) | C21: dBW/MHz | D21: =D20+D19 -> -125
B22: Interference threshold at receiver input within IF bandwidth | C22: dBm | D22: =D21+10*LOG10(D12)+30 -> -65
B23: (Receiver noise power density calculated over NF) | C23: dBW/MHz | D23: =-113.83+D13-30 -> -129.83
B25: M- and PA-CDR system:
B26: Conducted Tx power of CDR | C26: dBm | D26: 2.6
B27: Out-of-band unwanted emissions attenuation (if FS victim is located in an adjacent band) | C27: dB | D27: 0
B28: Tx e.i.r.p. of CDR | C28: dBm | D28: =D26-D27+D34 -> 34.6
B29: Bandwidth of CDR Tx signal | C29: GHz | D29: 8
B30: Mitigation technique (e.g. activity factor, adaptive power control) | C30: dB | D30: 0
B31: Tx e.i.r.p. spectral density of CDR | C31: dBm/MHz | D31: =D28-10*LOG(D29*1000) -> -4.43089987
B32: Tx e.i.r.p. spectral density of CDR with mitigation | C32: dBm/MHz | D32: =D28+D30-10*LOG(D29*1000) -> -4.43089987
B33: Tx e.i.r.p. of CDR with mitigation | C33: dBm | D33: =D28+D30 -> 34.6
B34: Gain of the CDR antenna in direction of main radiation | C34: dBi | D34: 32
B36: Side-lobe interference component:
B37: Antenna side-lobe gain >60° offset angle (offset angle ξ=74°, see figure 44 in the Report ) | C37: dBi | D37: 0
B38: Direct e.i.r.p. component sent to FS system | C38: dBm | D38: =D33-D34+D37 -> 2.6
B39: Direct e.i.r.p. component at FS receiver | C39: dBm | D39: =D38+D16-D18 -> 45.6
B41: Reflected interference component:
B42: Misalignment of reflected interference component towards FS receiver (see figure 44 in the Report) | C42: ° | D42: 0
B43: Antenna gain at angle 0° (see figure 44 in the Report) | C43: dBi | D43: 32
B44: Reflection loss on sand surface (angle of incidence 52,71°) | C44: dB | D44: 12.5
B45: Reflected e.i.r.p. component sent to FS system | C45: dBm | D45: =D33-D34+D43-D44 -> 22.1
B46: Reflected e.i.r.p. component at FS receiver | C46: dBm | D46: =D45+D17-D18 -> 62.1
B48: Total e.i.r.p. at FS receiver | C48: dBm | D48: =10*LOG10(10^(D39/10)+10^(D46/10)) -> 62.19615408
B49: BWCF | C49: dB | D49: 0
B51: Separation distance calculation:
B52: Minimum coupling loss (MCL) | C52: dB | D52: =D48-D22+D49 -> 127.1961541
B53: Separation distance with FSL model | C53: km | D53: =10^((D52-32.44-20*LOG10(D10*1000))/20) -> 0.3199378644
B54: Specific attenuation due to atmospheric gases (ITU-R P.676-11 figure 5) | C54: dB/km | D54: 2
B55: Separation distance adjusted for attenuation due to atmospheric gases | C55: km | D55: 0.2986776612
B56: Balance check (should be close to zero) | C56: dB | D56: =D52-20*LOG10(D55)-D55*D54-32.44-20*LOG10(D10*1000) -> -9.733109141e-05
D57: Peak power objective
B61: Scenario 2: Light pole connected to a building by means of an FS link – FS Rx on building. Reflected interference component points directly to FS Rx. See Report figure 45.
B63: Victim Fixed Service (FS) system | D63: Band of FS system: 167-174,8 GHz
B64: Sensor type | D64: Point-to-point (PP)
B65: FS system: | C65: Units
B66: Assumed centre frequency of FS system | C66: GHz | D66: 170.9
B67: Wavelength of FS system | C67: m | D67: =2.99792458/D66/10 -> 0.001754198116
B68: Receiver noise bandwidth (ITU-R-F.758-6) | C68: MHz | D68: 1000
B69: Receiver noise figure (ITU-R-F.758-6) | C69: dB | D69: 14
B70: Misalignment of antenna main beam towards CDR (angle α in figure 45 in the Report) | C70: ° | D70: 3.62
B71: Misalignment of antenna main beam towards reflection point on sand surface (angle α+β in figure 45 in the Report) | C71: ° | D71: 4.29
B72: Antenna gain in the direction of interferer for the side-lobe interference component (ITU-R-F.758-6) | C72: dBi | D72: 22
B73: Antenna gain in the direction of interferer for the reflected interference component (ITU-R-F.758-6) | C73: dBi | D73: 19
B74: Feeder (insertion) loss (ITU-R-F.758-6) | C74: dB | D74: 0
B75: I/N criteria (ITU-R F.758-6 ) | C75: dB | D75: 5
B76: Receiver noise power density typical (ITU-R-F.758-6) | C76: dBW/MHz | D76: -130
B77: Nominal long-term interference power density threshold (ITU-R-F.758-6) | C77: dBW/MHz | D77: =D76+D75 -> -125
B78: Interference threshold at receiver input within IF bandwidth | C78: dBm | D78: =D77+10*LOG10(D68)+30 -> -65
B79: (Receiver noise power density calculated over NF) | C79: dBW/MHz | D79: =-113.83+D69-30 -> -129.83
B81: M- and PA-CDR system:
B82: Conducted Tx power of CDR | C82: dBm | D82: 2.6
B83: Out-of-band unwanted emissions attenuation (if FS victim is located in an adjacent band) | C83: dB | D83: 0
B84: Tx e.i.r.p. of CDR | C84: dBm | D84: =D82-D83+D90 -> 34.6
B85: Bandwidth of CDR Tx signal | C85: GHz | D85: 8
B86: Mitigation technique (e.g. activity factor, adaptive power control) | C86: dB | D86: 0
B87: Tx e.i.r.p. spectral density of CDR | C87: dBm/MHz | D87: =D84-10*LOG(D85*1000) -> -4.43089987
B88: Tx e.i.r.p. spectral density of CDR with mitigation | C88: dBm/MHz | D88: =D84+D86-10*LOG(D85*1000) -> -4.43089987
B89: Tx e.i.r.p. of CDR with mitigation | C89: dBm | D89: =D84+D86 -> 34.6
B90: Gain of the CDR antenna in direction of main radiation | C90: dBi | D90: 32
B92: Side-lobe interference component:
B93: Antenna side-lobe gain >60° offset angle (offset angle ξ=67°, see figure 45 in the Report ) | C93: dBi | D93: 0
B94: Direct e.i.r.p. component sent to FS system | C94: dBm | D94: =D89-D90+D93 -> 2.6
B95: Direct e.i.r.p. component at FS receiver | C95: dBm | D95: =D94+D72-D74 -> 24.6
B97: Reflected interference component:
B98: Misalignment of reflected interference component towards FS receiver (see figure 45 in the Report) | C98: ° | D98: 0
B99: Antenna gain at angle 0° (see figure 45 in the Report) | C99: dBi | D99: 32
B100: Reflection loss on sand surface (angle of incidence 56,33°) | C100: dB | D100: 12.5
B101: Reflected e.i.r.p. component sent to FS system | C101: dBm | D101: =D89-D90+D99-D100 -> 22.1
B102: Reflected e.i.r.p. component at FS receiver | C102: dBm | D102: =D101+D73-D74 -> 41.1
B104: Total e.i.r.p. at FS receiver | C104: dBm | D104: =10*LOG10(10^(D95/10)+10^(D102/10)) -> 41.19615408
B105: BWCF | C105: dB | D105: 0
B107: Separation distance calculation:
B108: Minimum coupling loss (MCL) | C108: dB | D108: =D104-D78+D105 -> 106.1961541
B109: Separation distance with FSL model | C109: km | D109: =10^((D108-32.44-20*LOG10(D66*1000))/20) -> 0.02851449218
B110: Specific attenuation due to atmospheric gases (ITU-R P.676-11 figure 5) | C110: dB/km | D110: 2
B111: Separation distance adjusted for attenuation due to atmospheric gases | C111: km | D111: 0.02832976069
B112: Balance check (should be close to zero) | C112: dB | D112: =D108-20*LOG10(D111)-D111*D110-32.44-20*LOG10(D66*1000) -> -0.000204808735
D113: Peak power objective
B117: Scenario 3: Light pole connected to a building by means of an FS link – FS Rx on building. Horizontal emission. See Report figure 46.
B119: Victim Fixed Service (FS) system | D119: Band of FS system: 167-174,8 GHz
B120: Sensor type | D120: Point-to-point (PP)
B121: FS system: | C121: Units
B122: Assumed centre frequency of FS system | C122: GHz | D122: 170.9
B123: Wavelength of FS system | C123: m | D123: =2.99792458/D122/10 -> 0.001754198116
B124: Receiver noise bandwidth (ITU-R-F.758-6) | C124: MHz | D124: 1000
B125: Receiver noise figure (ITU-R-F.758-6) | C125: dB | D125: 14
B126: Misalignment of antenna main beam towards CDR (angle ε-α in figure 46 in the Report) | C126: ° | D126: 0.19
B127: Antenna gain in the direction of interferer for the side-lobe interference component (ITU-R-F.758-6) | C127: dBi | D127: 43
B128: Feeder (insertion) loss (ITU-R-F.758-6) | C128: dB | D128: 0
B129: I/N criteria (ITU-R F.758-6 ) | C129: dB | D129: 5
B130: Receiver noise power density typical (ITU-R-F.758-6) | C130: dBW/MHz | D130: -130
B131: Nominal long-term interference power density threshold (ITU-R-F.758-6) | C131: dBW/MHz | D131: =D130+D129 -> -125
B132: Interference threshold at receiver input within IF bandwidth | C132: dBm | D132: =D131+10*LOG10(D124)+30 -> -65
B133: (Receiver noise power density calculated over NF) | C133: dBW/MHz | D133: =-113.83+D125-30 -> -129.83
B135: M- and PA-CDR system:
B136: Conducted Tx power of CDR | C136: dBm | D136: 2.6
B137: Out-of-band unwanted emissions attenuation (if FS victim is located in an adjacent band) | C137: dB | D137: 0
B138: Tx e.i.r.p. of CDR | C138: dBm | D138: =D136-D137+D144 -> 34.6
B139: Bandwidth of CDR Tx signal | C139: GHz | D139: 8
B140: Mitigation technique (e.g. activity factor, adaptive power control) | C140: dB | D140: 0
B141: Tx e.i.r.p. spectral density of CDR | C141: dBm/MHz | D141: =D138-10*LOG(D139*1000) -> -4.43089987
B142: Tx e.i.r.p. spectral density of CDR with mitigation | C142: dBm/MHz | D142: =D138+D140-10*LOG(D139*1000) -> -4.43089987
B143: Tx e.i.r.p. of CDR with mitigation | C143: dBm | D143: =D138+D140 -> 34.6
B144: Gain of the CDR antenna in direction of main radiation | C144: dBi | D144: 32
B146: Side-lobe interference component:
B147: Antenna side-lobe gain at offset angle ε (offset angle ε=3,8°, see figure 46 in the Report ) | C147: dBi | D147: 29
B148: Direct e.i.r.p. component sent to FS system | C148: dBm | D148: =D143-D144+D147 -> 31.6
B149: Direct e.i.r.p. component at FS receiver | C149: dBm | D149: =D148+D127-D128 -> 74.6
B151: Total e.i.r.p. at FS receiver | C151: dBm | D151: =D149 -> 74.6
B152: BWCF | C152: dB | D152: 0
B154: Separation distance calculation:
B155: Minimum coupling loss (MCL) | C155: dB | D155: =D151-D132+D152 -> 139.6
B156: Separation distance with FSL model | C156: km | D156: =10^((D155-32.44-20*LOG10(D122*1000))/20) -> 1.334313676
B157: Specific attenuation due to atmospheric gases (ITU-R P.676-11 figure 5) | C157: dB/km | D157: 2
B158: Separation distance adjusted for attenuation due to atmospheric gases | C158: km | D158: 1.048189369
B159: Balance check (should be close to zero) | C159: dB | D159: =D155-20*LOG10(D158)-D158*D157-32.44-20*LOG10(D122*1000) -> -1.500962381e-05
D160: Peak power objective
B164: Scenario 4: Light pole connected to a building by means of an FS link – FS Rx on light pole. Horizontal emission. See Report figure 47.
B166: Victim Fixed Service (FS) system | D166: Band of FS system: 167-174,8 GHz
B167: Sensor type | D167: Point-to-point (PP)
B168: FS system: | C168: Units
B169: Assumed centre frequency of FS system | C169: GHz | D169: 170.9
B170: Wavelength of FS system | C170: m | D170: =2.99792458/D169/10 -> 0.001754198116
B171: Receiver noise bandwidth (ITU-R-F.758-6) | C171: MHz | D171: 1000
B172: Receiver noise figure (ITU-R-F.758-6) | C172: dB | D172: 14
B173: Misalignment of antenna main beam towards CDR (angle α in figure 47 in the Report) | C173: ° | D173: 3.62
B174: Antenna gain in the direction of interferer for the side-lobe interference component (ITU-R-F.758-6) | C174: dBi | D174: 22
B175: Feeder (insertion) loss (ITU-R-F.758-6) | C175: dB | D175: 0
B176: I/N criteria (ITU-R F.758-6 ) | C176: dB | D176: 5
B177: Receiver noise power density typical (ITU-R-F.758-6) | C177: dBW/MHz | D177: -130
B178: Nominal long-term interference power density threshold (ITU-R-F.758-6) | C178: dBW/MHz | D178: =D177+D176 -> -125
B179: Interference threshold at receiver input within IF bandwidth | C179: dBm | D179: =D178+10*LOG10(D171)+30 -> -65
B180: (Receiver noise power density calculated over NF) | C180: dBW/MHz | D180: =-113.83+D172-30 -> -129.83
B182: M- and PA-CDR system:
B183: Conducted Tx power of CDR | C183: dBm | D183: 2.6
B184: Out-of-band unwanted emissions attenuation (if FS victim is located in an adjacent band) | C184: dB | D184: 0
B185: Tx e.i.r.p. of CDR | C185: dBm | D185: =D183-D184+D191 -> 34.6
B186: Bandwidth of CDR Tx signal | C186: GHz | D186: 8
B187: Mitigation technique (e.g. activity factor, adaptive power control) | C187: dB | D187: 0
B188: Tx e.i.r.p. spectral density of CDR | C188: dBm/MHz | D188: =D185-10*LOG(D186*1000) -> -4.43089987
B189: Tx e.i.r.p. spectral density of CDR with mitigation | C189: dBm/MHz | D189: =D185+D187-10*LOG(D186*1000) -> -4.43089987
B190: Tx e.i.r.p. of CDR with mitigation | C190: dBm | D190: =D185+D187 -> 34.6
B191: Gain of the CDR antenna in direction of main radiation | C191: dBi | D191: 32
B193: Side-lobe interference component:
B194: Antenna gain in the direction of the FS receiver | C194: dBi | D194: 32
B195: Direct e.i.r.p. component sent to FS system | C195: dBm | D195: =D190-D191+D194 -> 34.6
B196: Direct e.i.r.p. component at FS receiver | C196: dBm | D196: =D195+D174-D175 -> 56.6
B198: Total e.i.r.p. at FS receiver | C198: dBm | D198: =D196 -> 56.6
B199: BWCF | C199: dB | D199: 0
B201: Separation distance calculation:
B202: Minimum coupling loss (MCL) | C202: dB | D202: =D198-D179+D199 -> 121.6
B203: Separation distance with FSL model | C203: km | D203: =10^((D202-32.44-20*LOG10(D169*1000))/20) -> 0.1679801394
B204: Specific attenuation due to atmospheric gases (ITU-R P.676-11 figure 5) | C204: dB/km | D204: 2
B205: Separation distance adjusted for attenuation due to atmospheric gases | C205: km | D205: 0.1618382492
B206: Balance check (should be close to zero) | C206: dB | D206: =D202-20*LOG10(D205)-D205*D204-32.44-20*LOG10(D169*1000) -> -0.0001411839975
D207: Peak power objective

Sheet M-&PA-CDR vs. FS 167-182GHz LT
B3: Compatibility analysis between M-CDR and PA-CDR in the frequency band 167-182 GHz and Fixed Service (FS) systems
B5: Scenario 1: Light pole connected to a building by means of an FS link – FS Rx on building. Reflected interference component points directly to FS Rx. See Report figure 44.
B7: Victim Fixed Service (FS) system | D7: Band of FS system: 167-174,8 GHz
B8: Sensor type | D8: Point-to-point (PP)
B9: FS system: | C9: Units
B10: Assumed centre frequency of FS system | C10: GHz | D10: 170.9
B11: Wavelength of FS system | C11: m | D11: =2.99792458/D10/10 -> 0.001754198116
B12: Receiver noise bandwidth (ITU-R-F.758-6) | C12: MHz | D12: 1000
B13: Receiver noise figure (ITU-R-F.758-6) | C13: dB | D13: 14
B14: Misalignment of antenna main beam towards CDR (angle ε-α in figure 44 in the Report) | C14: ° | D14: 0.19
B15: Misalignment of antenna main beam towards reflection point on sand surface (angle δ in figure 44 in the Report) | C15: ° | D15: 0.67
B16: Antenna gain in the direction of interferer for the side-lobe interference component (ITU-R-F.758-6) | C16: dBi | D16: 43
B17: Antenna gain in the direction of interferer for the reflected interference component (ITU-R-F.758-6) | C17: dBi | D17: 40
B18: Feeder (insertion) loss (ITU-R-F.758-6) | C18: dB | D18: 0
B19: I/N criteria (ITU-R F.758-6 ) | C19: dB | D19: -20
B20: Receiver noise power density typical (ITU-R-F.758-6) | C20: dBW/MHz | D20: -130
B21: Nominal long-term interference power density threshold (ITU-R-F.758-6) | C21: dBW/MHz | D21: =D20+D19 -> -150
B22: Interference threshold at receiver input within IF bandwidth | C22: dBm | D22: =D21+10*LOG10(D12)+30 -> -90
B23: (Receiver noise power density calculated over NF) | C23: dBW/MHz | D23: =-113.83+D13-30 -> -129.83
B25: M- and PA-CDR system:
B26: Conducted Tx power of CDR | C26: dBm | D26: -2
B27: Out-of-band unwanted emissions attenuation (if FS victim is located in an adjacent band) | C27: dB | D27: 0
B28: Tx e.i.r.p. of CDR | C28: dBm | D28: =D26-D27+D34 -> 30
B29: Bandwidth of CDR Tx signal | C29: GHz | D29: 8
B30: Mitigation technique (e.g. activity factor, adaptive power control) | C30: dB | D30: 0
B31: Tx e.i.r.p. spectral density of CDR | C31: dBm/MHz | D31: =D28-10*LOG(D29*1000) -> -9.03089987
B32: Tx e.i.r.p. spectral density of CDR with mitigation | C32: dBm/MHz | D32: =D28+D30-10*LOG(D29*1000) -> -9.03089987
B33: Tx e.i.r.p. of CDR with mitigation | C33: dBm | D33: =D28+D30 -> 30
B34: Gain of the CDR antenna in direction of main radiation | C34: dBi | D34: 32
B36: Side-lobe interference component:
B37: Antenna side-lobe gain >60° offset angle (offset angle ξ=74°, see figure 44 in the Report ) | C37: dBi | D37: 0
B38: Direct e.i.r.p. component sent to FS system | C38: dBm | D38: =D33-D34+D37 -> -2
B39: Direct e.i.r.p. component at FS receiver | C39: dBm | D39: =D38+D16-D18 -> 41
B41: Reflected interference component:
B42: Reduction of e.i.r.p. due to spatial distribution of the power over half-sphere | C42: dB | D42: -28.6
B43: Misalignment of reflected interference component towards FS receiver (see figure 44 in the Report) | C43: ° | D43: 0
B44: Antenna gain at angle 0° (see figure 44 in the Report) | C44: dBi | D44: 32
B45: Reflection loss on sand surface (angle of incidence 52,71°) | C45: dB | D45: 12.5
B46: Reflected e.i.r.p. component sent to FS system | C46: dBm | D46: =D33-D34+D44-D45+D42 -> -11.1
B47: Reflected e.i.r.p. component at FS receiver | C47: dBm | D47: =D46+D17-D18 -> 28.9
B49: Total e.i.r.p. at FS receiver | C49: dBm | D49: =10*LOG10(10^(D39/10)+10^(D47/10)) -> 41.2598525
B50: BWCF | C50: dB | D50: =IF(D12*1000<=D29, 0, 10*LOG10(D12/D29/1000)) -> -9.03089987
B52: Separation distance calculation:
B53: Minimum coupling loss (MCL) | C53: dB | D53: =D49-D22+D50 -> 122.2289526
B54: Separation distance with FSL model | C54: km | D54: =10^((D53-32.44-20*LOG10(D10*1000))/20) -> 0.1805949363
B55: Specific attenuation due to atmospheric gases (ITU-R P.676-11 figure 5) | C55: dB/km | D55: 2
B56: Separation distance adjusted for attenuation due to atmospheric gases | C56: km | D56: 0.1735131281
B57: Balance check (should be close to zero) | C57: dB | D57: =D53-20*LOG10(D56)-D56*D55-32.44-20*LOG10(D10*1000) -> 0.0004383383603
D58: Long term interference criterion
B62: Scenario 2: Light pole connected to a building by means of an FS link – FS Rx on building. Reflected interference component points directly to FS Rx. See Report figure 45.
B64: Victim Fixed Service (FS) system | D64: Band of FS system: 167-174,8 GHz
B65: Sensor type | D65: Point-to-point (PP)
B66: FS system: | C66: Units
B67: Assumed centre frequency of FS system | C67: GHz | D67: 170.9
B68: Wavelength of FS system | C68: m | D68: =2.99792458/D67/10 -> 0.001754198116
B69: Receiver noise bandwidth (ITU-R-F.758-6) | C69: MHz | D69: 1000
B70: Receiver noise figure (ITU-R-F.758-6) | C70: dB | D70: 14
B71: Misalignment of antenna main beam towards CDR (angle α in figure 45 in the Report) | C71: ° | D71: 3.62
B72: Misalignment of antenna main beam towards reflection point on sand surface (angle α+β in figure 45 in the Report) | C72: ° | D72: 4.29
B73: Antenna gain in the direction of interferer for the side-lobe interference component (ITU-R-F.758-6) | C73: dBi | D73: 22
B74: Antenna gain in the direction of interferer for the reflected interference component (ITU-R-F.758-6) | C74: dBi | D74: 19
B75: Feeder (insertion) loss (ITU-R-F.758-6) | C75: dB | D75: 0
B76: I/N criteria (ITU-R F.758-6 ) | C76: dB | D76: -20
B77: Receiver noise power density typical (ITU-R-F.758-6) | C77: dBW/MHz | D77: -130
B78: Nominal long-term interference power density threshold (ITU-R-F.758-6) | C78: dBW/MHz | D78: =D77+D76 -> -150
B79: Interference threshold at receiver input within IF bandwidth | C79: dBm | D79: =D78+10*LOG10(D69)+30 -> -90
B80: (Receiver noise power density calculated over NF) | C80: dBW/MHz | D80: =-113.83+D70-30 -> -129.83
B82: M- and PA-CDR system:
B83: Conducted Tx power of CDR | C83: dBm | D83: -2
B84: Out-of-band unwanted emissions attenuation (if FS victim is located in an adjacent band) | C84: dB | D84: 0
B85: Tx e.i.r.p. of CDR | C85: dBm | D85: =D83-D84+D91 -> 30
B86: Bandwidth of CDR Tx signal | C86: GHz | D86: 8
B87: Mitigation technique (e.g. activity factor, adaptive power control) | C87: dB | D87: 0
B88: Tx e.i.r.p. spectral density of CDR | C88: dBm/MHz | D88: =D85-10*LOG(D86*1000) -> -9.03089987
B89: Tx e.i.r.p. spectral density of CDR with mitigation | C89: dBm/MHz | D89: =D85+D87-10*LOG(D86*1000) -> -9.03089987
B90: Tx e.i.r.p. of CDR with mitigation | C90: dBm | D90: =D85+D87 -> 30
B91: Gain of the CDR antenna in direction of main radiation | C91: dBi | D91: 32
B93: Side-lobe interference component:
B94: Antenna side-lobe gain >60° offset angle (offset angle ξ=67°, see figure 45 in the Report ) | C94: dBi | D94: 0
B95: Direct e.i.r.p. component sent to FS system | C95: dBm | D95: =D90-D91+D94 -> -2
B96: Direct e.i.r.p. component at FS receiver | C96: dBm | D96: =D95+D73-D75 -> 20
B98: Reflected interference component:
B99: Reduction of e.i.r.p. due to spatial distribution of the power over half-sphere | C99: dB | D99: -28.6
B100: Misalignment of reflected interference component towards FS receiver (see figure 45 in the Report) | C100: ° | D100: 0
B101: Antenna gain at angle 0° (see figure 45 in the Report) | C101: dBi | D101: 32
B102: Reflection loss on sand surface (angle of incidence 56,33°) | C102: dB | D102: 12.5
B103: Reflected e.i.r.p. component sent to FS system | C103: dBm | D103: =D90-D91+D101-D102+D99 -> -11.1
B104: Reflected e.i.r.p. component at FS receiver | C104: dBm | D104: =D103+D74-D75 -> 7.9
B106: Total e.i.r.p. at FS receiver | C106: dBm | D106: =10*LOG10(10^(D96/10)+10^(D104/10)) -> 20.2598525
B107: BWCF | C107: dB | D107: =IF(D69*1000<=D86, 0, 10*LOG10(D69/D86/1000)) -> -9.03089987
B109: Separation distance calculation:
B110: Minimum coupling loss (MCL) | C110: dB | D110: =D106-D79+D107 -> 101.2289526
B111: Separation distance with FSL model | C111: km | D111: =10^((D110-32.44-20*LOG10(D67*1000))/20) -> 0.01609554064
B112: Specific attenuation due to atmospheric gases (ITU-R P.676-11 figure 5) | C112: dB/km | D112: 2
B113: Separation distance adjusted for attenuation due to atmospheric gases | C113: km | D113: 0.0160348028
B114: Balance check (should be close to zero) | C114: dB | D114: =D110-20*LOG10(D113)-D113*D112-32.44-20*LOG10(D67*1000) -> 0.0007693081867
D115: Long term interference criterion
B119: Scenario 3: Light pole connected to a building by means of an FS link – FS Rx on building. Horizontal emission. See Report figure 46.
B121: Victim Fixed Service (FS) system | D121: Band of FS system: 167-174,8 GHz
B122: Sensor type | D122: Point-to-point (PP)
B123: FS system: | C123: Units
B124: Assumed centre frequency of FS system | C124: GHz | D124: 170.9
B125: Wavelength of FS system | C125: m | D125: =2.99792458/D124/10 -> 0.001754198116
B126: Receiver noise bandwidth (ITU-R-F.758-6) | C126: MHz | D126: 1000
B127: Receiver noise figure (ITU-R-F.758-6) | C127: dB | D127: 14
B128: Misalignment of antenna main beam towards CDR (angle ε-α in figure 46 in the Report) | C128: ° | D128: 0.19
B129: Antenna gain in the direction of interferer for the side-lobe interference component (ITU-R-F.758-6) | C129: dBi | D129: 43
B130: Feeder (insertion) loss (ITU-R-F.758-6) | C130: dB | D130: 0
B131: I/N criteria (ITU-R F.758-6 ) | C131: dB | D131: -20
B132: Receiver noise power density typical (ITU-R-F.758-6) | C132: dBW/MHz | D132: -130
B133: Nominal long-term interference power density threshold (ITU-R-F.758-6) | C133: dBW/MHz | D133: =D132+D131 -> -150
B134: Interference threshold at receiver input within IF bandwidth | C134: dBm | D134: =D133+10*LOG10(D126)+30 -> -90
B135: (Receiver noise power density calculated over NF) | C135: dBW/MHz | D135: =-113.83+D127-30 -> -129.83
B137: M- and PA-CDR system:
B138: Conducted Tx power of CDR | C138: dBm | D138: -2
B139: Out-of-band unwanted emissions attenuation (if FS victim is located in an adjacent band) | C139: dB | D139: 0
B140: Tx e.i.r.p. of CDR | C140: dBm | D140: =D138-D139+D146 -> 30
B141: Bandwidth of CDR Tx signal | C141: GHz | D141: 8
B142: Mitigation technique (e.g. activity factor, adaptive power control) | C142: dB | D142: 0
B143: Tx e.i.r.p. spectral density of CDR | C143: dBm/MHz | D143: =D140-10*LOG(D141*1000) -> -9.03089987
B144: Tx e.i.r.p. spectral density of CDR with mitigation | C144: dBm/MHz | D144: =D140+D142-10*LOG(D141*1000) -> -9.03089987
B145: Tx e.i.r.p. of CDR with mitigation | C145: dBm | D145: =D140+D142 -> 30
B146: Gain of the CDR antenna in direction of main radiation | C146: dBi | D146: 32
B148: Side-lobe interference component:
B149: Reduction of e.i.r.p. due to spatial distribution of the power over half-sphere | C149: dB | D149: -28.6
B150: Antenna side-lobe gain at offset angle ε (offset angle ε=3,8°, see figure 46 in the Report ) | C150: dBi | D150: 29
B151: Direct e.i.r.p. component sent to FS system | C151: dBm | D151: =D145-D146+D150+D149 -> -1.6
B152: Direct e.i.r.p. component at FS receiver | C152: dBm | D152: =D151+D129-D130 -> 41.4
B154: Total e.i.r.p. at FS receiver | C154: dBm | D154: =D152 -> 41.4
B155: BWCF | C155: dB | D155: =IF(D126*1000<=D141, 0, 10*LOG10(D126/D141/1000)) -> -9.03089987
B157: Separation distance calculation:
B158: Minimum coupling loss (MCL) | C158: dB | D158: =D154-D134+D155 -> 122.3691001
B159: Separation distance with FSL model | C159: km | D159: =10^((D158-32.44-20*LOG10(D124*1000))/20) -> 0.1835324845
B160: Specific attenuation due to atmospheric gases (ITU-R P.676-11 figure 5) | C160: dB/km | D160: 2
B161: Separation distance adjusted for attenuation due to atmospheric gases | C161: km | D161: 0.176225483
B162: Balance check (should be close to zero) | C162: dB | D162: =D158-20*LOG10(D161)-D161*D160-32.44-20*LOG10(D124*1000) -> 0.0004337167296
D163: Long term interference criterion
B167: Scenario 4: Light pole connected to a building by means of an FS link – FS Rx on light pole. Horizontal emission. See Report figure 47.
B169: Victim Fixed Service (FS) system | D169: Band of FS system: 167-174,8 GHz
B170: Sensor type | D170: Point-to-point (PP)
B171: FS system: | C171: Units
B172: Assumed centre frequency of FS system | C172: GHz | D172: 170.9
B173: Wavelength of FS system | C173: m | D173: =2.99792458/D172/10 -> 0.001754198116
B174: Receiver noise bandwidth (ITU-R-F.758-6) | C174: MHz | D174: 1000
B175: Receiver noise figure (ITU-R-F.758-6) | C175: dB | D175: 14
B176: Misalignment of antenna main beam towards CDR (angle α in figure 47 in the Report) | C176: ° | D176: 3.62
B177: Antenna gain in the direction of interferer for the side-lobe interference component (ITU-R-F.758-6) | C177: dBi | D177: 22
B178: Feeder (insertion) loss (ITU-R-F.758-6) | C178: dB | D178: 0
B179: I/N criteria (ITU-R F.758-6 ) | C179: dB | D179: -20
B180: Receiver noise power density typical (ITU-R-F.758-6) | C180: dBW/MHz | D180: -130
B181: Nominal long-term interference power density threshold (ITU-R-F.758-6) | C181: dBW/MHz | D181: =D180+D179 -> -150
B182: Interference threshold at receiver input within IF bandwidth | C182: dBm | D182: =D181+10*LOG10(D174)+30 -> -90
B183: (Receiver noise power density calculated over NF) | C183: dBW/MHz | D183: =-113.83+D175-30 -> -129.83
B185: M- and PA-CDR system:
B186: Conducted Tx power of CDR | C186: dBm | D186: -2
B187: Out-of-band unwanted emissions attenuation (if FS victim is located in an adjacent band) | C187: dB | D187: 0
B188: Tx e.i.r.p. of CDR | C188: dBm | D188: =D186-D187+D194 -> 30
B189: Bandwidth of CDR Tx signal | C189: GHz | D189: 8
B190: Mitigation technique (e.g. activity factor, adaptive power control) | C190: dB | D190: 0
B191: Tx e.i.r.p. spectral density of CDR | C191: dBm/MHz | D191: =D188-10*LOG(D189*1000) -> -9.03089987
B192: Tx e.i.r.p. spectral density of CDR with mitigation | C192: dBm/MHz | D192: =D188+D190-10*LOG(D189*1000) -> -9.03089987
B193: Tx e.i.r.p. of CDR with mitigation | C193: dBm | D193: =D188+D190 -> 30
B194: Gain of the CDR antenna in direction of main radiation | C194: dBi | D194: 32
B196: Side-lobe interference component:
B197: Reduction of e.i.r.p. due to spatial distribution of the power over half-sphere | C197: dB | D197: -28.6
B198: Antenna gain in the direction of the FS receiver | C198: dBi | D198: 32
B199: Direct e.i.r.p. component sent to FS system | C199: dBm | D199: =D193-D194+D198+D197 -> 1.4
B200: Direct e.i.r.p. component at FS receiver | C200: dBm | D200: =D199+D177-D178 -> 23.4
B202: Total e.i.r.p. at FS receiver | C202: dBm | D202: =D200 -> 23.4
B203: BWCF | C203: dB | D203: =IF(D174*1000<=D189, 0, 10*LOG10(D174/D189/1000)) -> -9.03089987
B205: Separation distance calculation:
B206: Minimum coupling loss (MCL) | C206: dB | D206: =D202-D182+D203 -> 104.3691001
B207: Separation distance with FSL model | C207: km | D207: =10^((D206-32.44-20*LOG10(D172*1000))/20) -> 0.02310537086
B208: Specific attenuation due to atmospheric gases (ITU-R P.676-11 figure 5) | C208: dB/km | D208: 2
B209: Separation distance adjusted for attenuation due to atmospheric gases | C209: km | D209: 0.02298143832
B210: Balance check (should be close to zero) | C210: dB | D210: =D206-20*LOG10(D209)-D209*D208-32.44-20*LOG10(D172*1000) -> 0.0007518798427
D211: Long term interference criterion

Sheet Amateur 116-148,5GHz
B3: Compatibility analysis between M-CDR and PA-CDR in the frequency band 116 to 148,5 GHz and Amateur systems
B5: Victim Amateur system | D5: Band of amateur system: 122,25-123 GHz | H5: Band of amateur system: 134-141 GHz
B6: Sensor type | D6: Morse on-off keying | E6: Analogue voice | F6: Data, digital voice and multimedia | G6: Earth-moon-earth (EME) systems | H6: Morse on-off keying | I6: Analogue voice | J6: Data, digital voice and multimedia | K6: Earth-moon-earth (EME) systems
B7: Amateur system: | C7: Units
B8: Assumed centre frequency of Amateur system | C8: GHz | D8: 122.625 | E8: 122.625 | F8: 122.625 | G8: 122.625 | H8: 137.5 | I8: 137.5 | J8: 137.5 | K8: 137.5
B9: Wavelength of Amateur system | C9: m | D9: =2.99792458/D8/10 -> 0.002444790687 | E9: 0.002444790687 | F9: 0.002444790687 | G9: 0.002444790687 | H9: 0.002180308785 | I9: 0.002180308785 | J9: 0.002180308785 | K9: 0.002180308785
B10: Receiver IF bandwidth (ITU-R M.1732-2) | C10: MHz | D10: 0.0005 | E10: 0.0027 | F10: 0.0027 | G10: 0.0024 | H10: 0.0005 | I10: 0.0027 | J10: 0.0027 | K10: 0.0024
B11: Receiver noise figure (ITU-R M.1732-2) | C11: dB | D11: 3 | E11: 3 | F11: 3 | G11: 3 | H11: 3 | I11: 3 | J11: 3 | K11: 3
B12: Antenna gain in the direction of interferer (ITU-R M.1732-2) | C12: dBi | D12: 32 | E12: 32 | F12: 32 | G12: 32 | H12: 32 | I12: 32 | J12: 32 | K12: 32
B13: Feeder (insertion) loss (ITU-R M.1732-2) | C13: dB | D13: 2 | E13: 2 | F13: 2 | G13: 3 | H13: 2 | I13: 2 | J13: 2 | K13: 3
B14: I/N criteria (ITU-R M.1808) | C14: dB | D14: -10 | E14: -10 | F14: -10 | G14: -10 | H14: -10 | I14: -10 | J14: -10 | K14: -10
B15: Receiver noise power density | C15: dBW/MHz | D15: =-113.83+D11-30 -> -140.83 | E15: -140.83 | F15: -140.83 | G15: -140.83 | H15: -140.83 | I15: -140.83 | J15: -140.83 | K15: -140.83
B16: Interference power density threshold | C16: dBW/MHz | D16: =D15+D14 -> -150.83 | E16: -150.83 | F16: -150.83 | G16: -150.83 | H16: -150.83 | I16: -150.83 | J16: -150.83 | K16: -150.83
B17: Interference threshold at receiver input within IF bandwidth | C17: dBm | D17: =D16+10*LOG10(D10)+30 -> -153.8403 | E17: -146.5163624 | F17: -146.5163624 | G17: -147.0278876 | H17: -153.8403 | I17: -146.5163624 | J17: -146.5163624 | K17: -147.0278876
B19: M-CDR/PA-CDR system:
B20: Conducted Tx power of CDR | C20: dBm | D20: -5 | E20: -5 | F20: -5 | G20: -5 | H20: -5 | I20: -5 | J20: -5 | K20: -5
B21: Out-of-band unwanted emissions attenuation (if Amateur victim is located in an adjacent band) | C21: dB | D21: 0 | E21: 0 | F21: 0 | G21: 0 | H21: 0 | I21: 0 | J21: 0 | K21: 0
B22: Tx e.i.r.p. of CDR | C22: dBm | D22: =D20-D21+D28 -> 27 | E22: 27 | F22: 27 | G22: 27 | H22: 27 | I22: 27 | J22: 27 | K22: 27
B23: Bandwidth of CDR Tx signal | C23: GHz | D23: 8 | E23: 8 | F23: 8 | G23: 8 | H23: 8 | I23: 8 | J23: 8 | K23: 8
B24: Mitigation technique (e.g. activity factor, adaptive power control) | C24: dB | D24: 0 | E24: 0 | F24: 0 | G24: 0 | H24: 0 | I24: 0 | J24: 0 | K24: 0
B25: Tx e.i.r.p. spectral density of CDR | C25: dBm/MHz | D25: =D22-10*LOG(D23*1000) -> -12.03089987 | E25: -12.03089987 | F25: -12.03089987 | G25: -12.03089987 | H25: -12.03089987 | I25: -12.03089987 | J25: -12.03089987 | K25: -12.03089987
B26: Tx e.i.r.p. spectral density of CDR with mitigation | C26: dBm/MHz | D26: =D22+D24-10*LOG(D23*1000) -> -12.03089987 | E26: -12.03089987 | F26: -12.03089987 | G26: -12.03089987 | H26: -12.03089987 | I26: -12.03089987 | J26: -12.03089987 | K26: -12.03089987
B27: Tx e.i.r.p. of CDR with mitigation | C27: dBm | D27: =D22+D24 -> 27 | E27: 27 | F27: 27 | G27: 27 | H27: 27 | I27: 27 | J27: 27 | K27: 27
B28: Gain of the CDR antenna in direction of main radiation | C28: dBi | D28: 32 | E28: 32 | F28: 32 | G28: 32 | H28: 32 | I28: 32 | J28: 32 | K28: 32
B30: Direct interference component:
B31: Reduction of e.i.r.p. due to spatial distribution of the power over half-sphere | C31: dB | D31: -28.6 | E31: -28.6 | F31: -28.6 | G31: -28.6 | H31: -28.6 | I31: -28.6 | J31: -28.6 | K31: -28.6
B32: Direct e.i.r.p. component sent to RAS | C32: dBm | D32: =D31+D27 -> -1.6 | E32: -1.6 | F32: -1.6 | G32: -1.6 | H32: -1.6 | I32: -1.6 | J32: -1.6 | K32: -1.6
B34: Side-lobe interference component:
B35: Antenna side-lobe gain >60° offset angle | C35: dBi | D35: 0 | E35: 0 | F35: 0 | G35: 0 | H35: 0 | I35: 0 | J35: 0 | K35: 0
B36: Side-lobe e.i.r.p. component sent to Amateur system | C36: dBm | D36: =D27-D28+D35 -> -5 | E36: -5 | F36: -5 | G36: -5 | H36: -5 | I36: -5 | J36: -5 | K36: -5
B38: Reflected interference component:
B39: Sidelobe suppression (first sidelobe, offset angle 20-30° (24° nominal) | C39: dB | D39: -28 | E39: -28 | F39: -28 | G39: -28 | H39: -28 | I39: -28 | J39: -28 | K39: -28
B40: Reflection loss on sand surface (angle of incidence 33°) | C40: dB | D40: 18 | E40: 18 | F40: 18 | G40: 18 | H40: 18 | I40: 18 | J40: 18 | K40: 18
B41: Reflected e.i.r.p. component sent to Amateur system | C41: dBm | D41: =D27+D39-D40 -> -19 | E41: -19 | F41: -19 | G41: -19 | H41: -19 | I41: -19 | J41: -19 | K41: -19
B43: Total e.i.r.p. towards Amateur system | C43: dBm | D43: =10*LOG10(10^(D32/10)+10^(D36/10)+10^(D41/10)) -> 0.08875985082 | E43: 0.08875985082 | F43: 0.08875985082 | G43: 0.08875985082 | H43: 0.08875985082 | I43: 0.08875985082 | J43: 0.08875985082 | K43: 0.08875985082
B44: BWCF | C44: dB | D44: =IF(D23*1000<=D10, 0, 10*LOG10(D10/D23/1000)) -> -72.04119983 | E44: -64.71726223 | F44: -64.71726223 | G44: -65.22878745 | H44: -72.04119983 | I44: -64.71726223 | J44: -64.71726223 | K44: -65.22878745
B46: Separation distance calculation:
B47: Minimum coupling loss (MCL) | C47: dB | D47: =D43-(D17-D12+D13)+D44 -> 111.88786 | E47: 111.88786 | F47: 111.88786 | G47: 110.88786 | H47: 111.88786 | I47: 111.88786 | J47: 111.88786 | K47: 110.88786
B48: Separation distance with FSL model | C48: km | D48: =10^((D47-32.44-20*LOG10(D8*1000))/20) -> 0.07652687492 | E48: 0.07652687492 | F48: 0.07652687492 | G48: 0.06820464906 | H48: 0.06824805845 | I48: 0.06824805845 | J48: 0.06824805845 | K48: 0.06082614612
B49: Specific attenuation due to atmospheric gases (ITU-R P.676-11 figure 5) | C49: dB/km | D49: 0.4 | E49: 0.4 | F49: 0.4 | G49: 0.4 | H49: 0.8 | I49: 0.8 | J49: 0.8 | K49: 0.8
B50: Separation distance adjusted for attenuation due to atmospheric gases | C50: km | D50: 0.07625187641 | E50: 0.07625183937 | F50: 0.07625183937 | G50: 0.06798536664 | H50: 0.06781730361 | I50: 0.06781730361 | J50: 0.06781730361 | K50: 0.06048302818
B51: Balance check (should be close to zero) | C51: dB | D51: =D47-20*LOG10(D50)-D50*D49-32.44-20*LOG10(D8*1000) -> 0.0007681165739 | E51: 0.0007723503137 | F51: 0.0007723503137 | G51: 0.0007765469107 | H51: 0.000741806697 | I51: 0.0007418066981 | J51: 0.0007418066981 | K51: 0.0007490619195
B56: Compatibility analysis between DBF-CDR in the frequency band 116 to 148,5 GHz and Amateur systems
B58: Victim Amateur system | D58: Band of amateur system: 122,25-123 GHz | H58: Band of amateur system: 134-141 GHz
B59: Sensor type | D59: Morse on-off keying | E59: Analogue voice | F59: Data, digital voice and multimedia | G59: Earth-moon-earth (EME) systems | H59: Morse on-off keying | I59: Analogue voice | J59: Data, digital voice and multimedia | K59: Earth-moon-earth (EME) systems
B60: Amateur system: | C60: Units
B61: Assumed centre frequency of Amateur system | C61: GHz | D61: 122.625 | E61: 122.625 | F61: 122.625 | G61: 122.625 | H61: 137.5 | I61: 137.5 | J61: 137.5 | K61: 137.5
B62: Wavelength of Amateur system | C62: m | D62: =2.99792458/D61/10 -> 0.002444790687 | E62: 0.002444790687 | F62: 0.002444790687 | G62: 0.002444790687 | H62: 0.002180308785 | I62: 0.002180308785 | J62: 0.002180308785 | K62: 0.002180308785
B63: Receiver IF bandwidth (ITU-R M.1732-2) | C63: MHz | D63: 0.0005 | E63: 0.0027 | F63: 0.0027 | G63: 0.0024 | H63: 0.0005 | I63: 0.0027 | J63: 0.0027 | K63: 0.0024
B64: Receiver noise figure (ITU-R M.1732-2) | C64: dB | D64: 3 | E64: 3 | F64: 3 | G64: 3 | H64: 3 | I64: 3 | J64: 3 | K64: 3
B65: Antenna gain in the direction of interferer (ITU-R M.1732-2) | C65: dBi | D65: 32 | E65: 32 | F65: 32 | G65: 32 | H65: 32 | I65: 32 | J65: 32 | K65: 32
B66: Feeder (insertion) loss (ITU-R M.1732-2) | C66: dB | D66: 2 | E66: 2 | F66: 2 | G66: 3 | H66: 2 | I66: 2 | J66: 2 | K66: 3
B67: I/N criteria (ITU-R M.1808) | C67: dB | D67: -10 | E67: -10 | F67: -10 | G67: -10 | H67: -10 | I67: -10 | J67: -10 | K67: -10
B68: Receiver noise power density | C68: dBW/MHz | D68: =-113.83+D64-30 -> -140.83 | E68: -140.83 | F68: -140.83 | G68: -140.83 | H68: -140.83 | I68: -140.83 | J68: -140.83 | K68: -140.83
B69: Interference power density threshold | C69: dBW/MHz | D69: =D68+D67 -> -150.83 | E69: -150.83 | F69: -150.83 | G69: -150.83 | H69: -150.83 | I69: -150.83 | J69: -150.83 | K69: -150.83
B70: Interference threshold at receiver input within IF bandwidth | C70: dBm | D70: =D69+10*LOG10(D63)+30 -> -153.8403 | E70: -146.5163624 | F70: -146.5163624 | G70: -147.0278876 | H70: -153.8403 | I70: -146.5163624 | J70: -146.5163624 | K70: -147.0278876
B72: DBF-CDR system:
B73: Conducted Tx power of CDR | C73: dBm | D73: -5 | E73: -5 | F73: -5 | G73: -5 | H73: -5 | I73: -5 | J73: -5 | K73: -5
B74: Out-of-band unwanted emissions attenuation (if Amateur victim is located in an adjacent band) | C74: dB | D74: 0 | E74: 0 | F74: 0 | G74: 0 | H74: 0 | I74: 0 | J74: 0 | K74: 0
B75: Tx e.i.r.p. of CDR | C75: dBm | D75: =D73-D74+D81 -> 5 | E75: 5 | F75: 5 | G75: 5 | H75: 5 | I75: 5 | J75: 5 | K75: 5
B76: Bandwidth of CDR Tx signal | C76: GHz | D76: 5.7 | E76: 5.7 | F76: 5.7 | G76: 5.7 | H76: 5.7 | I76: 5.7 | J76: 5.7 | K76: 5.7
B77: Mitigation technique (e.g. activity factor, adaptive power control) | C77: dB | D77: 0 | E77: 0 | F77: 0 | G77: 0 | H77: 0 | I77: 0 | J77: 0 | K77: 0
B78: Tx e.i.r.p. spectral density of CDR | C78: dBm/MHz | D78: =D75-10*LOG(D76*1000) -> -32.55874856 | E78: -32.55874856 | F78: -32.55874856 | G78: -32.55874856 | H78: -32.55874856 | I78: -32.55874856 | J78: -32.55874856 | K78: -32.55874856
B79: Tx e.i.r.p. spectral density of CDR with mitigation | C79: dBm/MHz | D79: =D75+D77-10*LOG(D76*1000) -> -32.55874856 | E79: -32.55874856 | F79: -32.55874856 | G79: -32.55874856 | H79: -32.55874856 | I79: -32.55874856 | J79: -32.55874856 | K79: -32.55874856
B80: Tx e.i.r.p. of CDR with mitigation | C80: dBm | D80: =D75+D77 -> 5 | E80: 5 | F80: 5 | G80: 5 | H80: 5 | I80: 5 | J80: 5 | K80: 5
B81: Gain of the CDR antenna in direction of main radiation | C81: dBi | D81: 10 | E81: 10 | F81: 10 | G81: 10 | H81: 10 | I81: 10 | J81: 10 | K81: 10
B83: Side-lobe interference component:
B84: Antenna side-lobe gain >60° offset angle | C84: dBi | D84: 7 | E84: 7 | F84: 7 | G84: 7 | H84: 7 | I84: 7 | J84: 7 | K84: 7
B85: Side-lobe e.i.r.p. component sent to Amateur system | C85: dBm | D85: =D80-D81+D84 -> 2 | E85: 2 | F85: 2 | G85: 2 | H85: 2 | I85: 2 | J85: 2 | K85: 2
B87: Reflected interference component:
B88: Sidelobe suppression (first sidelobe, offset angle 20-30° (24° nominal) | C88: dB | D88: 0 | E88: 0 | F88: 0 | G88: 0 | H88: 0 | I88: 0 | J88: 0 | K88: 0
B89: Reflection loss on sand surface (angle of incidence 33°) | C89: dB | D89: 18 | E89: 18 | F89: 18 | G89: 18 | H89: 18 | I89: 18 | J89: 18 | K89: 18
B90: Reflected e.i.r.p. component sent to Amateur system | C90: dBm | D90: =D80+D88-D89 -> -13 | E90: -13 | F90: -13 | G90: -13 | H90: -13 | I90: -13 | J90: -13 | K90: -13
B92: Total e.i.r.p. towards Amateur system | C92: dBm | D92: =10*LOG10(10^(D85/10)+10^(D90/10)) -> 2.135209221 | E92: 2.135209221 | F92: 2.135209221 | G92: 2.135209221 | H92: 2.135209221 | I92: 2.135209221 | J92: 2.135209221 | K92: 2.135209221
B93: BWCF | C93: dB | D93: =IF(D76*1000<=D63, 0, 10*LOG10(D63/D76/1000)) -> -70.56904851 | E93: -63.24511092 | F93: -63.24511092 | G93: -63.75663614 | H93: -70.56904851 | I93: -63.24511092 | J93: -63.24511092 | K93: -63.75663614
B95: Separation distance calculation:
B96: Minimum coupling loss (MCL) | C96: dB | D96: =D92-(D70-D65+D66)+D93 -> 115.4064607 | E96: 115.4064607 | F96: 115.4064607 | G96: 114.4064607 | H96: 115.4064607 | I96: 115.4064607 | J96: 115.4064607 | K96: 114.4064607
B97: Separation distance with FSL model | C97: km | D97: =10^((D96-32.44-20*LOG10(D61*1000))/20) -> 0.1147477062 | E97: 0.1147477062 | F97: 0.1147477062 | G97: 0.1022690008 | H97: 0.1023340907 | I97: 0.1023340907 | J97: 0.1023340907 | K97: 0.09120535436
B98: Specific attenuation due to atmospheric gases (ITU-R P.676-11 figure 5) | C98: dB/km | D98: 0.4 | E98: 0.4 | F98: 0.4 | G98: 0.4 | H98: 0.8 | I98: 0.8 | J98: 0.8 | K98: 0.8
B99: Separation distance adjusted for attenuation due to atmospheric gases | C99: km | D99: 0.1141400328 | E99: 0.1141400228 | F99: 0.1141400228 | G99: 0.1017852689 | H99: 0.1013777931 | I99: 0.1013777931 | J99: 0.1013777931 | K99: 0.09044404431
B100: Balance check (should be close to zero) | C100: dB | D100: =D96-20*LOG10(D99)-D99*D98-32.44-20*LOG10(D61*1000) -> 0.0004643865231 | E100: 0.0004651488378 | F100: 0.0004651488378 | G100: 0.0004675867516 | H100: 0.000447813249 | I100: 0.000447813249 | J100: 0.000447813249 | K100: 0.0004519835203

Sheet Amateur 231,5-250GHz
B3: Compatibility analysis between M-CDR and PA-CDR in the frequency band 231,5 to 250 GHz and Amateur systems
B5: Victim Amateur system | D5: Band of amateur system: 241-250 GHz
B6: Sensor type | D6: Morse on-off keying | E6: Analogue voice | F6: Data, digital voice and multimedia | G6: Earth-moon-earth (EME) systems
B7: Amateur system: | C7: Units
B8: Assumed centre frequency of Amateur system | C8: GHz | D8: 245.5 | E8: 245.5 | F8: 245.5 | G8: 245.5
B9: Wavelength of Amateur system | C9: m | D9: =2.99792458/D8/10 -> 0.001221150542 | E9: =2.99792458/E8/10 -> 0.001221150542 | F9: =2.99792458/F8/10 -> 0.001221150542 | G9: =2.99792458/G8/10 -> 0.001221150542
B10: Receiver IF bandwidth (ITU-R M.1732-2) | C10: MHz | D10: 0.0005 | E10: 0.0027 | F10: 0.0027 | G10: 0.0024
B11: Receiver noise figure (ITU-R M.1732-2) | C11: dB | D11: 5 | E11: 5 | F11: 5 | G11: 5
B12: Antenna gain in the direction of interferer (ITU-R M.1732-2) | C12: dBi | D12: 32 | E12: 32 | F12: 32 | G12: 32
B13: Feeder (insertion) loss (ITU-R M.1732-2) | C13: dB | D13: 3 | E13: 3 | F13: 3 | G13: 4
B14: I/N criteria (ITU-R M.1808) | C14: dB | D14: -10 | E14: -10 | F14: -10 | G14: -10
B15: Receiver noise power density | C15: dBW/MHz | D15: =-113.83+D11-30 -> -138.83 | E15: =-113.83+E11-30 -> -138.83 | F15: =-113.83+F11-30 -> -138.83 | G15: =-113.83+G11-30 -> -138.83
B16: Interference power density threshold | C16: dBW/MHz | D16: =D15+D14 -> -148.83 | E16: =E15+E14 -> -148.83 | F16: =F15+F14 -> -148.83 | G16: =G15+G14 -> -148.83
B17: Interference threshold at receiver input within IF bandwidth | C17: dBm | D17: =D16+10*LOG10(D10)+30 -> -151.8403 | E17: =E16+10*LOG10(E10)+30 -> -144.5163624 | F17: =F16+10*LOG10(F10)+30 -> -144.5163624 | G17: =G16+10*LOG10(G10)+30 -> -145.0278876
B19: M-CDR/PA-CDR system:
B20: Conducted Tx power of CDR | C20: dBm | D20: 1 | E20: 1 | F20: 1 | G20: 1
B21: Out-of-band unwanted emissions attenuation (if Amateur victim is located in an adjacent band) | C21: dB | D21: 0 | E21: 0 | F21: 0 | G21: 0
B22: Tx e.i.r.p. of CDR | C22: dBm | D22: =D20-D21+D28 -> 33 | E22: =E20-E21+E28 -> 33 | F22: =F20-F21+F28 -> 33 | G22: =G20-G21+G28 -> 33
B23: Bandwidth of CDR Tx signal | C23: GHz | D23: 8 | E23: 8 | F23: 8 | G23: 8
B24: Mitigation technique (e.g. activity factor, adaptive power control) | C24: dB | D24: 0 | E24: 0 | F24: 0 | G24: 0
B25: Tx e.i.r.p. spectral density of CDR | C25: dBm/MHz | D25: =D22-10*LOG(D23*1000) -> -6.03089987 | E25: =E22-10*LOG(E23*1000) -> -6.03089987 | F25: =F22-10*LOG(F23*1000) -> -6.03089987 | G25: =G22-10*LOG(G23*1000) -> -6.03089987
B26: Tx e.i.r.p. spectral density of CDR with mitigation | C26: dBm/MHz | D26: =D22+D24-10*LOG(D23*1000) -> -6.03089987 | E26: =E22+E24-10*LOG(E23*1000) -> -6.03089987 | F26: =F22+F24-10*LOG(F23*1000) -> -6.03089987 | G26: =G22+G24-10*LOG(G23*1000) -> -6.03089987
B27: Tx e.i.r.p. of CDR with mitigation | C27: dBm | D27: =D22+D24 -> 33 | E27: =E22+E24 -> 33 | F27: =F22+F24 -> 33 | G27: =G22+G24 -> 33
B28: Gain of the CDR antenna in direction of main radiation | C28: dBi | D28: 32 | E28: 32 | F28: 32 | G28: 32
B30: Direct interference component:
B31: Reduction of e.i.r.p. due to spatial distribution of the power over half-sphere | C31: dB | D31: -28.6 | E31: -28.6 | F31: -28.6 | G31: -28.6
B32: Direct e.i.r.p. component sent to RAS | C32: dBm | D32: =D31+D27 -> 4.4 | E32: =E31+E27 -> 4.4 | F32: =F31+F27 -> 4.4 | G32: =G31+G27 -> 4.4
B34: Side-lobe interference component:
B35: Antenna side-lobe gain >60° offset angle | C35: dBi | D35: 0 | E35: 0 | F35: 0 | G35: 0
B36: Side-lobe e.i.r.p. component sent to Amateur system | C36: dBm | D36: =D27-D28+D35 -> 1 | E36: =E27-E28+E35 -> 1 | F36: =F27-F28+F35 -> 1 | G36: =G27-G28+G35 -> 1
B38: Reflected interference component:
B39: Sidelobe suppression (first sidelobe, offset angle 20-30° (24° nominal) | C39: dB | D39: -28 | E39: -28 | F39: -28 | G39: -28
B40: Reflection loss on sand surface (angle of incidence 33°) | C40: dB | D40: 25 | E40: 25 | F40: 25 | G40: 25
B41: Reflected e.i.r.p. component sent to Amateur system | C41: dBm | D41: =D27+D39-D40 -> -20 | E41: =E27+E39-E40 -> -20 | F41: =F27+F39-F40 -> -20 | G41: =G27+G39-G40 -> -20
B43: Total e.i.r.p. towards Amateur system | C43: dBm | D43: =10*LOG10(10^(D32/10)+10^(D36/10)+10^(D41/10)) -> 6.045666694 | E43: =10*LOG10(10^(E32/10)+10^(E36/10)+10^(E41/10)) -> 6.045666694 | F43: =10*LOG10(10^(F32/10)+10^(F36/10)+10^(F41/10)) -> 6.045666694 | G43: =10*LOG10(10^(G32/10)+10^(G36/10)+10^(G41/10)) -> 6.045666694
B44: BWCF | C44: dB | D44: =IF(D23*1000<=D10, 0, 10*LOG10(D10/D23/1000)) -> -72.04119983 | E44: =IF(E23*1000<=E10, 0, 10*LOG10(E10/E23/1000)) -> -64.71726223 | F44: =IF(F23*1000<=F10, 0, 10*LOG10(F10/F23/1000)) -> -64.71726223 | G44: =IF(G23*1000<=G10, 0, 10*LOG10(G10/G23/1000)) -> -65.22878745
B46: Separation distance calculation:
B47: Minimum coupling loss (MCL) | C47: dB | D47: =D43-(D17-D12+D13)+D44 -> 114.8447668 | E47: =E43-(E17-E12+E13)+E44 -> 114.8447668 | F47: =F43-(F17-F12+F13)+F44 -> 114.8447668 | G47: =G43-(G17-G12+G13)+G44 -> 113.8447668
B48: Separation distance with FSL model | C48: km | D48: =10^((D47-32.44-20*LOG10(D8*1000))/20) -> 0.05372628911 | E48: =10^((E47-32.44-20*LOG10(E8*1000))/20) -> 0.05372628911 | F48: =10^((F47-32.44-20*LOG10(F8*1000))/20) -> 0.05372628911 | G48: =10^((G47-32.44-20*LOG10(G8*1000))/20) -> 0.04788360557
B49: Specific attenuation due to atmospheric gases (ITU-R P.676-11 figure 5) | C49: dB/km | D49: 3 | E49: 3 | F49: 3 | G49: 3
B50: Separation distance adjusted for attenuation due to atmospheric gases | C50: km | D50: 0.0527524801 | E50: 0.0527524801 | F50: 0.0527524801 | G50: 0.04710735492
B51: Balance check (should be close to zero) | C51: dB | D51: =D47-20*LOG10(D50)-D50*D49-32.44-20*LOG10(D8*1000) -> 0.0006218086598 | E51: =E47-20*LOG10(E50)-E50*E49-32.44-20*LOG10(E8*1000) -> 0.0006218086651 | F51: =F47-20*LOG10(F50)-F50*F49-32.44-20*LOG10(F8*1000) -> 0.0006218086651 | G51: =G47-20*LOG10(G50)-G50*G49-32.44-20*LOG10(G8*1000) -> 0.0006404453661
B56: Compatibility analysis between DBF-CDR in the frequency band 231,5 to 250 GHz and Amateur systems
B58: Victim Amateur system | D58: Band of amateur system: 241-250 GHz
B59: Sensor type | D59: Morse on-off keying | E59: Analogue voice | F59: Data, digital voice and multimedia | G59: Earth-moon-earth (EME) systems
B60: Amateur system: | C60: Units
B61: Assumed centre frequency of Amateur system | C61: GHz | D61: 245.5 | E61: 245.5 | F61: 245.5 | G61: 245.5
B62: Wavelength of Amateur system | C62: m | D62: =2.99792458/D61/10 -> 0.001221150542 | E62: =2.99792458/E61/10 -> 0.001221150542 | F62: =2.99792458/F61/10 -> 0.001221150542 | G62: =2.99792458/G61/10 -> 0.001221150542
B63: Receiver IF bandwidth (ITU-R M.1732-2) | C63: MHz | D63: 0.0005 | E63: 0.0027 | F63: 0.0027 | G63: 0.0024
B64: Receiver noise figure (ITU-R M.1732-2) | C64: dB | D64: 5 | E64: 5 | F64: 5 | G64: 5
B65: Antenna gain in the direction of interferer (ITU-R M.1732-2) | C65: dBi | D65: 32 | E65: 32 | F65: 32 | G65: 32
B66: Feeder (insertion) loss (ITU-R M.1732-2) | C66: dB | D66: 3 | E66: 3 | F66: 3 | G66: 4
B67: I/N criteria (ITU-R M.1808) | C67: dB | D67: -10 | E67: -10 | F67: -10 | G67: -10
B68: Receiver noise power density | C68: dBW/MHz | D68: =-113.83+D64-30 -> -138.83 | E68: =-113.83+E64-30 -> -138.83 | F68: =-113.83+F64-30 -> -138.83 | G68: =-113.83+G64-30 -> -138.83
B69: Interference power density threshold | C69: dBW/MHz | D69: =D68+D67 -> -148.83 | E69: =E68+E67 -> -148.83 | F69: =F68+F67 -> -148.83 | G69: =G68+G67 -> -148.83
B70: Interference threshold at receiver input within IF bandwidth | C70: dBm | D70: =D69+10*LOG10(D63)+30 -> -151.8403 | E70: =E69+10*LOG10(E63)+30 -> -144.5163624 | F70: =F69+10*LOG10(F63)+30 -> -144.5163624 | G70: =G69+10*LOG10(G63)+30 -> -145.0278876
B72: DBF-CDR system:
B73: Conducted Tx power of CDR | C73: dBm | D73: -5 | E73: -5 | F73: -5 | G73: -5
B74: Out-of-band unwanted emissions attenuation (if Amateur victim is located in an adjacent band) | C74: dB | D74: 0 | E74: 0 | F74: 0 | G74: 0
B75: Tx e.i.r.p. of CDR | C75: dBm | D75: =D73-D74+D81 -> 5 | E75: =E73-E74+E81 -> 5 | F75: =F73-F74+F81 -> 5 | G75: =G73-G74+G81 -> 5
B76: Bandwidth of CDR Tx signal | C76: GHz | D76: 0.63 | E76: 0.63 | F76: 0.63 | G76: 0.63
B77: Mitigation technique (e.g. activity factor, adaptive power control) | C77: dB | D77: 0 | E77: 0 | F77: 0 | G77: 0
B78: Tx e.i.r.p. spectral density of CDR | C78: dBm/MHz | D78: =D75-10*LOG(D76*1000) -> -22.99340549 | E78: =E75-10*LOG(E76*1000) -> -22.99340549 | F78: =F75-10*LOG(F76*1000) -> -22.99340549 | G78: =G75-10*LOG(G76*1000) -> -22.99340549
B79: Tx e.i.r.p. spectral density of CDR with mitigation | C79: dBm/MHz | D79: =D75+D77-10*LOG(D76*1000) -> -22.99340549 | E79: =E75+E77-10*LOG(E76*1000) -> -22.99340549 | F79: =F75+F77-10*LOG(F76*1000) -> -22.99340549 | G79: =G75+G77-10*LOG(G76*1000) -> -22.99340549
B80: Tx e.i.r.p. of CDR with mitigation | C80: dBm | D80: =D75+D77 -> 5 | E80: =E75+E77 -> 5 | F80: =F75+F77 -> 5 | G80: =G75+G77 -> 5
B81: Gain of the CDR antenna in direction of main radiation | C81: dBi | D81: 10 | E81: 10 | F81: 10 | G81: 10
B83: Side-lobe interference component:
B84: Antenna side-lobe gain >60° offset angle | C84: dBi | D84: 7 | E84: 7 | F84: 7 | G84: 7
B85: Side-lobe e.i.r.p. component sent to Amateur system | C85: dBm | D85: =D80-D81+D84 -> 2 | E85: =E80-E81+E84 -> 2 | F85: =F80-F81+F84 -> 2 | G85: =G80-G81+G84 -> 2
B87: Reflected interference component:
B88: Sidelobe suppression (first sidelobe, offset angle 20-30° (24° nominal) | C88: dB | D88: 0 | E88: 0 | F88: 0 | G88: 0
B89: Reflection loss on sand surface (angle of incidence 33°) | C89: dB | D89: 25 | E89: 25 | F89: 25 | G89: 25
B90: Reflected e.i.r.p. component sent to Amateur system | C90: dBm | D90: =D80+D88-D89 -> -20 | E90: =E80+E88-E89 -> -20 | F90: =F80+F88-F89 -> -20 | G90: =G80+G88-G89 -> -20
B92: Total e.i.r.p. towards Amateur system | C92: dBm | D92: =10*LOG10(10^(D85/10)+10^(D90/10)) -> 2.027316043 | E92: =10*LOG10(10^(E85/10)+10^(E90/10)) -> 2.027316043 | F92: =10*LOG10(10^(F85/10)+10^(F90/10)) -> 2.027316043 | G92: =10*LOG10(10^(G85/10)+10^(G90/10)) -> 2.027316043
B93: BWCF | C93: dB | D93: =IF(D76*1000<=D63, 0, 10*LOG10(D63/D76/1000)) -> -61.00370545 | E93: =IF(E76*1000<=E63, 0, 10*LOG10(E63/E76/1000)) -> -53.67976785 | F93: =IF(F76*1000<=F63, 0, 10*LOG10(F63/F76/1000)) -> -53.67976785 | G93: =IF(G76*1000<=G63, 0, 10*LOG10(G63/G76/1000)) -> -54.19129308
B95: Separation distance calculation:
B96: Minimum coupling loss (MCL) | C96: dB | D96: =D92-(D70-D65+D66)+D93 -> 121.8639105 | E96: =E92-(E70-E65+E66)+E93 -> 121.8639105 | F96: =F92-(F70-F65+F66)+F93 -> 121.8639105 | G96: =G92-(G70-G65+G66)+G93 -> 120.8639105
B97: Separation distance with FSL model | C97: km | D97: =10^((D96-32.44-20*LOG10(D61*1000))/20) -> 0.1205435649 | E97: =10^((E96-32.44-20*LOG10(E61*1000))/20) -> 0.1205435649 | F97: =10^((F96-32.44-20*LOG10(F61*1000))/20) -> 0.1205435649 | G97: =10^((G96-32.44-20*LOG10(G61*1000))/20) -> 0.1074345653
B98: Specific attenuation due to atmospheric gases (ITU-R P.676-11 figure 5) | C98: dB/km | D98: 3 | E98: 3 | F98: 3 | G98: 3
B99: Separation distance adjusted for attenuation due to atmospheric gases | C99: km | D99: 0.1158043118 | E99: 0.1158043118 | F99: 0.1158043118 | G99: 0.1036562466
B100: Balance check (should be close to zero) | C100: dB | D100: =D96-20*LOG10(D99)-D99*D98-32.44-20*LOG10(D61*1000) -> 0.0009730869703 | E100: =E96-20*LOG10(E99)-E99*E98-32.44-20*LOG10(E61*1000) -> 0.0009730869703 | F100: =F96-20*LOG10(F99)-F99*F98-32.44-20*LOG10(F61*1000) -> 0.0009730869703 | G100: =G96-20*LOG10(G99)-G99*G98-32.44-20*LOG10(G61*1000) -> 2.304690554e-06
